{"text_format":"1","workbook":"xlsx","n_sheets":106,"sheets":["Sheet1","無地画面","シート名設定","既定シート現在名","標準シート名","インターフェース画面設定","CV-DataBaseスーパー呼び出し印刷命令リスト1","CV-DataBaseスーパー呼び出し印刷命令リスト2","CV-DataBaseスーパー呼び出し印刷命令リスト3","CV-DataBaseスーパー呼び出し印刷命令リスト4","CV-DataBaseスーパー呼び出し印刷命令リスト5","CV-DataBaseスーパー呼び出し印刷命令リスト6","CV-DataBaseスーパー呼び出し印刷命令リスト7","CV-DataBaseスーパー呼び出し印刷命令リスト8","CV-DataBaseスーパー呼び出し印刷命令リスト9","CV-DataBaseスーパー呼び出し印刷命令リスト10","CV-DataBaseスーパー呼び出し印刷命令リスト11","CV-DataBaseスーパー呼び出し印刷命令リスト12","CV-DataBaseスーパー呼び出し印刷命令リスト13","CV-DataBaseスーパー呼び出し印刷命令リスト14","CV-DataBaseスーパー呼び出し印刷命令リスト15","CV-DataBaseスーパー呼び出し印刷命令リスト16","CV-DataBaseスーパー呼び出し印刷命令リスト17","CV-DataBaseスーパー呼び出し印刷命令リスト18","CV-DataBaseスーパー呼び出し印刷命令リスト19","CV-DataBaseスーパー呼び出し印刷命令リスト20","CV-DataBaseスーパー呼び出し印刷命令リスト21","CV-DataBaseスーパー呼び出し印刷命令リスト22","CV-DataBaseスーパー呼び出し印刷命令リスト23","CV-DataBaseスーパー呼び出し印刷命令リスト24","CV-DataBaseスーパー呼び出し印刷命令リスト25","CV-DataBaseスーパー呼び出し印刷命令リスト26","CV-DataBaseスーパー呼び出し印刷命令リスト27","CV-DataBaseスーパー呼び出し印刷命令リスト28","CV-DataBaseスーパー呼び出し印刷命令リスト29","CV-DataBaseスーパー呼び出し印刷命令リスト30","CV-DataBaseスーパー呼び出し印刷命令リスト31","CV-DataBaseスーパー呼び出し印刷命令リスト32","CV-DataBaseスーパー呼び出し印刷命令リスト33","CV-DataBaseスーパー呼び出し印刷命令リスト34","CV-DataBaseスーパー呼び出し印刷命令リスト35","CV-DataBaseスーパー呼び出し印刷命令リスト36","CV-DataBaseスーパー呼び出し印刷命令リスト37","CV-DataBaseスーパー呼び出し印刷命令リスト38","CV-DataBaseスーパー呼び出し印刷命令リスト39","CV-DataBaseスーパー呼び出し印刷命令リスト40","CV-DataBaseスーパー呼び出し印刷命令リスト41","CV-DataBaseスーパー呼び出し印刷命令リスト42","CV-DataBaseスーパー呼び出し印刷命令リスト43","CV-DataBaseスーパー呼び出し印刷命令リスト44","CV-DataBaseスーパー呼び出し印刷命令リスト45","CV-DataBaseスーパー呼び出し印刷命令リスト46","CV-DataBaseスーパー呼び出し印刷命令リスト47","CV-DataBaseスーパー呼び出し印刷命令リスト48","CV-DataBaseスーパー呼び出し印刷命令リスト49","CV-DataBaseスーパー呼び出し印刷命令リスト50","CV-DataBaseスーパー呼び出し印刷命令リスト51","CV-DataBaseスーパー呼び出し印刷命令リスト52","CV-DataBaseスーパー呼び出し印刷命令リスト53","CV-DataBaseスーパー呼び出し印刷命令リスト54","CV-DataBaseスーパー呼び出し印刷命令リスト55","CV-DataBaseスーパー呼び出し印刷命令リスト56","CV-DataBaseスーパー呼び出し印刷命令リスト57","CV-DataBaseスーパー呼び出し印刷命令リスト58","CV-DataBaseスーパー呼び出し印刷命令リスト59","CV-DataBaseスーパー呼び出し印刷命令リスト60","CV-DataBaseスーパー呼び出し印刷命令リスト61","CV-DataBaseスーパー呼び出し印刷命令リスト62","CV-DataBaseスーパー呼び出し印刷命令リスト63","CV-DataBaseスーパー呼び出し印刷命令リスト64","CV-DataBaseスーパー呼び出し印刷命令リスト65","CV-DataBaseスーパー呼び出し印刷命令リスト66","CV-DataBaseスーパー呼び出し印刷命令リスト67","CV-DataBaseスーパー呼び出し印刷命令リスト68","CV-DataBaseスーパー呼び出し印刷命令リスト69","CV-DataBaseスーパー呼び出し印刷命令リスト70","CV-DataBaseスーパー呼び出し印刷命令リスト71","CV-DataBaseスーパー呼び出し印刷命令リスト72","CV-DataBaseスーパー呼び出し印刷命令リスト73","CV-DataBaseスーパー呼び出し印刷命令リスト74","CV-DataBaseスーパー呼び出し印刷命令リスト75","CV-DataBaseスーパー呼び出し印刷命令リスト76","CV-DataBaseスーパー呼び出し印刷命令リスト77","CV-DataBaseスーパー呼び出し印刷命令リスト78","CV-DataBaseスーパー呼び出し印刷命令リスト79","CV-DataBaseスーパー呼び出し印刷命令リスト80","CV-DataBaseスーパー呼び出し印刷命令リスト81","CV-DataBaseスーパー呼び出し印刷命令リスト82","CV-DataBaseスーパー呼び出し印刷命令リスト83","CV-DataBaseスーパー呼び出し印刷命令リスト84","CV-DataBaseスーパー呼び出し印刷命令リスト85","CV-DataBaseスーパー呼び出し印刷命令リスト86","CV-DataBaseスーパー呼び出し印刷命令リスト87","CV-DataBaseスーパー呼び出し印刷命令リスト88","CV-DataBaseスーパー呼び出し印刷命令リスト89","CV-DataBaseスーパー呼び出し印刷命令リスト90","CV-DataBaseスーパー呼び出し印刷命令リスト91","CV-DataBaseスーパー呼び出し印刷命令リスト92","CV-DataBaseスーパー呼び出し印刷命令リスト93","CV-DataBaseスーパー呼び出し印刷命令リスト94","CV-DataBaseスーパー呼び出し印刷命令リスト95","CV-DataBaseスーパー呼び出し印刷命令リスト96","CV-DataBaseスーパー呼び出し印刷命令リスト97","CV-DataBaseスーパー呼び出し印刷命令リスト98","CV-DataBaseスーパー呼び出し印刷命令リスト99","CV-DataBaseスーパー呼び出し印刷命令リスト100"],"not_rendered":{"charts":0,"images":0,"macros":1,"external_links":0,"defined_names":0,"comments":104,"pivot_tables":0},"unopened":[],"bounds":{"document_bytes":16777216,"sheet_cells":100000,"rows_first":2000,"rows_last":500,"rows_between":2000,"halvings":0,"cell_chars":16384,"cell_head_chars":4096},"cells_cut":0,"cells_raw":0,"read":"part_too_large","date_system":"1900"}

{"sheet":"Sheet1","index":0,"n_rows":0,"n_cols":0,"rows_kept":0,"cut":false,"hidden":true,"merged":[]}

{"sheet":"無地画面","index":1,"n_rows":0,"n_cols":0,"rows_kept":0,"cut":false,"hidden":false,"merged":[]}

{"sheet":"シート名設定","index":2,"n_rows":262,"n_cols":5,"rows_kept":262,"cut":false,"hidden":false,"merged":[]}
[]
[]
[]
[null,null,null,{"$f":"シート名設定!D7","v":"シート名設定"}]
[]
[null,null,"NO","シート名"]
[null,null,1,"シート名設定"]
[null,null,2,"既定シート現在名"]
[null,null,3,"インターフェース画面設定"]
[null,null,4,"CV-DataBaseスーパー呼び出し印刷命令リスト1"]
[null,null,5,"CV-DataBaseスーパー呼び出し印刷命令リスト2"]
[null,null,6,"CV-DataBaseスーパー呼び出し印刷命令リスト3"]
[null,null,7,"CV-DataBaseスーパー呼び出し印刷命令リスト4"]
[null,null,8,"CV-DataBaseスーパー呼び出し印刷命令リスト5"]
[null,null,9,"CV-DataBaseスーパー呼び出し印刷命令リスト6"]
[null,null,10,"CV-DataBaseスーパー呼び出し印刷命令リスト7"]
[null,null,11,"CV-DataBaseスーパー呼び出し印刷命令リスト8"]
[null,null,12,"CV-DataBaseスーパー呼び出し印刷命令リスト9"]
[null,null,13,"CV-DataBaseスーパー呼び出し印刷命令リスト10"]
[null,null,14,"CV-DataBaseスーパー呼び出し印刷命令リスト11"]
[null,null,15,"CV-DataBaseスーパー呼び出し印刷命令リスト12"]
[null,null,16,"CV-DataBaseスーパー呼び出し印刷命令リスト13"]
[null,null,17,"CV-DataBaseスーパー呼び出し印刷命令リスト14"]
[null,null,18,"CV-DataBaseスーパー呼び出し印刷命令リスト15"]
[null,null,19,"CV-DataBaseスーパー呼び出し印刷命令リスト16"]
[null,null,20,"CV-DataBaseスーパー呼び出し印刷命令リスト17"]
[null,null,21,"CV-DataBaseスーパー呼び出し印刷命令リスト18"]
[null,null,22,"CV-DataBaseスーパー呼び出し印刷命令リスト19"]
[null,null,23,"CV-DataBaseスーパー呼び出し印刷命令リスト20"]
[null,null,24,"CV-DataBaseスーパー呼び出し印刷命令リスト21"]
[null,null,25,"CV-DataBaseスーパー呼び出し印刷命令リスト22"]
[null,null,26,"CV-DataBaseスーパー呼び出し印刷命令リスト23"]
[null,null,27,"CV-DataBaseスーパー呼び出し印刷命令リスト24"]
[null,null,28,"CV-DataBaseスーパー呼び出し印刷命令リスト25"]
[null,null,29,"CV-DataBaseスーパー呼び出し印刷命令リスト26"]
[null,null,30,"CV-DataBaseスーパー呼び出し印刷命令リスト27"]
[null,null,31,"CV-DataBaseスーパー呼び出し印刷命令リスト28"]
[null,null,32,"CV-DataBaseスーパー呼び出し印刷命令リスト29"]
[null,null,33,"CV-DataBaseスーパー呼び出し印刷命令リスト30"]
[null,null,34,"CV-DataBaseスーパー呼び出し印刷命令リスト31"]
[null,null,35,"CV-DataBaseスーパー呼び出し印刷命令リスト32"]
[null,null,36,"CV-DataBaseスーパー呼び出し印刷命令リスト33"]
[null,null,37,"CV-DataBaseスーパー呼び出し印刷命令リスト34"]
[null,null,38,"CV-DataBaseスーパー呼び出し印刷命令リスト35"]
[null,null,39,"CV-DataBaseスーパー呼び出し印刷命令リスト36"]
[null,null,40,"CV-DataBaseスーパー呼び出し印刷命令リスト37"]
[null,null,41,"CV-DataBaseスーパー呼び出し印刷命令リスト38"]
[null,null,42,"CV-DataBaseスーパー呼び出し印刷命令リスト39"]
[null,null,43,"CV-DataBaseスーパー呼び出し印刷命令リスト40"]
[null,null,44,"CV-DataBaseスーパー呼び出し印刷命令リスト41"]
[null,null,45,"CV-DataBaseスーパー呼び出し印刷命令リスト42"]
[null,null,46,"CV-DataBaseスーパー呼び出し印刷命令リスト43"]
[null,null,47,"CV-DataBaseスーパー呼び出し印刷命令リスト44"]
[null,null,48,"CV-DataBaseスーパー呼び出し印刷命令リスト45"]
[null,null,49,"CV-DataBaseスーパー呼び出し印刷命令リスト46"]
[null,null,50,"CV-DataBaseスーパー呼び出し印刷命令リスト47"]
[null,null,51,"CV-DataBaseスーパー呼び出し印刷命令リスト48"]
[null,null,52,"CV-DataBaseスーパー呼び出し印刷命令リスト49"]
[null,null,53,"CV-DataBaseスーパー呼び出し印刷命令リスト50"]
[null,null,54,"CV-DataBaseスーパー呼び出し印刷命令リスト51"]
[null,null,55,"CV-DataBaseスーパー呼び出し印刷命令リスト52"]
[null,null,56,"CV-DataBaseスーパー呼び出し印刷命令リスト53"]
[null,null,57,"CV-DataBaseスーパー呼び出し印刷命令リスト54"]
[null,null,58,"CV-DataBaseスーパー呼び出し印刷命令リスト55"]
[null,null,59,"CV-DataBaseスーパー呼び出し印刷命令リスト56"]
[null,null,60,"CV-DataBaseスーパー呼び出し印刷命令リスト57"]
[null,null,61,"CV-DataBaseスーパー呼び出し印刷命令リスト58"]
[null,null,62,"CV-DataBaseスーパー呼び出し印刷命令リスト59"]
[null,null,63,"CV-DataBaseスーパー呼び出し印刷命令リスト60"]
[null,null,64,"CV-DataBaseスーパー呼び出し印刷命令リスト61"]
[null,null,65,"CV-DataBaseスーパー呼び出し印刷命令リスト62"]
[null,null,66,"CV-DataBaseスーパー呼び出し印刷命令リスト63"]
[null,null,67,"CV-DataBaseスーパー呼び出し印刷命令リスト64"]
[null,null,68,"CV-DataBaseスーパー呼び出し印刷命令リスト65"]
[null,null,69,"CV-DataBaseスーパー呼び出し印刷命令リスト66"]
[null,null,70,"CV-DataBaseスーパー呼び出し印刷命令リスト67"]
[null,null,71,"CV-DataBaseスーパー呼び出し印刷命令リスト68"]
[null,null,72,"CV-DataBaseスーパー呼び出し印刷命令リスト69"]
[null,null,73,"CV-DataBaseスーパー呼び出し印刷命令リスト70"]
[null,null,74,"CV-DataBaseスーパー呼び出し印刷命令リスト71"]
[null,null,75,"CV-DataBaseスーパー呼び出し印刷命令リスト72"]
[null,null,76,"CV-DataBaseスーパー呼び出し印刷命令リスト73"]
[null,null,77,"CV-DataBaseスーパー呼び出し印刷命令リスト74"]
[null,null,78,"CV-DataBaseスーパー呼び出し印刷命令リスト75"]
[null,null,79,"CV-DataBaseスーパー呼び出し印刷命令リスト76"]
[null,null,80,"CV-DataBaseスーパー呼び出し印刷命令リスト77"]
[null,null,81,"CV-DataBaseスーパー呼び出し印刷命令リスト78"]
[null,null,82,"CV-DataBaseスーパー呼び出し印刷命令リスト79"]
[null,null,83,"CV-DataBaseスーパー呼び出し印刷命令リスト80"]
[null,null,84,"CV-DataBaseスーパー呼び出し印刷命令リスト81"]
[null,null,85,"CV-DataBaseスーパー呼び出し印刷命令リスト82"]
[null,null,86,"CV-DataBaseスーパー呼び出し印刷命令リスト83"]
[null,null,87,"CV-DataBaseスーパー呼び出し印刷命令リスト84"]
[null,null,88,"CV-DataBaseスーパー呼び出し印刷命令リスト85"]
[null,null,89,"CV-DataBaseスーパー呼び出し印刷命令リスト86"]
[null,null,90,"CV-DataBaseスーパー呼び出し印刷命令リスト87"]
[null,null,91,"CV-DataBaseスーパー呼び出し印刷命令リスト88"]
[null,null,92,"CV-DataBaseスーパー呼び出し印刷命令リスト89"]
[null,null,93,"CV-DataBaseスーパー呼び出し印刷命令リスト90"]
[null,null,94,"CV-DataBaseスーパー呼び出し印刷命令リスト91"]
[null,null,95,"CV-DataBaseスーパー呼び出し印刷命令リスト92"]
[null,null,96,"CV-DataBaseスーパー呼び出し印刷命令リスト93"]
[null,null,97,"CV-DataBaseスーパー呼び出し印刷命令リスト94"]
[null,null,98,"CV-DataBaseスーパー呼び出し印刷命令リスト95"]
[null,null,99,"CV-DataBaseスーパー呼び出し印刷命令リスト96"]
[null,null,100,"CV-DataBaseスーパー呼び出し印刷命令リスト97"]
[null,null,101,"CV-DataBaseスーパー呼び出し印刷命令リスト98"]
[null,null,102,"CV-DataBaseスーパー呼び出し印刷命令リスト99"]
[null,null,103,"CV-DataBaseスーパー呼び出し印刷命令リスト100"]
[null,null,104]
[null,null,105]
[null,null,106]
[null,null,107]
[null,null,108]
[null,null,109]
[null,null,110]
[null,null,111]
[null,null,112]
[null,null,113]
[null,null,114]
[null,null,115]
[null,null,116]
[null,null,117]
[null,null,118]
[null,null,119]
[null,null,120]
[null,null,121]
[null,null,122]
[null,null,123]
[null,null,124]
[null,null,125]
[null,null,126]
[null,null,127]
[null,null,128]
[null,null,129]
[null,null,130]
[null,null,131]
[null,null,132]
[null,null,133]
[null,null,134]
[null,null,135]
[null,null,136]
[null,null,137]
[null,null,138]
[null,null,139]
[null,null,140]
[null,null,141]
[null,null,142]
[null,null,143]
[null,null,144]
[null,null,145]
[null,null,146]
[null,null,147]
[null,null,148]
[null,null,149]
[null,null,150]
[null,null,151]
[null,null,152]
[null,null,153]
[null,null,154]
[null,null,155]
[null,null,156]
[null,null,157]
[null,null,158]
[null,null,159]
[null,null,160]
[null,null,161]
[null,null,162]
[null,null,163]
[null,null,164]
[null,null,165]
[null,null,166]
[null,null,167]
[null,null,168]
[null,null,169]
[null,null,170]
[null,null,171]
[null,null,172]
[null,null,173]
[null,null,174]
[null,null,175]
[null,null,176]
[null,null,177]
[null,null,178]
[null,null,179]
[null,null,180]
[null,null,181]
[null,null,182]
[null,null,183]
[null,null,184]
[null,null,185]
[null,null,186]
[null,null,187]
[null,null,188]
[null,null,189]
[null,null,190]
[null,null,191]
[null,null,192]
[null,null,193]
[null,null,194]
[null,null,195]
[null,null,196]
[null,null,197]
[null,null,198]
[null,null,199]
[null,null,200]
[null,null,201]
[null,null,202]
[null,null,203]
[null,null,204]
[null,null,205]
[null,null,206]
[null,null,207]
[null,null,208]
[null,null,209]
[null,null,210]
[null,null,211]
[null,null,212]
[null,null,213]
[null,null,214]
[null,null,215]
[null,null,216]
[null,null,217]
[null,null,218]
[null,null,219]
[null,null,220]
[null,null,221]
[null,null,222]
[null,null,223]
[null,null,224]
[null,null,225]
[null,null,226]
[null,null,227]
[null,null,228]
[null,null,229]
[null,null,230]
[null,null,231]
[null,null,232]
[null,null,233]
[null,null,234]
[null,null,235]
[null,null,236]
[null,null,237]
[null,null,238]
[null,null,239]
[null,null,240]
[null,null,241]
[null,null,242]
[null,null,243]
[null,null,244]
[null,null,245]
[null,null,246]
[null,null,247]
[null,null,248]
[null,null,249]
[null,null,250]
[]
[]
[]
[]
[null,null,null,"BAB5D52235FC0COwner",3]
[null,null,null,"E4903057189AF4BA多田記一","2016cvdatabaseadvancesuupayobidasiinnsatuver1no2.xlsm"]

{"sheet":"既定シート現在名","index":3,"n_rows":302,"n_cols":5,"rows_kept":302,"cut":false,"hidden":false,"merged":[]}
[]
[]
[]
[null,null,null,{"$f":"シート名設定!D8","v":"既定シート現在名"}]
[]
[null,null,"NO","シート名"]
[null,null,1,"シート名設定"]
[null,null,2,"既定シート現在名"]
[null,null,3,"インターフェース画面設定"]
[null,null,4,"CV-DataBaseスーパー呼び出し印刷命令リスト1"]
[null,null,5,"CV-DataBaseスーパー呼び出し印刷命令リスト2"]
[null,null,6,"CV-DataBaseスーパー呼び出し印刷命令リスト3"]
[null,null,7,"CV-DataBaseスーパー呼び出し印刷命令リスト4"]
[null,null,8,"CV-DataBaseスーパー呼び出し印刷命令リスト5"]
[null,null,9,"CV-DataBaseスーパー呼び出し印刷命令リスト6"]
[null,null,10,"CV-DataBaseスーパー呼び出し印刷命令リスト7"]
[null,null,11,"CV-DataBaseスーパー呼び出し印刷命令リスト8"]
[null,null,12,"CV-DataBaseスーパー呼び出し印刷命令リスト9"]
[null,null,13,"CV-DataBaseスーパー呼び出し印刷命令リスト10"]
[null,null,14,"CV-DataBaseスーパー呼び出し印刷命令リスト11"]
[null,null,15,"CV-DataBaseスーパー呼び出し印刷命令リスト12"]
[null,null,16,"CV-DataBaseスーパー呼び出し印刷命令リスト13"]
[null,null,17,"CV-DataBaseスーパー呼び出し印刷命令リスト14"]
[null,null,18,"CV-DataBaseスーパー呼び出し印刷命令リスト15"]
[null,null,19,"CV-DataBaseスーパー呼び出し印刷命令リスト16"]
[null,null,20,"CV-DataBaseスーパー呼び出し印刷命令リスト17"]
[null,null,21,"CV-DataBaseスーパー呼び出し印刷命令リスト18"]
[null,null,22,"CV-DataBaseスーパー呼び出し印刷命令リスト19"]
[null,null,23,"CV-DataBaseスーパー呼び出し印刷命令リスト20"]
[null,null,24,"CV-DataBaseスーパー呼び出し印刷命令リスト21"]
[null,null,25,"CV-DataBaseスーパー呼び出し印刷命令リスト22"]
[null,null,26,"CV-DataBaseスーパー呼び出し印刷命令リスト23"]
[null,null,27,"CV-DataBaseスーパー呼び出し印刷命令リスト24"]
[null,null,28,"CV-DataBaseスーパー呼び出し印刷命令リスト25"]
[null,null,29,"CV-DataBaseスーパー呼び出し印刷命令リスト26"]
[null,null,30,"CV-DataBaseスーパー呼び出し印刷命令リスト27"]
[null,null,31,"CV-DataBaseスーパー呼び出し印刷命令リスト28"]
[null,null,32,"CV-DataBaseスーパー呼び出し印刷命令リスト29"]
[null,null,33,"CV-DataBaseスーパー呼び出し印刷命令リスト30"]
[null,null,34,"CV-DataBaseスーパー呼び出し印刷命令リスト31"]
[null,null,35,"CV-DataBaseスーパー呼び出し印刷命令リスト32"]
[null,null,36,"CV-DataBaseスーパー呼び出し印刷命令リスト33"]
[null,null,37,"CV-DataBaseスーパー呼び出し印刷命令リスト34"]
[null,null,38,"CV-DataBaseスーパー呼び出し印刷命令リスト35"]
[null,null,39,"CV-DataBaseスーパー呼び出し印刷命令リスト36"]
[null,null,40,"CV-DataBaseスーパー呼び出し印刷命令リスト37"]
[null,null,41,"CV-DataBaseスーパー呼び出し印刷命令リスト38"]
[null,null,42,"CV-DataBaseスーパー呼び出し印刷命令リスト39"]
[null,null,43,"CV-DataBaseスーパー呼び出し印刷命令リスト40"]
[null,null,44,"CV-DataBaseスーパー呼び出し印刷命令リスト41"]
[null,null,45,"CV-DataBaseスーパー呼び出し印刷命令リスト42"]
[null,null,46,"CV-DataBaseスーパー呼び出し印刷命令リスト43"]
[null,null,47,"CV-DataBaseスーパー呼び出し印刷命令リスト44"]
[null,null,48,"CV-DataBaseスーパー呼び出し印刷命令リスト45"]
[null,null,49,"CV-DataBaseスーパー呼び出し印刷命令リスト46"]
[null,null,50,"CV-DataBaseスーパー呼び出し印刷命令リスト47"]
[null,null,51,"CV-DataBaseスーパー呼び出し印刷命令リスト48"]
[null,null,52,"CV-DataBaseスーパー呼び出し印刷命令リスト49"]
[null,null,53,"CV-DataBaseスーパー呼び出し印刷命令リスト50"]
[null,null,54,"CV-DataBaseスーパー呼び出し印刷命令リスト51"]
[null,null,55,"CV-DataBaseスーパー呼び出し印刷命令リスト52"]
[null,null,56,"CV-DataBaseスーパー呼び出し印刷命令リスト53"]
[null,null,57,"CV-DataBaseスーパー呼び出し印刷命令リスト54"]
[null,null,58,"CV-DataBaseスーパー呼び出し印刷命令リスト55"]
[null,null,59,"CV-DataBaseスーパー呼び出し印刷命令リスト56"]
[null,null,60,"CV-DataBaseスーパー呼び出し印刷命令リスト57"]
[null,null,61,"CV-DataBaseスーパー呼び出し印刷命令リスト58"]
[null,null,62,"CV-DataBaseスーパー呼び出し印刷命令リスト59"]
[null,null,63,"CV-DataBaseスーパー呼び出し印刷命令リスト60"]
[null,null,64,"CV-DataBaseスーパー呼び出し印刷命令リスト61"]
[null,null,65,"CV-DataBaseスーパー呼び出し印刷命令リスト62"]
[null,null,66,"CV-DataBaseスーパー呼び出し印刷命令リスト63"]
[null,null,67,"CV-DataBaseスーパー呼び出し印刷命令リスト64"]
[null,null,68,"CV-DataBaseスーパー呼び出し印刷命令リスト65"]
[null,null,69,"CV-DataBaseスーパー呼び出し印刷命令リスト66"]
[null,null,70,"CV-DataBaseスーパー呼び出し印刷命令リスト67"]
[null,null,71,"CV-DataBaseスーパー呼び出し印刷命令リスト68"]
[null,null,72,"CV-DataBaseスーパー呼び出し印刷命令リスト69"]
[null,null,73,"CV-DataBaseスーパー呼び出し印刷命令リスト70"]
[null,null,74,"CV-DataBaseスーパー呼び出し印刷命令リスト71"]
[null,null,75,"CV-DataBaseスーパー呼び出し印刷命令リスト72"]
[null,null,76,"CV-DataBaseスーパー呼び出し印刷命令リスト73"]
[null,null,77,"CV-DataBaseスーパー呼び出し印刷命令リスト74"]
[null,null,78,"CV-DataBaseスーパー呼び出し印刷命令リスト75"]
[null,null,79,"CV-DataBaseスーパー呼び出し印刷命令リスト76"]
[null,null,80,"CV-DataBaseスーパー呼び出し印刷命令リスト77"]
[null,null,81,"CV-DataBaseスーパー呼び出し印刷命令リスト78"]
[null,null,82,"CV-DataBaseスーパー呼び出し印刷命令リスト79"]
[null,null,83,"CV-DataBaseスーパー呼び出し印刷命令リスト80"]
[null,null,84,"CV-DataBaseスーパー呼び出し印刷命令リスト81"]
[null,null,85,"CV-DataBaseスーパー呼び出し印刷命令リスト82"]
[null,null,86,"CV-DataBaseスーパー呼び出し印刷命令リスト83"]
[null,null,87,"CV-DataBaseスーパー呼び出し印刷命令リスト84"]
[null,null,88,"CV-DataBaseスーパー呼び出し印刷命令リスト85"]
[null,null,89,"CV-DataBaseスーパー呼び出し印刷命令リスト86"]
[null,null,90,"CV-DataBaseスーパー呼び出し印刷命令リスト87"]
[null,null,91,"CV-DataBaseスーパー呼び出し印刷命令リスト88"]
[null,null,92,"CV-DataBaseスーパー呼び出し印刷命令リスト89"]
[null,null,93,"CV-DataBaseスーパー呼び出し印刷命令リスト90"]
[null,null,94,"CV-DataBaseスーパー呼び出し印刷命令リスト91"]
[null,null,95,"CV-DataBaseスーパー呼び出し印刷命令リスト92"]
[null,null,96,"CV-DataBaseスーパー呼び出し印刷命令リスト93"]
[null,null,97,"CV-DataBaseスーパー呼び出し印刷命令リスト94"]
[null,null,98,"CV-DataBaseスーパー呼び出し印刷命令リスト95"]
[null,null,99,"CV-DataBaseスーパー呼び出し印刷命令リスト96"]
[null,null,100,"CV-DataBaseスーパー呼び出し印刷命令リスト97"]
[null,null,101,"CV-DataBaseスーパー呼び出し印刷命令リスト98"]
[null,null,102,"CV-DataBaseスーパー呼び出し印刷命令リスト99"]
[null,null,103,"CV-DataBaseスーパー呼び出し印刷命令リスト100"]
[null,null,104]
[null,null,105]
[null,null,106]
[null,null,107]
[null,null,108]
[null,null,109]
[null,null,110]
[null,null,111]
[null,null,112]
[null,null,113]
[null,null,114]
[null,null,115]
[null,null,116]
[null,null,117]
[null,null,118]
[null,null,119]
[null,null,120]
[null,null,121]
[null,null,122]
[null,null,123]
[null,null,124]
[null,null,125]
[null,null,126]
[null,null,127]
[null,null,128]
[null,null,129]
[null,null,130]
[null,null,131]
[null,null,132]
[null,null,133]
[null,null,134]
[null,null,135]
[null,null,136]
[null,null,137]
[null,null,138]
[null,null,139]
[null,null,140]
[null,null,141]
[null,null,142]
[null,null,143]
[null,null,144]
[null,null,145]
[null,null,146]
[null,null,147]
[null,null,148]
[null,null,149]
[null,null,150]
[null,null,151]
[null,null,152]
[null,null,153]
[null,null,154]
[null,null,155]
[null,null,156]
[null,null,157]
[null,null,158]
[null,null,159]
[null,null,160]
[null,null,161]
[null,null,162]
[null,null,163]
[null,null,164]
[null,null,165]
[null,null,166]
[null,null,167]
[null,null,168]
[null,null,169]
[null,null,170]
[null,null,171]
[null,null,172]
[null,null,173]
[null,null,174]
[null,null,175]
[null,null,176]
[null,null,177]
[null,null,178]
[null,null,179]
[null,null,180]
[null,null,181]
[null,null,182]
[null,null,183]
[null,null,184]
[null,null,185]
[null,null,186]
[null,null,187]
[null,null,188]
[null,null,189]
[null,null,190]
[null,null,191]
[null,null,192]
[null,null,193]
[null,null,194]
[null,null,195]
[null,null,196]
[null,null,197]
[null,null,198]
[null,null,199]
[null,null,200]
[null,null,201]
[null,null,202]
[null,null,203]
[null,null,204]
[null,null,205]
[null,null,206]
[null,null,207]
[null,null,208]
[null,null,209]
[null,null,210]
[null,null,211]
[null,null,212]
[null,null,213]
[null,null,214]
[null,null,215]
[null,null,216]
[null,null,217]
[null,null,218]
[null,null,219]
[null,null,220]
[null,null,221]
[null,null,222]
[null,null,223]
[null,null,224]
[null,null,225]
[null,null,226]
[null,null,227]
[null,null,228]
[null,null,229]
[null,null,230]
[null,null,231]
[null,null,232]
[null,null,233]
[null,null,234]
[null,null,235]
[null,null,236]
[null,null,237]
[null,null,238]
[null,null,239]
[null,null,240]
[null,null,241]
[null,null,242]
[null,null,243]
[null,null,244]
[null,null,245]
[null,null,246]
[null,null,247]
[null,null,248]
[null,null,249]
[null,null,250]
[]
[]
[]
[]
[null,null,null,null,{"$f":"IF(ISERROR(シート名設定!D6)=TRUE,1,0)","v":0}]
[]
[]
[]
[]
[]
[]
[]
[]
[]
[]
[]
[]
[]
[]
[]
[]
[]
[]
[]
[]
[]
[]
[]
[]
[]
[]
[]
[]
[]
[]
[]
[]
[]
[]
[]
[]
[]
[]
[]
[null,null,null,{"$f":"IF(ISERROR(シート名設定!C4)=TRUE,1,0)","v":0}]
[null,null,null,{"$f":"IF(ISERROR(Sheet1!C5)=TRUE,1,0)","v":0}]

{"sheet":"標準シート名","index":4,"n_rows":256,"n_cols":4,"rows_kept":256,"cut":false,"hidden":false,"merged":[]}
[]
[]
[]
[null,null,null,"標準シート名"]
[]
[null,null,"NO","シート名"]
[null,null,1,"シート名設定"]
[null,null,2,"既定シート現在名"]
[null,null,3,"インターフェース画面設定"]
[null,null,4,"CV-DataBaseスーパー呼び出し印刷命令リスト1"]
[null,null,5,"CV-DataBaseスーパー呼び出し印刷命令リスト2"]
[null,null,6,"CV-DataBaseスーパー呼び出し印刷命令リスト3"]
[null,null,7,"CV-DataBaseスーパー呼び出し印刷命令リスト4"]
[null,null,8,"CV-DataBaseスーパー呼び出し印刷命令リスト5"]
[null,null,9,"CV-DataBaseスーパー呼び出し印刷命令リスト6"]
[null,null,10,"CV-DataBaseスーパー呼び出し印刷命令リスト7"]
[null,null,11,"CV-DataBaseスーパー呼び出し印刷命令リスト8"]
[null,null,12,"CV-DataBaseスーパー呼び出し印刷命令リスト9"]
[null,null,13,"CV-DataBaseスーパー呼び出し印刷命令リスト10"]
[null,null,14,"CV-DataBaseスーパー呼び出し印刷命令リスト11"]
[null,null,15,"CV-DataBaseスーパー呼び出し印刷命令リスト12"]
[null,null,16,"CV-DataBaseスーパー呼び出し印刷命令リスト13"]
[null,null,17,"CV-DataBaseスーパー呼び出し印刷命令リスト14"]
[null,null,18,"CV-DataBaseスーパー呼び出し印刷命令リスト15"]
[null,null,19,"CV-DataBaseスーパー呼び出し印刷命令リスト16"]
[null,null,20,"CV-DataBaseスーパー呼び出し印刷命令リスト17"]
[null,null,21,"CV-DataBaseスーパー呼び出し印刷命令リスト18"]
[null,null,22,"CV-DataBaseスーパー呼び出し印刷命令リスト19"]
[null,null,23,"CV-DataBaseスーパー呼び出し印刷命令リスト20"]
[null,null,24,"CV-DataBaseスーパー呼び出し印刷命令リスト21"]
[null,null,25,"CV-DataBaseスーパー呼び出し印刷命令リスト22"]
[null,null,26,"CV-DataBaseスーパー呼び出し印刷命令リスト23"]
[null,null,27,"CV-DataBaseスーパー呼び出し印刷命令リスト24"]
[null,null,28,"CV-DataBaseスーパー呼び出し印刷命令リスト25"]
[null,null,29,"CV-DataBaseスーパー呼び出し印刷命令リスト26"]
[null,null,30,"CV-DataBaseスーパー呼び出し印刷命令リスト27"]
[null,null,31,"CV-DataBaseスーパー呼び出し印刷命令リスト28"]
[null,null,32,"CV-DataBaseスーパー呼び出し印刷命令リスト29"]
[null,null,33,"CV-DataBaseスーパー呼び出し印刷命令リスト30"]
[null,null,34,"CV-DataBaseスーパー呼び出し印刷命令リスト31"]
[null,null,35,"CV-DataBaseスーパー呼び出し印刷命令リスト32"]
[null,null,36,"CV-DataBaseスーパー呼び出し印刷命令リスト33"]
[null,null,37,"CV-DataBaseスーパー呼び出し印刷命令リスト34"]
[null,null,38,"CV-DataBaseスーパー呼び出し印刷命令リスト35"]
[null,null,39,"CV-DataBaseスーパー呼び出し印刷命令リスト36"]
[null,null,40,"CV-DataBaseスーパー呼び出し印刷命令リスト37"]
[null,null,41,"CV-DataBaseスーパー呼び出し印刷命令リスト38"]
[null,null,42,"CV-DataBaseスーパー呼び出し印刷命令リスト39"]
[null,null,43,"CV-DataBaseスーパー呼び出し印刷命令リスト40"]
[null,null,44,"CV-DataBaseスーパー呼び出し印刷命令リスト41"]
[null,null,45,"CV-DataBaseスーパー呼び出し印刷命令リスト42"]
[null,null,46,"CV-DataBaseスーパー呼び出し印刷命令リスト43"]
[null,null,47,"CV-DataBaseスーパー呼び出し印刷命令リスト44"]
[null,null,48,"CV-DataBaseスーパー呼び出し印刷命令リスト45"]
[null,null,49,"CV-DataBaseスーパー呼び出し印刷命令リスト46"]
[null,null,50,"CV-DataBaseスーパー呼び出し印刷命令リスト47"]
[null,null,51,"CV-DataBaseスーパー呼び出し印刷命令リスト48"]
[null,null,52,"CV-DataBaseスーパー呼び出し印刷命令リスト49"]
[null,null,53,"CV-DataBaseスーパー呼び出し印刷命令リスト50"]
[null,null,54,"CV-DataBaseスーパー呼び出し印刷命令リスト51"]
[null,null,55,"CV-DataBaseスーパー呼び出し印刷命令リスト52"]
[null,null,56,"CV-DataBaseスーパー呼び出し印刷命令リスト53"]
[null,null,57,"CV-DataBaseスーパー呼び出し印刷命令リスト54"]
[null,null,58,"CV-DataBaseスーパー呼び出し印刷命令リスト55"]
[null,null,59,"CV-DataBaseスーパー呼び出し印刷命令リスト56"]
[null,null,60,"CV-DataBaseスーパー呼び出し印刷命令リスト57"]
[null,null,61,"CV-DataBaseスーパー呼び出し印刷命令リスト58"]
[null,null,62,"CV-DataBaseスーパー呼び出し印刷命令リスト59"]
[null,null,63,"CV-DataBaseスーパー呼び出し印刷命令リスト60"]
[null,null,64,"CV-DataBaseスーパー呼び出し印刷命令リスト61"]
[null,null,65,"CV-DataBaseスーパー呼び出し印刷命令リスト62"]
[null,null,66,"CV-DataBaseスーパー呼び出し印刷命令リスト63"]
[null,null,67,"CV-DataBaseスーパー呼び出し印刷命令リスト64"]
[null,null,68,"CV-DataBaseスーパー呼び出し印刷命令リスト65"]
[null,null,69,"CV-DataBaseスーパー呼び出し印刷命令リスト66"]
[null,null,70,"CV-DataBaseスーパー呼び出し印刷命令リスト67"]
[null,null,71,"CV-DataBaseスーパー呼び出し印刷命令リスト68"]
[null,null,72,"CV-DataBaseスーパー呼び出し印刷命令リスト69"]
[null,null,73,"CV-DataBaseスーパー呼び出し印刷命令リスト70"]
[null,null,74,"CV-DataBaseスーパー呼び出し印刷命令リスト71"]
[null,null,75,"CV-DataBaseスーパー呼び出し印刷命令リスト72"]
[null,null,76,"CV-DataBaseスーパー呼び出し印刷命令リスト73"]
[null,null,77,"CV-DataBaseスーパー呼び出し印刷命令リスト74"]
[null,null,78,"CV-DataBaseスーパー呼び出し印刷命令リスト75"]
[null,null,79,"CV-DataBaseスーパー呼び出し印刷命令リスト76"]
[null,null,80,"CV-DataBaseスーパー呼び出し印刷命令リスト77"]
[null,null,81,"CV-DataBaseスーパー呼び出し印刷命令リスト78"]
[null,null,82,"CV-DataBaseスーパー呼び出し印刷命令リスト79"]
[null,null,83,"CV-DataBaseスーパー呼び出し印刷命令リスト80"]
[null,null,84,"CV-DataBaseスーパー呼び出し印刷命令リスト81"]
[null,null,85,"CV-DataBaseスーパー呼び出し印刷命令リスト82"]
[null,null,86,"CV-DataBaseスーパー呼び出し印刷命令リスト83"]
[null,null,87,"CV-DataBaseスーパー呼び出し印刷命令リスト84"]
[null,null,88,"CV-DataBaseスーパー呼び出し印刷命令リスト85"]
[null,null,89,"CV-DataBaseスーパー呼び出し印刷命令リスト86"]
[null,null,90,"CV-DataBaseスーパー呼び出し印刷命令リスト87"]
[null,null,91,"CV-DataBaseスーパー呼び出し印刷命令リスト88"]
[null,null,92,"CV-DataBaseスーパー呼び出し印刷命令リスト89"]
[null,null,93,"CV-DataBaseスーパー呼び出し印刷命令リスト90"]
[null,null,94,"CV-DataBaseスーパー呼び出し印刷命令リスト91"]
[null,null,95,"CV-DataBaseスーパー呼び出し印刷命令リスト92"]
[null,null,96,"CV-DataBaseスーパー呼び出し印刷命令リスト93"]
[null,null,97,"CV-DataBaseスーパー呼び出し印刷命令リスト94"]
[null,null,98,"CV-DataBaseスーパー呼び出し印刷命令リスト95"]
[null,null,99,"CV-DataBaseスーパー呼び出し印刷命令リスト96"]
[null,null,100,"CV-DataBaseスーパー呼び出し印刷命令リスト97"]
[null,null,101,"CV-DataBaseスーパー呼び出し印刷命令リスト98"]
[null,null,102,"CV-DataBaseスーパー呼び出し印刷命令リスト99"]
[null,null,103,"CV-DataBaseスーパー呼び出し印刷命令リスト100"]
[null,null,104]
[null,null,105]
[null,null,106]
[null,null,107]
[null,null,108]
[null,null,109]
[null,null,110]
[null,null,111]
[null,null,112]
[null,null,113]
[null,null,114]
[null,null,115]
[null,null,116]
[null,null,117]
[null,null,118]
[null,null,119]
[null,null,120]
[null,null,121]
[null,null,122]
[null,null,123]
[null,null,124]
[null,null,125]
[null,null,126]
[null,null,127]
[null,null,128]
[null,null,129]
[null,null,130]
[null,null,131]
[null,null,132]
[null,null,133]
[null,null,134]
[null,null,135]
[null,null,136]
[null,null,137]
[null,null,138]
[null,null,139]
[null,null,140]
[null,null,141]
[null,null,142]
[null,null,143]
[null,null,144]
[null,null,145]
[null,null,146]
[null,null,147]
[null,null,148]
[null,null,149]
[null,null,150]
[null,null,151]
[null,null,152]
[null,null,153]
[null,null,154]
[null,null,155]
[null,null,156]
[null,null,157]
[null,null,158]
[null,null,159]
[null,null,160]
[null,null,161]
[null,null,162]
[null,null,163]
[null,null,164]
[null,null,165]
[null,null,166]
[null,null,167]
[null,null,168]
[null,null,169]
[null,null,170]
[null,null,171]
[null,null,172]
[null,null,173]
[null,null,174]
[null,null,175]
[null,null,176]
[null,null,177]
[null,null,178]
[null,null,179]
[null,null,180]
[null,null,181]
[null,null,182]
[null,null,183]
[null,null,184]
[null,null,185]
[null,null,186]
[null,null,187]
[null,null,188]
[null,null,189]
[null,null,190]
[null,null,191]
[null,null,192]
[null,null,193]
[null,null,194]
[null,null,195]
[null,null,196]
[null,null,197]
[null,null,198]
[null,null,199]
[null,null,200]
[null,null,201]
[null,null,202]
[null,null,203]
[null,null,204]
[null,null,205]
[null,null,206]
[null,null,207]
[null,null,208]
[null,null,209]
[null,null,210]
[null,null,211]
[null,null,212]
[null,null,213]
[null,null,214]
[null,null,215]
[null,null,216]
[null,null,217]
[null,null,218]
[null,null,219]
[null,null,220]
[null,null,221]
[null,null,222]
[null,null,223]
[null,null,224]
[null,null,225]
[null,null,226]
[null,null,227]
[null,null,228]
[null,null,229]
[null,null,230]
[null,null,231]
[null,null,232]
[null,null,233]
[null,null,234]
[null,null,235]
[null,null,236]
[null,null,237]
[null,null,238]
[null,null,239]
[null,null,240]
[null,null,241]
[null,null,242]
[null,null,243]
[null,null,244]
[null,null,245]
[null,null,246]
[null,null,247]
[null,null,248]
[null,null,249]
[null,null,250]

{"sheet":"インターフェース画面設定","index":5,"n_rows":8,"n_cols":9,"rows_kept":8,"cut":false,"hidden":false,"merged":[[1,1,1,2]]}
[]
[null,{"$f":"シート名設定!D9","v":"インターフェース画面設定"}]
[]
[null,"設定項目","設定値",3]
[null,"画面高さ",{"$f":"IF(D$4=1,D5,IF(D$4=2,E5,IF(D$4=3,F5,IF(D$4=4,G5,IF(D$4=5,H5,IF(D$4=6,I5,I5))))))","v":810},810,810,{"$f":"E5","v":810},{"$f":"D5*G$8","v":810},{"$f":"E5*H$8","v":810},750]
[null,"画面幅",{"$f":"IF(D$4=1,D6,IF(D$4=2,E6,IF(D$4=3,F6,IF(D$4=4,G6,IF(D$4=5,H6,IF(D$4=6,I6,I6))))))","v":1440},964.80000000000007,1440,{"$f":"E6","v":1440},{"$f":"D6*G$8","v":964.80000000000007},1440,1200]
[null,"画面Zoom",97,94,100,97,94,100,87]
[null,null,null,null,null,"表示倍率",1,1]

{"sheet":"CV-DataBaseスーパー呼び出し印刷命令リスト1","index":6,"n_rows":0,"n_cols":0,"rows_kept":0,"cut":false,"hidden":false,"merged":[],"read":"part_too_large"}

{"sheet":"CV-DataBaseスーパー呼び出し印刷命令リスト2","index":7,"n_rows":20,"n_cols":21,"rows_kept":20,"cut":false,"hidden":false,"merged":[[13,12,13,14],[13,15,13,17],[13,18,13,20],[13,2,14,2],[13,3,13,5],[13,6,13,8],[13,9,13,11]]}
[]
[]
[null,null,null,{"$f":"シート名設定!D11","v":"CV-DataBaseスーパー呼び出し印刷命令リスト2"}]
[null,null,"1．ループ呼び出し設定"]
[]
[null,null,null,"設定項目","設定値"]
[null,null,null,"呼び出しファイル，実行マクロ先頭行番号",1]
[null,null,null,"呼び出しファイル，実行マクロ最終行番号",3]
[null,null,null,"呼び出しファイル，実行マクロ先頭群番号",1]
[null,null,null,"呼び出しファイル，実行マクロ最終群番号",2]
[]
[null,null,"２．CV-DataBaseスーパー呼び出し印刷命令リスト設定"]
[]
[null,null,"行番号","実行マクロ群1",null,null,"実行マクロ群２",null,null,"実行マクロ群３",null,null,"実行マクロ群４",null,null,"実行マクロ群５",null,null,"実行マクロ群６"]
[null,null,null,"呼び出しファイルのディレクトリ","ファイル名","実行マクロ名","呼び出しファイルのディレクトリ","ファイル名","実行マクロ名","呼び出しファイルのディレクトリ","ファイル名","実行マクロ名","呼び出しファイルのディレクトリ","ファイル名","実行マクロ名","呼び出しファイルのディレクトリ","ファイル名","実行マクロ名","呼び出しファイルのディレクトリ","ファイル名","実行マクロ名"]
[null,null,1,"D:\\MySystem\\MyDataBaseWideNewLast改訂\\2013版年度入り\\未許可\\エクセルファイル登録番号自動入力コンピュータ２台リリース配布版\\","2013CV-DataBaseAdvance呼び出し印刷Ver1（コンピュータ２台リリース配布版）.xlsm"," CVDataBase呼び出し印刷命令リスト1","D:\\MySystem\\MyDataBaseWideNewLast改訂\\2013版年度入り\\未許可\\エクセルファイル登録番号自動入力コンピュータ２台リリース配布版\\","2013CV-DataBaseAdvance呼び出し印刷Ver1（コンピュータ２台リリース配布版）.xlsm"," CVDataBase呼び出し印刷命令リスト1"]
[null,null,2,"D:\\MySystem\\MyDataBaseWideNewLast改訂\\2013版年度入り\\未許可\\エクセルファイル登録番号自動入力コンピュータ２台リリース配布版\\","2013CV-DataBaseAdvance呼び出し印刷Ver1（コンピュータ２台リリース配布版）.xlsm"," CVDataBase呼び出し印刷命令リスト2","D:\\MySystem\\MyDataBaseWideNewLast改訂\\2013版年度入り\\未許可\\エクセルファイル登録番号自動入力コンピュータ２台リリース配布版\\","2013CV-DataBaseAdvance呼び出し印刷Ver1（コンピュータ２台リリース配布版）.xlsm"," CVDataBase呼び出し印刷命令リスト2"]
[null,null,3,"D:\\MySystem\\MyDataBaseWideNewLast改訂\\2013版年度入り\\未許可\\エクセルファイル登録番号自動入力コンピュータ２台リリース配布版\\","2013CV-DataBaseAdvance呼び出し印刷Ver1（コンピュータ２台リリース配布版）.xlsm"," CVDataBase呼び出し印刷命令リスト3","D:\\MySystem\\MyDataBaseWideNewLast改訂\\2013版年度入り\\未許可\\エクセルファイル登録番号自動入力コンピュータ２台リリース配布版\\","2013CV-DataBaseAdvance呼び出し印刷Ver1（コンピュータ２台リリース配布版）.xlsm"," CVDataBase呼び出し印刷命令リスト3"]
[null,null,4]
[null,null,5]

{"sheet":"CV-DataBaseスーパー呼び出し印刷命令リスト3","index":8,"n_rows":20,"n_cols":21,"rows_kept":20,"cut":false,"hidden":false,"merged":[[13,12,13,14],[13,15,13,17],[13,18,13,20],[13,2,14,2],[13,3,13,5],[13,6,13,8],[13,9,13,11]]}
[]
[]
[null,null,null,{"$f":"シート名設定!D12","v":"CV-DataBaseスーパー呼び出し印刷命令リスト3"}]
[null,null,"1．ループ呼び出し設定"]
[]
[null,null,null,"設定項目","設定値"]
[null,null,null,"呼び出しファイル，実行マクロ先頭行番号"]
[null,null,null,"呼び出しファイル，実行マクロ最終行番号"]
[null,null,null,"呼び出しファイル，実行マクロ先頭群番号"]
[null,null,null,"呼び出しファイル，実行マクロ最終群番号"]
[]
[null,null,"２．CV-DataBaseスーパー呼び出し印刷命令リスト設定"]
[]
[null,null,"行番号","実行マクロ群1",null,null,"実行マクロ群２",null,null,"実行マクロ群３",null,null,"実行マクロ群４",null,null,"実行マクロ群５",null,null,"実行マクロ群６"]
[null,null,null,"呼び出しファイルのディレクトリ","ファイル名","実行マクロ名","呼び出しファイルのディレクトリ","ファイル名","実行マクロ名","呼び出しファイルのディレクトリ","ファイル名","実行マクロ名","呼び出しファイルのディレクトリ","ファイル名","実行マクロ名","呼び出しファイルのディレクトリ","ファイル名","実行マクロ名","呼び出しファイルのディレクトリ","ファイル名","実行マクロ名"]
[null,null,1]
[null,null,2]
[null,null,3]
[null,null,4]
[null,null,5]

{"sheet":"CV-DataBaseスーパー呼び出し印刷命令リスト4","index":9,"n_rows":20,"n_cols":21,"rows_kept":20,"cut":false,"hidden":false,"merged":[[13,12,13,14],[13,15,13,17],[13,18,13,20],[13,2,14,2],[13,3,13,5],[13,6,13,8],[13,9,13,11]]}
[]
[]
[null,null,null,{"$f":"シート名設定!D13","v":"CV-DataBaseスーパー呼び出し印刷命令リスト4"}]
[null,null,"1．ループ呼び出し設定"]
[]
[null,null,null,"設定項目","設定値"]
[null,null,null,"呼び出しファイル，実行マクロ先頭行番号"]
[null,null,null,"呼び出しファイル，実行マクロ最終行番号"]
[null,null,null,"呼び出しファイル，実行マクロ先頭群番号"]
[null,null,null,"呼び出しファイル，実行マクロ最終群番号"]
[]
[null,null,"２．CV-DataBaseスーパー呼び出し印刷命令リスト設定"]
[]
[null,null,"行番号","実行マクロ群1",null,null,"実行マクロ群２",null,null,"実行マクロ群３",null,null,"実行マクロ群４",null,null,"実行マクロ群５",null,null,"実行マクロ群６"]
[null,null,null,"呼び出しファイルのディレクトリ","ファイル名","実行マクロ名","呼び出しファイルのディレクトリ","ファイル名","実行マクロ名","呼び出しファイルのディレクトリ","ファイル名","実行マクロ名","呼び出しファイルのディレクトリ","ファイル名","実行マクロ名","呼び出しファイルのディレクトリ","ファイル名","実行マクロ名","呼び出しファイルのディレクトリ","ファイル名","実行マクロ名"]
[null,null,1]
[null,null,2]
[null,null,3]
[null,null,4]
[null,null,5]

{"sheet":"CV-DataBaseスーパー呼び出し印刷命令リスト5","index":10,"n_rows":20,"n_cols":21,"rows_kept":20,"cut":false,"hidden":false,"merged":[[13,12,13,14],[13,15,13,17],[13,18,13,20],[13,2,14,2],[13,3,13,5],[13,6,13,8],[13,9,13,11]]}
[]
[]
[null,null,null,{"$f":"シート名設定!D14","v":"CV-DataBaseスーパー呼び出し印刷命令リスト5"}]
[null,null,"1．ループ呼び出し設定"]
[]
[null,null,null,"設定項目","設定値"]
[null,null,null,"呼び出しファイル，実行マクロ先頭行番号"]
[null,null,null,"呼び出しファイル，実行マクロ最終行番号"]
[null,null,null,"呼び出しファイル，実行マクロ先頭群番号"]
[null,null,null,"呼び出しファイル，実行マクロ最終群番号"]
[]
[null,null,"２．CV-DataBaseスーパー呼び出し印刷命令リスト設定"]
[]
[null,null,"行番号","実行マクロ群1",null,null,"実行マクロ群２",null,null,"実行マクロ群３",null,null,"実行マクロ群４",null,null,"実行マクロ群５",null,null,"実行マクロ群６"]
[null,null,null,"呼び出しファイルのディレクトリ","ファイル名","実行マクロ名","呼び出しファイルのディレクトリ","ファイル名","実行マクロ名","呼び出しファイルのディレクトリ","ファイル名","実行マクロ名","呼び出しファイルのディレクトリ","ファイル名","実行マクロ名","呼び出しファイルのディレクトリ","ファイル名","実行マクロ名","呼び出しファイルのディレクトリ","ファイル名","実行マクロ名"]
[null,null,1]
[null,null,2]
[null,null,3]
[null,null,4]
[null,null,5]

{"sheet":"CV-DataBaseスーパー呼び出し印刷命令リスト6","index":11,"n_rows":20,"n_cols":21,"rows_kept":20,"cut":false,"hidden":false,"merged":[[13,12,13,14],[13,15,13,17],[13,18,13,20],[13,2,14,2],[13,3,13,5],[13,6,13,8],[13,9,13,11]]}
[]
[]
[null,null,null,{"$f":"シート名設定!D15","v":"CV-DataBaseスーパー呼び出し印刷命令リスト6"}]
[null,null,"1．ループ呼び出し設定"]
[]
[null,null,null,"設定項目","設定値"]
[null,null,null,"呼び出しファイル，実行マクロ先頭行番号"]
[null,null,null,"呼び出しファイル，実行マクロ最終行番号"]
[null,null,null,"呼び出しファイル，実行マクロ先頭群番号"]
[null,null,null,"呼び出しファイル，実行マクロ最終群番号"]
[]
[null,null,"２．CV-DataBaseスーパー呼び出し印刷命令リスト設定"]
[]
[null,null,"行番号","実行マクロ群1",null,null,"実行マクロ群２",null,null,"実行マクロ群３",null,null,"実行マクロ群４",null,null,"実行マクロ群５",null,null,"実行マクロ群６"]
[null,null,null,"呼び出しファイルのディレクトリ","ファイル名","実行マクロ名","呼び出しファイルのディレクトリ","ファイル名","実行マクロ名","呼び出しファイルのディレクトリ","ファイル名","実行マクロ名","呼び出しファイルのディレクトリ","ファイル名","実行マクロ名","呼び出しファイルのディレクトリ","ファイル名","実行マクロ名","呼び出しファイルのディレクトリ","ファイル名","実行マクロ名"]
[null,null,1]
[null,null,2]
[null,null,3]
[null,null,4]
[null,null,5]

{"sheet":"CV-DataBaseスーパー呼び出し印刷命令リスト7","index":12,"n_rows":20,"n_cols":21,"rows_kept":20,"cut":false,"hidden":false,"merged":[[13,12,13,14],[13,15,13,17],[13,18,13,20],[13,2,14,2],[13,3,13,5],[13,6,13,8],[13,9,13,11]]}
[]
[]
[null,null,null,{"$f":"シート名設定!D16","v":"CV-DataBaseスーパー呼び出し印刷命令リスト7"}]
[null,null,"1．ループ呼び出し設定"]
[]
[null,null,null,"設定項目","設定値"]
[null,null,null,"呼び出しファイル，実行マクロ先頭行番号"]
[null,null,null,"呼び出しファイル，実行マクロ最終行番号"]
[null,null,null,"呼び出しファイル，実行マクロ先頭群番号"]
[null,null,null,"呼び出しファイル，実行マクロ最終群番号"]
[]
[null,null,"２．CV-DataBaseスーパー呼び出し印刷命令リスト設定"]
[]
[null,null,"行番号","実行マクロ群1",null,null,"実行マクロ群２",null,null,"実行マクロ群３",null,null,"実行マクロ群４",null,null,"実行マクロ群５",null,null,"実行マクロ群６"]
[null,null,null,"呼び出しファイルのディレクトリ","ファイル名","実行マクロ名","呼び出しファイルのディレクトリ","ファイル名","実行マクロ名","呼び出しファイルのディレクトリ","ファイル名","実行マクロ名","呼び出しファイルのディレクトリ","ファイル名","実行マクロ名","呼び出しファイルのディレクトリ","ファイル名","実行マクロ名","呼び出しファイルのディレクトリ","ファイル名","実行マクロ名"]
[null,null,1]
[null,null,2]
[null,null,3]
[null,null,4]
[null,null,5]

{"sheet":"CV-DataBaseスーパー呼び出し印刷命令リスト8","index":13,"n_rows":20,"n_cols":21,"rows_kept":20,"cut":false,"hidden":false,"merged":[[13,12,13,14],[13,15,13,17],[13,18,13,20],[13,2,14,2],[13,3,13,5],[13,6,13,8],[13,9,13,11]]}
[]
[]
[null,null,null,{"$f":"シート名設定!D17","v":"CV-DataBaseスーパー呼び出し印刷命令リスト8"}]
[null,null,"1．ループ呼び出し設定"]
[]
[null,null,null,"設定項目","設定値"]
[null,null,null,"呼び出しファイル，実行マクロ先頭行番号"]
[null,null,null,"呼び出しファイル，実行マクロ最終行番号"]
[null,null,null,"呼び出しファイル，実行マクロ先頭群番号"]
[null,null,null,"呼び出しファイル，実行マクロ最終群番号"]
[]
[null,null,"２．CV-DataBaseスーパー呼び出し印刷命令リスト設定"]
[]
[null,null,"行番号","実行マクロ群1",null,null,"実行マクロ群２",null,null,"実行マクロ群３",null,null,"実行マクロ群４",null,null,"実行マクロ群５",null,null,"実行マクロ群６"]
[null,null,null,"呼び出しファイルのディレクトリ","ファイル名","実行マクロ名","呼び出しファイルのディレクトリ","ファイル名","実行マクロ名","呼び出しファイルのディレクトリ","ファイル名","実行マクロ名","呼び出しファイルのディレクトリ","ファイル名","実行マクロ名","呼び出しファイルのディレクトリ","ファイル名","実行マクロ名","呼び出しファイルのディレクトリ","ファイル名","実行マクロ名"]
[null,null,1]
[null,null,2]
[null,null,3]
[null,null,4]
[null,null,5]

{"sheet":"CV-DataBaseスーパー呼び出し印刷命令リスト9","index":14,"n_rows":20,"n_cols":21,"rows_kept":20,"cut":false,"hidden":false,"merged":[[13,12,13,14],[13,15,13,17],[13,18,13,20],[13,2,14,2],[13,3,13,5],[13,6,13,8],[13,9,13,11]]}
[]
[]
[null,null,null,{"$f":"シート名設定!D18","v":"CV-DataBaseスーパー呼び出し印刷命令リスト9"}]
[null,null,"1．ループ呼び出し設定"]
[]
[null,null,null,"設定項目","設定値"]
[null,null,null,"呼び出しファイル，実行マクロ先頭行番号"]
[null,null,null,"呼び出しファイル，実行マクロ最終行番号"]
[null,null,null,"呼び出しファイル，実行マクロ先頭群番号"]
[null,null,null,"呼び出しファイル，実行マクロ最終群番号"]
[]
[null,null,"２．CV-DataBaseスーパー呼び出し印刷命令リスト設定"]
[]
[null,null,"行番号","実行マクロ群1",null,null,"実行マクロ群２",null,null,"実行マクロ群３",null,null,"実行マクロ群４",null,null,"実行マクロ群５",null,null,"実行マクロ群６"]
[null,null,null,"呼び出しファイルのディレクトリ","ファイル名","実行マクロ名","呼び出しファイルのディレクトリ","ファイル名","実行マクロ名","呼び出しファイルのディレクトリ","ファイル名","実行マクロ名","呼び出しファイルのディレクトリ","ファイル名","実行マクロ名","呼び出しファイルのディレクトリ","ファイル名","実行マクロ名","呼び出しファイルのディレクトリ","ファイル名","実行マクロ名"]
[null,null,1]
[null,null,2]
[null,null,3]
[null,null,4]
[null,null,5]

{"sheet":"CV-DataBaseスーパー呼び出し印刷命令リスト10","index":15,"n_rows":20,"n_cols":21,"rows_kept":20,"cut":false,"hidden":false,"merged":[[13,12,13,14],[13,15,13,17],[13,18,13,20],[13,2,14,2],[13,3,13,5],[13,6,13,8],[13,9,13,11]]}
[]
[]
[null,null,null,{"$f":"シート名設定!D19","v":"CV-DataBaseスーパー呼び出し印刷命令リスト10"}]
[null,null,"1．ループ呼び出し設定"]
[]
[null,null,null,"設定項目","設定値"]
[null,null,null,"呼び出しファイル，実行マクロ先頭行番号"]
[null,null,null,"呼び出しファイル，実行マクロ最終行番号"]
[null,null,null,"呼び出しファイル，実行マクロ先頭群番号"]
[null,null,null,"呼び出しファイル，実行マクロ最終群番号"]
[]
[null,null,"２．CV-DataBaseスーパー呼び出し印刷命令リスト設定"]
[]
[null,null,"行番号","実行マクロ群1",null,null,"実行マクロ群２",null,null,"実行マクロ群３",null,null,"実行マクロ群４",null,null,"実行マクロ群５",null,null,"実行マクロ群６"]
[null,null,null,"呼び出しファイルのディレクトリ","ファイル名","実行マクロ名","呼び出しファイルのディレクトリ","ファイル名","実行マクロ名","呼び出しファイルのディレクトリ","ファイル名","実行マクロ名","呼び出しファイルのディレクトリ","ファイル名","実行マクロ名","呼び出しファイルのディレクトリ","ファイル名","実行マクロ名","呼び出しファイルのディレクトリ","ファイル名","実行マクロ名"]
[null,null,1]
[null,null,2]
[null,null,3]
[null,null,4]
[null,null,5]

{"sheet":"CV-DataBaseスーパー呼び出し印刷命令リスト11","index":16,"n_rows":20,"n_cols":21,"rows_kept":20,"cut":false,"hidden":false,"merged":[[13,12,13,14],[13,15,13,17],[13,18,13,20],[13,2,14,2],[13,3,13,5],[13,6,13,8],[13,9,13,11]]}
[]
[]
[null,null,null,{"$f":"シート名設定!D20","v":"CV-DataBaseスーパー呼び出し印刷命令リスト11"}]
[null,null,"1．ループ呼び出し設定"]
[]
[null,null,null,"設定項目","設定値"]
[null,null,null,"呼び出しファイル，実行マクロ先頭行番号"]
[null,null,null,"呼び出しファイル，実行マクロ最終行番号"]
[null,null,null,"呼び出しファイル，実行マクロ先頭群番号"]
[null,null,null,"呼び出しファイル，実行マクロ最終群番号"]
[]
[null,null,"２．CV-DataBaseスーパー呼び出し印刷命令リスト設定"]
[]
[null,null,"行番号","実行マクロ群1",null,null,"実行マクロ群２",null,null,"実行マクロ群３",null,null,"実行マクロ群４",null,null,"実行マクロ群５",null,null,"実行マクロ群６"]
[null,null,null,"呼び出しファイルのディレクトリ","ファイル名","実行マクロ名","呼び出しファイルのディレクトリ","ファイル名","実行マクロ名","呼び出しファイルのディレクトリ","ファイル名","実行マクロ名","呼び出しファイルのディレクトリ","ファイル名","実行マクロ名","呼び出しファイルのディレクトリ","ファイル名","実行マクロ名","呼び出しファイルのディレクトリ","ファイル名","実行マクロ名"]
[null,null,1]
[null,null,2]
[null,null,3]
[null,null,4]
[null,null,5]

{"sheet":"CV-DataBaseスーパー呼び出し印刷命令リスト12","index":17,"n_rows":20,"n_cols":21,"rows_kept":20,"cut":false,"hidden":false,"merged":[[13,12,13,14],[13,15,13,17],[13,18,13,20],[13,2,14,2],[13,3,13,5],[13,6,13,8],[13,9,13,11]]}
[]
[]
[null,null,null,{"$f":"シート名設定!D21","v":"CV-DataBaseスーパー呼び出し印刷命令リスト12"}]
[null,null,"1．ループ呼び出し設定"]
[]
[null,null,null,"設定項目","設定値"]
[null,null,null,"呼び出しファイル，実行マクロ先頭行番号"]
[null,null,null,"呼び出しファイル，実行マクロ最終行番号"]
[null,null,null,"呼び出しファイル，実行マクロ先頭群番号"]
[null,null,null,"呼び出しファイル，実行マクロ最終群番号"]
[]
[null,null,"２．CV-DataBaseスーパー呼び出し印刷命令リスト設定"]
[]
[null,null,"行番号","実行マクロ群1",null,null,"実行マクロ群２",null,null,"実行マクロ群３",null,null,"実行マクロ群４",null,null,"実行マクロ群５",null,null,"実行マクロ群６"]
[null,null,null,"呼び出しファイルのディレクトリ","ファイル名","実行マクロ名","呼び出しファイルのディレクトリ","ファイル名","実行マクロ名","呼び出しファイルのディレクトリ","ファイル名","実行マクロ名","呼び出しファイルのディレクトリ","ファイル名","実行マクロ名","呼び出しファイルのディレクトリ","ファイル名","実行マクロ名","呼び出しファイルのディレクトリ","ファイル名","実行マクロ名"]
[null,null,1]
[null,null,2]
[null,null,3]
[null,null,4]
[null,null,5]

{"sheet":"CV-DataBaseスーパー呼び出し印刷命令リスト13","index":18,"n_rows":20,"n_cols":21,"rows_kept":20,"cut":false,"hidden":false,"merged":[[13,12,13,14],[13,15,13,17],[13,18,13,20],[13,2,14,2],[13,3,13,5],[13,6,13,8],[13,9,13,11]]}
[]
[]
[null,null,null,{"$f":"シート名設定!D22","v":"CV-DataBaseスーパー呼び出し印刷命令リスト13"}]
[null,null,"1．ループ呼び出し設定"]
[]
[null,null,null,"設定項目","設定値"]
[null,null,null,"呼び出しファイル，実行マクロ先頭行番号"]
[null,null,null,"呼び出しファイル，実行マクロ最終行番号"]
[null,null,null,"呼び出しファイル，実行マクロ先頭群番号"]
[null,null,null,"呼び出しファイル，実行マクロ最終群番号"]
[]
[null,null,"２．CV-DataBaseスーパー呼び出し印刷命令リスト設定"]
[]
[null,null,"行番号","実行マクロ群1",null,null,"実行マクロ群２",null,null,"実行マクロ群３",null,null,"実行マクロ群４",null,null,"実行マクロ群５",null,null,"実行マクロ群６"]
[null,null,null,"呼び出しファイルのディレクトリ","ファイル名","実行マクロ名","呼び出しファイルのディレクトリ","ファイル名","実行マクロ名","呼び出しファイルのディレクトリ","ファイル名","実行マクロ名","呼び出しファイルのディレクトリ","ファイル名","実行マクロ名","呼び出しファイルのディレクトリ","ファイル名","実行マクロ名","呼び出しファイルのディレクトリ","ファイル名","実行マクロ名"]
[null,null,1]
[null,null,2]
[null,null,3]
[null,null,4]
[null,null,5]

{"sheet":"CV-DataBaseスーパー呼び出し印刷命令リスト14","index":19,"n_rows":20,"n_cols":21,"rows_kept":20,"cut":false,"hidden":false,"merged":[[13,12,13,14],[13,15,13,17],[13,18,13,20],[13,2,14,2],[13,3,13,5],[13,6,13,8],[13,9,13,11]]}
[]
[]
[null,null,null,{"$f":"シート名設定!D23","v":"CV-DataBaseスーパー呼び出し印刷命令リスト14"}]
[null,null,"1．ループ呼び出し設定"]
[]
[null,null,null,"設定項目","設定値"]
[null,null,null,"呼び出しファイル，実行マクロ先頭行番号"]
[null,null,null,"呼び出しファイル，実行マクロ最終行番号"]
[null,null,null,"呼び出しファイル，実行マクロ先頭群番号"]
[null,null,null,"呼び出しファイル，実行マクロ最終群番号"]
[]
[null,null,"２．CV-DataBaseスーパー呼び出し印刷命令リスト設定"]
[]
[null,null,"行番号","実行マクロ群1",null,null,"実行マクロ群２",null,null,"実行マクロ群３",null,null,"実行マクロ群４",null,null,"実行マクロ群５",null,null,"実行マクロ群６"]
[null,null,null,"呼び出しファイルのディレクトリ","ファイル名","実行マクロ名","呼び出しファイルのディレクトリ","ファイル名","実行マクロ名","呼び出しファイルのディレクトリ","ファイル名","実行マクロ名","呼び出しファイルのディレクトリ","ファイル名","実行マクロ名","呼び出しファイルのディレクトリ","ファイル名","実行マクロ名","呼び出しファイルのディレクトリ","ファイル名","実行マクロ名"]
[null,null,1]
[null,null,2]
[null,null,3]
[null,null,4]
[null,null,5]

{"sheet":"CV-DataBaseスーパー呼び出し印刷命令リスト15","index":20,"n_rows":20,"n_cols":21,"rows_kept":20,"cut":false,"hidden":false,"merged":[[13,12,13,14],[13,15,13,17],[13,18,13,20],[13,2,14,2],[13,3,13,5],[13,6,13,8],[13,9,13,11]]}
[]
[]
[null,null,null,{"$f":"シート名設定!D24","v":"CV-DataBaseスーパー呼び出し印刷命令リスト15"}]
[null,null,"1．ループ呼び出し設定"]
[]
[null,null,null,"設定項目","設定値"]
[null,null,null,"呼び出しファイル，実行マクロ先頭行番号"]
[null,null,null,"呼び出しファイル，実行マクロ最終行番号"]
[null,null,null,"呼び出しファイル，実行マクロ先頭群番号"]
[null,null,null,"呼び出しファイル，実行マクロ最終群番号"]
[]
[null,null,"２．CV-DataBaseスーパー呼び出し印刷命令リスト設定"]
[]
[null,null,"行番号","実行マクロ群1",null,null,"実行マクロ群２",null,null,"実行マクロ群３",null,null,"実行マクロ群４",null,null,"実行マクロ群５",null,null,"実行マクロ群６"]
[null,null,null,"呼び出しファイルのディレクトリ","ファイル名","実行マクロ名","呼び出しファイルのディレクトリ","ファイル名","実行マクロ名","呼び出しファイルのディレクトリ","ファイル名","実行マクロ名","呼び出しファイルのディレクトリ","ファイル名","実行マクロ名","呼び出しファイルのディレクトリ","ファイル名","実行マクロ名","呼び出しファイルのディレクトリ","ファイル名","実行マクロ名"]
[null,null,1]
[null,null,2]
[null,null,3]
[null,null,4]
[null,null,5]

{"sheet":"CV-DataBaseスーパー呼び出し印刷命令リスト16","index":21,"n_rows":20,"n_cols":21,"rows_kept":20,"cut":false,"hidden":false,"merged":[[13,12,13,14],[13,15,13,17],[13,18,13,20],[13,2,14,2],[13,3,13,5],[13,6,13,8],[13,9,13,11]]}
[]
[]
[null,null,null,{"$f":"シート名設定!D25","v":"CV-DataBaseスーパー呼び出し印刷命令リスト16"}]
[null,null,"1．ループ呼び出し設定"]
[]
[null,null,null,"設定項目","設定値"]
[null,null,null,"呼び出しファイル，実行マクロ先頭行番号"]
[null,null,null,"呼び出しファイル，実行マクロ最終行番号"]
[null,null,null,"呼び出しファイル，実行マクロ先頭群番号"]
[null,null,null,"呼び出しファイル，実行マクロ最終群番号"]
[]
[null,null,"２．CV-DataBaseスーパー呼び出し印刷命令リスト設定"]
[]
[null,null,"行番号","実行マクロ群1",null,null,"実行マクロ群２",null,null,"実行マクロ群３",null,null,"実行マクロ群４",null,null,"実行マクロ群５",null,null,"実行マクロ群６"]
[null,null,null,"呼び出しファイルのディレクトリ","ファイル名","実行マクロ名","呼び出しファイルのディレクトリ","ファイル名","実行マクロ名","呼び出しファイルのディレクトリ","ファイル名","実行マクロ名","呼び出しファイルのディレクトリ","ファイル名","実行マクロ名","呼び出しファイルのディレクトリ","ファイル名","実行マクロ名","呼び出しファイルのディレクトリ","ファイル名","実行マクロ名"]
[null,null,1]
[null,null,2]
[null,null,3]
[null,null,4]
[null,null,5]

{"sheet":"CV-DataBaseスーパー呼び出し印刷命令リスト17","index":22,"n_rows":20,"n_cols":21,"rows_kept":20,"cut":false,"hidden":false,"merged":[[13,12,13,14],[13,15,13,17],[13,18,13,20],[13,2,14,2],[13,3,13,5],[13,6,13,8],[13,9,13,11]]}
[]
[]
[null,null,null,{"$f":"シート名設定!D26","v":"CV-DataBaseスーパー呼び出し印刷命令リスト17"}]
[null,null,"1．ループ呼び出し設定"]
[]
[null,null,null,"設定項目","設定値"]
[null,null,null,"呼び出しファイル，実行マクロ先頭行番号"]
[null,null,null,"呼び出しファイル，実行マクロ最終行番号"]
[null,null,null,"呼び出しファイル，実行マクロ先頭群番号"]
[null,null,null,"呼び出しファイル，実行マクロ最終群番号"]
[]
[null,null,"２．CV-DataBaseスーパー呼び出し印刷命令リスト設定"]
[]
[null,null,"行番号","実行マクロ群1",null,null,"実行マクロ群２",null,null,"実行マクロ群３",null,null,"実行マクロ群４",null,null,"実行マクロ群５",null,null,"実行マクロ群６"]
[null,null,null,"呼び出しファイルのディレクトリ","ファイル名","実行マクロ名","呼び出しファイルのディレクトリ","ファイル名","実行マクロ名","呼び出しファイルのディレクトリ","ファイル名","実行マクロ名","呼び出しファイルのディレクトリ","ファイル名","実行マクロ名","呼び出しファイルのディレクトリ","ファイル名","実行マクロ名","呼び出しファイルのディレクトリ","ファイル名","実行マクロ名"]
[null,null,1]
[null,null,2]
[null,null,3]
[null,null,4]
[null,null,5]

{"sheet":"CV-DataBaseスーパー呼び出し印刷命令リスト18","index":23,"n_rows":20,"n_cols":21,"rows_kept":20,"cut":false,"hidden":false,"merged":[[13,12,13,14],[13,15,13,17],[13,18,13,20],[13,2,14,2],[13,3,13,5],[13,6,13,8],[13,9,13,11]]}
[]
[]
[null,null,null,{"$f":"シート名設定!D27","v":"CV-DataBaseスーパー呼び出し印刷命令リスト18"}]
[null,null,"1．ループ呼び出し設定"]
[]
[null,null,null,"設定項目","設定値"]
[null,null,null,"呼び出しファイル，実行マクロ先頭行番号"]
[null,null,null,"呼び出しファイル，実行マクロ最終行番号"]
[null,null,null,"呼び出しファイル，実行マクロ先頭群番号"]
[null,null,null,"呼び出しファイル，実行マクロ最終群番号"]
[]
[null,null,"２．CV-DataBaseスーパー呼び出し印刷命令リスト設定"]
[]
[null,null,"行番号","実行マクロ群1",null,null,"実行マクロ群２",null,null,"実行マクロ群３",null,null,"実行マクロ群４",null,null,"実行マクロ群５",null,null,"実行マクロ群６"]
[null,null,null,"呼び出しファイルのディレクトリ","ファイル名","実行マクロ名","呼び出しファイルのディレクトリ","ファイル名","実行マクロ名","呼び出しファイルのディレクトリ","ファイル名","実行マクロ名","呼び出しファイルのディレクトリ","ファイル名","実行マクロ名","呼び出しファイルのディレクトリ","ファイル名","実行マクロ名","呼び出しファイルのディレクトリ","ファイル名","実行マクロ名"]
[null,null,1]
[null,null,2]
[null,null,3]
[null,null,4]
[null,null,5]

{"sheet":"CV-DataBaseスーパー呼び出し印刷命令リスト19","index":24,"n_rows":20,"n_cols":21,"rows_kept":20,"cut":false,"hidden":false,"merged":[[13,12,13,14],[13,15,13,17],[13,18,13,20],[13,2,14,2],[13,3,13,5],[13,6,13,8],[13,9,13,11]]}
[]
[]
[null,null,null,{"$f":"シート名設定!D28","v":"CV-DataBaseスーパー呼び出し印刷命令リスト19"}]
[null,null,"1．ループ呼び出し設定"]
[]
[null,null,null,"設定項目","設定値"]
[null,null,null,"呼び出しファイル，実行マクロ先頭行番号"]
[null,null,null,"呼び出しファイル，実行マクロ最終行番号"]
[null,null,null,"呼び出しファイル，実行マクロ先頭群番号"]
[null,null,null,"呼び出しファイル，実行マクロ最終群番号"]
[]
[null,null,"２．CV-DataBaseスーパー呼び出し印刷命令リスト設定"]
[]
[null,null,"行番号","実行マクロ群1",null,null,"実行マクロ群２",null,null,"実行マクロ群３",null,null,"実行マクロ群４",null,null,"実行マクロ群５",null,null,"実行マクロ群６"]
[null,null,null,"呼び出しファイルのディレクトリ","ファイル名","実行マクロ名","呼び出しファイルのディレクトリ","ファイル名","実行マクロ名","呼び出しファイルのディレクトリ","ファイル名","実行マクロ名","呼び出しファイルのディレクトリ","ファイル名","実行マクロ名","呼び出しファイルのディレクトリ","ファイル名","実行マクロ名","呼び出しファイルのディレクトリ","ファイル名","実行マクロ名"]
[null,null,1]
[null,null,2]
[null,null,3]
[null,null,4]
[null,null,5]

{"sheet":"CV-DataBaseスーパー呼び出し印刷命令リスト20","index":25,"n_rows":20,"n_cols":21,"rows_kept":20,"cut":false,"hidden":false,"merged":[[13,12,13,14],[13,15,13,17],[13,18,13,20],[13,2,14,2],[13,3,13,5],[13,6,13,8],[13,9,13,11]]}
[]
[]
[null,null,null,{"$f":"シート名設定!D29","v":"CV-DataBaseスーパー呼び出し印刷命令リスト20"}]
[null,null,"1．ループ呼び出し設定"]
[]
[null,null,null,"設定項目","設定値"]
[null,null,null,"呼び出しファイル，実行マクロ先頭行番号"]
[null,null,null,"呼び出しファイル，実行マクロ最終行番号"]
[null,null,null,"呼び出しファイル，実行マクロ先頭群番号"]
[null,null,null,"呼び出しファイル，実行マクロ最終群番号"]
[]
[null,null,"２．CV-DataBaseスーパー呼び出し印刷命令リスト設定"]
[]
[null,null,"行番号","実行マクロ群1",null,null,"実行マクロ群２",null,null,"実行マクロ群３",null,null,"実行マクロ群４",null,null,"実行マクロ群５",null,null,"実行マクロ群６"]
[null,null,null,"呼び出しファイルのディレクトリ","ファイル名","実行マクロ名","呼び出しファイルのディレクトリ","ファイル名","実行マクロ名","呼び出しファイルのディレクトリ","ファイル名","実行マクロ名","呼び出しファイルのディレクトリ","ファイル名","実行マクロ名","呼び出しファイルのディレクトリ","ファイル名","実行マクロ名","呼び出しファイルのディレクトリ","ファイル名","実行マクロ名"]
[null,null,1]
[null,null,2]
[null,null,3]
[null,null,4]
[null,null,5]

{"sheet":"CV-DataBaseスーパー呼び出し印刷命令リスト21","index":26,"n_rows":20,"n_cols":21,"rows_kept":20,"cut":false,"hidden":false,"merged":[[13,12,13,14],[13,15,13,17],[13,18,13,20],[13,2,14,2],[13,3,13,5],[13,6,13,8],[13,9,13,11]]}
[]
[]
[null,null,null,{"$f":"シート名設定!D30","v":"CV-DataBaseスーパー呼び出し印刷命令リスト21"}]
[null,null,"1．ループ呼び出し設定"]
[]
[null,null,null,"設定項目","設定値"]
[null,null,null,"呼び出しファイル，実行マクロ先頭行番号"]
[null,null,null,"呼び出しファイル，実行マクロ最終行番号"]
[null,null,null,"呼び出しファイル，実行マクロ先頭群番号"]
[null,null,null,"呼び出しファイル，実行マクロ最終群番号"]
[]
[null,null,"２．CV-DataBaseスーパー呼び出し印刷命令リスト設定"]
[]
[null,null,"行番号","実行マクロ群1",null,null,"実行マクロ群２",null,null,"実行マクロ群３",null,null,"実行マクロ群４",null,null,"実行マクロ群５",null,null,"実行マクロ群６"]
[null,null,null,"呼び出しファイルのディレクトリ","ファイル名","実行マクロ名","呼び出しファイルのディレクトリ","ファイル名","実行マクロ名","呼び出しファイルのディレクトリ","ファイル名","実行マクロ名","呼び出しファイルのディレクトリ","ファイル名","実行マクロ名","呼び出しファイルのディレクトリ","ファイル名","実行マクロ名","呼び出しファイルのディレクトリ","ファイル名","実行マクロ名"]
[null,null,1]
[null,null,2]
[null,null,3]
[null,null,4]
[null,null,5]

{"sheet":"CV-DataBaseスーパー呼び出し印刷命令リスト22","index":27,"n_rows":20,"n_cols":21,"rows_kept":20,"cut":false,"hidden":false,"merged":[[13,12,13,14],[13,15,13,17],[13,18,13,20],[13,2,14,2],[13,3,13,5],[13,6,13,8],[13,9,13,11]]}
[]
[]
[null,null,null,{"$f":"シート名設定!D31","v":"CV-DataBaseスーパー呼び出し印刷命令リスト22"}]
[null,null,"1．ループ呼び出し設定"]
[]
[null,null,null,"設定項目","設定値"]
[null,null,null,"呼び出しファイル，実行マクロ先頭行番号"]
[null,null,null,"呼び出しファイル，実行マクロ最終行番号"]
[null,null,null,"呼び出しファイル，実行マクロ先頭群番号"]
[null,null,null,"呼び出しファイル，実行マクロ最終群番号"]
[]
[null,null,"２．CV-DataBaseスーパー呼び出し印刷命令リスト設定"]
[]
[null,null,"行番号","実行マクロ群1",null,null,"実行マクロ群２",null,null,"実行マクロ群３",null,null,"実行マクロ群４",null,null,"実行マクロ群５",null,null,"実行マクロ群６"]
[null,null,null,"呼び出しファイルのディレクトリ","ファイル名","実行マクロ名","呼び出しファイルのディレクトリ","ファイル名","実行マクロ名","呼び出しファイルのディレクトリ","ファイル名","実行マクロ名","呼び出しファイルのディレクトリ","ファイル名","実行マクロ名","呼び出しファイルのディレクトリ","ファイル名","実行マクロ名","呼び出しファイルのディレクトリ","ファイル名","実行マクロ名"]
[null,null,1]
[null,null,2]
[null,null,3]
[null,null,4]
[null,null,5]

{"sheet":"CV-DataBaseスーパー呼び出し印刷命令リスト23","index":28,"n_rows":20,"n_cols":21,"rows_kept":20,"cut":false,"hidden":false,"merged":[[13,12,13,14],[13,15,13,17],[13,18,13,20],[13,2,14,2],[13,3,13,5],[13,6,13,8],[13,9,13,11]]}
[]
[]
[null,null,null,{"$f":"シート名設定!D32","v":"CV-DataBaseスーパー呼び出し印刷命令リスト23"}]
[null,null,"1．ループ呼び出し設定"]
[]
[null,null,null,"設定項目","設定値"]
[null,null,null,"呼び出しファイル，実行マクロ先頭行番号"]
[null,null,null,"呼び出しファイル，実行マクロ最終行番号"]
[null,null,null,"呼び出しファイル，実行マクロ先頭群番号"]
[null,null,null,"呼び出しファイル，実行マクロ最終群番号"]
[]
[null,null,"２．CV-DataBaseスーパー呼び出し印刷命令リスト設定"]
[]
[null,null,"行番号","実行マクロ群1",null,null,"実行マクロ群２",null,null,"実行マクロ群３",null,null,"実行マクロ群４",null,null,"実行マクロ群５",null,null,"実行マクロ群６"]
[null,null,null,"呼び出しファイルのディレクトリ","ファイル名","実行マクロ名","呼び出しファイルのディレクトリ","ファイル名","実行マクロ名","呼び出しファイルのディレクトリ","ファイル名","実行マクロ名","呼び出しファイルのディレクトリ","ファイル名","実行マクロ名","呼び出しファイルのディレクトリ","ファイル名","実行マクロ名","呼び出しファイルのディレクトリ","ファイル名","実行マクロ名"]
[null,null,1]
[null,null,2]
[null,null,3]
[null,null,4]
[null,null,5]

{"sheet":"CV-DataBaseスーパー呼び出し印刷命令リスト24","index":29,"n_rows":20,"n_cols":21,"rows_kept":20,"cut":false,"hidden":false,"merged":[[13,12,13,14],[13,15,13,17],[13,18,13,20],[13,2,14,2],[13,3,13,5],[13,6,13,8],[13,9,13,11]]}
[]
[]
[null,null,null,{"$f":"シート名設定!D33","v":"CV-DataBaseスーパー呼び出し印刷命令リスト24"}]
[null,null,"1．ループ呼び出し設定"]
[]
[null,null,null,"設定項目","設定値"]
[null,null,null,"呼び出しファイル，実行マクロ先頭行番号"]
[null,null,null,"呼び出しファイル，実行マクロ最終行番号"]
[null,null,null,"呼び出しファイル，実行マクロ先頭群番号"]
[null,null,null,"呼び出しファイル，実行マクロ最終群番号"]
[]
[null,null,"２．CV-DataBaseスーパー呼び出し印刷命令リスト設定"]
[]
[null,null,"行番号","実行マクロ群1",null,null,"実行マクロ群２",null,null,"実行マクロ群３",null,null,"実行マクロ群４",null,null,"実行マクロ群５",null,null,"実行マクロ群６"]
[null,null,null,"呼び出しファイルのディレクトリ","ファイル名","実行マクロ名","呼び出しファイルのディレクトリ","ファイル名","実行マクロ名","呼び出しファイルのディレクトリ","ファイル名","実行マクロ名","呼び出しファイルのディレクトリ","ファイル名","実行マクロ名","呼び出しファイルのディレクトリ","ファイル名","実行マクロ名","呼び出しファイルのディレクトリ","ファイル名","実行マクロ名"]
[null,null,1]
[null,null,2]
[null,null,3]
[null,null,4]
[null,null,5]

{"sheet":"CV-DataBaseスーパー呼び出し印刷命令リスト25","index":30,"n_rows":20,"n_cols":21,"rows_kept":20,"cut":false,"hidden":false,"merged":[[13,12,13,14],[13,15,13,17],[13,18,13,20],[13,2,14,2],[13,3,13,5],[13,6,13,8],[13,9,13,11]]}
[]
[]
[null,null,null,{"$f":"シート名設定!D34","v":"CV-DataBaseスーパー呼び出し印刷命令リスト25"}]
[null,null,"1．ループ呼び出し設定"]
[]
[null,null,null,"設定項目","設定値"]
[null,null,null,"呼び出しファイル，実行マクロ先頭行番号"]
[null,null,null,"呼び出しファイル，実行マクロ最終行番号"]
[null,null,null,"呼び出しファイル，実行マクロ先頭群番号"]
[null,null,null,"呼び出しファイル，実行マクロ最終群番号"]
[]
[null,null,"２．CV-DataBaseスーパー呼び出し印刷命令リスト設定"]
[]
[null,null,"行番号","実行マクロ群1",null,null,"実行マクロ群２",null,null,"実行マクロ群３",null,null,"実行マクロ群４",null,null,"実行マクロ群５",null,null,"実行マクロ群６"]
[null,null,null,"呼び出しファイルのディレクトリ","ファイル名","実行マクロ名","呼び出しファイルのディレクトリ","ファイル名","実行マクロ名","呼び出しファイルのディレクトリ","ファイル名","実行マクロ名","呼び出しファイルのディレクトリ","ファイル名","実行マクロ名","呼び出しファイルのディレクトリ","ファイル名","実行マクロ名","呼び出しファイルのディレクトリ","ファイル名","実行マクロ名"]
[null,null,1]
[null,null,2]
[null,null,3]
[null,null,4]
[null,null,5]

{"sheet":"CV-DataBaseスーパー呼び出し印刷命令リスト26","index":31,"n_rows":20,"n_cols":21,"rows_kept":20,"cut":false,"hidden":false,"merged":[[13,12,13,14],[13,15,13,17],[13,18,13,20],[13,2,14,2],[13,3,13,5],[13,6,13,8],[13,9,13,11]]}
[]
[]
[null,null,null,{"$f":"シート名設定!D35","v":"CV-DataBaseスーパー呼び出し印刷命令リスト26"}]
[null,null,"1．ループ呼び出し設定"]
[]
[null,null,null,"設定項目","設定値"]
[null,null,null,"呼び出しファイル，実行マクロ先頭行番号"]
[null,null,null,"呼び出しファイル，実行マクロ最終行番号"]
[null,null,null,"呼び出しファイル，実行マクロ先頭群番号"]
[null,null,null,"呼び出しファイル，実行マクロ最終群番号"]
[]
[null,null,"２．CV-DataBaseスーパー呼び出し印刷命令リスト設定"]
[]
[null,null,"行番号","実行マクロ群1",null,null,"実行マクロ群２",null,null,"実行マクロ群３",null,null,"実行マクロ群４",null,null,"実行マクロ群５",null,null,"実行マクロ群６"]
[null,null,null,"呼び出しファイルのディレクトリ","ファイル名","実行マクロ名","呼び出しファイルのディレクトリ","ファイル名","実行マクロ名","呼び出しファイルのディレクトリ","ファイル名","実行マクロ名","呼び出しファイルのディレクトリ","ファイル名","実行マクロ名","呼び出しファイルのディレクトリ","ファイル名","実行マクロ名","呼び出しファイルのディレクトリ","ファイル名","実行マクロ名"]
[null,null,1]
[null,null,2]
[null,null,3]
[null,null,4]
[null,null,5]

{"sheet":"CV-DataBaseスーパー呼び出し印刷命令リスト27","index":32,"n_rows":20,"n_cols":21,"rows_kept":20,"cut":false,"hidden":false,"merged":[[13,12,13,14],[13,15,13,17],[13,18,13,20],[13,2,14,2],[13,3,13,5],[13,6,13,8],[13,9,13,11]]}
[]
[]
[null,null,null,{"$f":"シート名設定!D36","v":"CV-DataBaseスーパー呼び出し印刷命令リスト27"}]
[null,null,"1．ループ呼び出し設定"]
[]
[null,null,null,"設定項目","設定値"]
[null,null,null,"呼び出しファイル，実行マクロ先頭行番号"]
[null,null,null,"呼び出しファイル，実行マクロ最終行番号"]
[null,null,null,"呼び出しファイル，実行マクロ先頭群番号"]
[null,null,null,"呼び出しファイル，実行マクロ最終群番号"]
[]
[null,null,"２．CV-DataBaseスーパー呼び出し印刷命令リスト設定"]
[]
[null,null,"行番号","実行マクロ群1",null,null,"実行マクロ群２",null,null,"実行マクロ群３",null,null,"実行マクロ群４",null,null,"実行マクロ群５",null,null,"実行マクロ群６"]
[null,null,null,"呼び出しファイルのディレクトリ","ファイル名","実行マクロ名","呼び出しファイルのディレクトリ","ファイル名","実行マクロ名","呼び出しファイルのディレクトリ","ファイル名","実行マクロ名","呼び出しファイルのディレクトリ","ファイル名","実行マクロ名","呼び出しファイルのディレクトリ","ファイル名","実行マクロ名","呼び出しファイルのディレクトリ","ファイル名","実行マクロ名"]
[null,null,1]
[null,null,2]
[null,null,3]
[null,null,4]
[null,null,5]

{"sheet":"CV-DataBaseスーパー呼び出し印刷命令リスト28","index":33,"n_rows":20,"n_cols":21,"rows_kept":20,"cut":false,"hidden":false,"merged":[[13,12,13,14],[13,15,13,17],[13,18,13,20],[13,2,14,2],[13,3,13,5],[13,6,13,8],[13,9,13,11]]}
[]
[]
[null,null,null,{"$f":"シート名設定!D37","v":"CV-DataBaseスーパー呼び出し印刷命令リスト28"}]
[null,null,"1．ループ呼び出し設定"]
[]
[null,null,null,"設定項目","設定値"]
[null,null,null,"呼び出しファイル，実行マクロ先頭行番号"]
[null,null,null,"呼び出しファイル，実行マクロ最終行番号"]
[null,null,null,"呼び出しファイル，実行マクロ先頭群番号"]
[null,null,null,"呼び出しファイル，実行マクロ最終群番号"]
[]
[null,null,"２．CV-DataBaseスーパー呼び出し印刷命令リスト設定"]
[]
[null,null,"行番号","実行マクロ群1",null,null,"実行マクロ群２",null,null,"実行マクロ群３",null,null,"実行マクロ群４",null,null,"実行マクロ群５",null,null,"実行マクロ群６"]
[null,null,null,"呼び出しファイルのディレクトリ","ファイル名","実行マクロ名","呼び出しファイルのディレクトリ","ファイル名","実行マクロ名","呼び出しファイルのディレクトリ","ファイル名","実行マクロ名","呼び出しファイルのディレクトリ","ファイル名","実行マクロ名","呼び出しファイルのディレクトリ","ファイル名","実行マクロ名","呼び出しファイルのディレクトリ","ファイル名","実行マクロ名"]
[null,null,1]
[null,null,2]
[null,null,3]
[null,null,4]
[null,null,5]

{"sheet":"CV-DataBaseスーパー呼び出し印刷命令リスト29","index":34,"n_rows":20,"n_cols":21,"rows_kept":20,"cut":false,"hidden":false,"merged":[[13,12,13,14],[13,15,13,17],[13,18,13,20],[13,2,14,2],[13,3,13,5],[13,6,13,8],[13,9,13,11]]}
[]
[]
[null,null,null,{"$f":"シート名設定!D38","v":"CV-DataBaseスーパー呼び出し印刷命令リスト29"}]
[null,null,"1．ループ呼び出し設定"]
[]
[null,null,null,"設定項目","設定値"]
[null,null,null,"呼び出しファイル，実行マクロ先頭行番号"]
[null,null,null,"呼び出しファイル，実行マクロ最終行番号"]
[null,null,null,"呼び出しファイル，実行マクロ先頭群番号"]
[null,null,null,"呼び出しファイル，実行マクロ最終群番号"]
[]
[null,null,"２．CV-DataBaseスーパー呼び出し印刷命令リスト設定"]
[]
[null,null,"行番号","実行マクロ群1",null,null,"実行マクロ群２",null,null,"実行マクロ群３",null,null,"実行マクロ群４",null,null,"実行マクロ群５",null,null,"実行マクロ群６"]
[null,null,null,"呼び出しファイルのディレクトリ","ファイル名","実行マクロ名","呼び出しファイルのディレクトリ","ファイル名","実行マクロ名","呼び出しファイルのディレクトリ","ファイル名","実行マクロ名","呼び出しファイルのディレクトリ","ファイル名","実行マクロ名","呼び出しファイルのディレクトリ","ファイル名","実行マクロ名","呼び出しファイルのディレクトリ","ファイル名","実行マクロ名"]
[null,null,1]
[null,null,2]
[null,null,3]
[null,null,4]
[null,null,5]

{"sheet":"CV-DataBaseスーパー呼び出し印刷命令リスト30","index":35,"n_rows":20,"n_cols":21,"rows_kept":20,"cut":false,"hidden":false,"merged":[[13,12,13,14],[13,15,13,17],[13,18,13,20],[13,2,14,2],[13,3,13,5],[13,6,13,8],[13,9,13,11]]}
[]
[]
[null,null,null,{"$f":"シート名設定!D39","v":"CV-DataBaseスーパー呼び出し印刷命令リスト30"}]
[null,null,"1．ループ呼び出し設定"]
[]
[null,null,null,"設定項目","設定値"]
[null,null,null,"呼び出しファイル，実行マクロ先頭行番号"]
[null,null,null,"呼び出しファイル，実行マクロ最終行番号"]
[null,null,null,"呼び出しファイル，実行マクロ先頭群番号"]
[null,null,null,"呼び出しファイル，実行マクロ最終群番号"]
[]
[null,null,"２．CV-DataBaseスーパー呼び出し印刷命令リスト設定"]
[]
[null,null,"行番号","実行マクロ群1",null,null,"実行マクロ群２",null,null,"実行マクロ群３",null,null,"実行マクロ群４",null,null,"実行マクロ群５",null,null,"実行マクロ群６"]
[null,null,null,"呼び出しファイルのディレクトリ","ファイル名","実行マクロ名","呼び出しファイルのディレクトリ","ファイル名","実行マクロ名","呼び出しファイルのディレクトリ","ファイル名","実行マクロ名","呼び出しファイルのディレクトリ","ファイル名","実行マクロ名","呼び出しファイルのディレクトリ","ファイル名","実行マクロ名","呼び出しファイルのディレクトリ","ファイル名","実行マクロ名"]
[null,null,1]
[null,null,2]
[null,null,3]
[null,null,4]
[null,null,5]

{"sheet":"CV-DataBaseスーパー呼び出し印刷命令リスト31","index":36,"n_rows":20,"n_cols":21,"rows_kept":20,"cut":false,"hidden":false,"merged":[[13,12,13,14],[13,15,13,17],[13,18,13,20],[13,2,14,2],[13,3,13,5],[13,6,13,8],[13,9,13,11]]}
[]
[]
[null,null,null,{"$f":"シート名設定!D40","v":"CV-DataBaseスーパー呼び出し印刷命令リスト31"}]
[null,null,"1．ループ呼び出し設定"]
[]
[null,null,null,"設定項目","設定値"]
[null,null,null,"呼び出しファイル，実行マクロ先頭行番号"]
[null,null,null,"呼び出しファイル，実行マクロ最終行番号"]
[null,null,null,"呼び出しファイル，実行マクロ先頭群番号"]
[null,null,null,"呼び出しファイル，実行マクロ最終群番号"]
[]
[null,null,"２．CV-DataBaseスーパー呼び出し印刷命令リスト設定"]
[]
[null,null,"行番号","実行マクロ群1",null,null,"実行マクロ群２",null,null,"実行マクロ群３",null,null,"実行マクロ群４",null,null,"実行マクロ群５",null,null,"実行マクロ群６"]
[null,null,null,"呼び出しファイルのディレクトリ","ファイル名","実行マクロ名","呼び出しファイルのディレクトリ","ファイル名","実行マクロ名","呼び出しファイルのディレクトリ","ファイル名","実行マクロ名","呼び出しファイルのディレクトリ","ファイル名","実行マクロ名","呼び出しファイルのディレクトリ","ファイル名","実行マクロ名","呼び出しファイルのディレクトリ","ファイル名","実行マクロ名"]
[null,null,1]
[null,null,2]
[null,null,3]
[null,null,4]
[null,null,5]

{"sheet":"CV-DataBaseスーパー呼び出し印刷命令リスト32","index":37,"n_rows":20,"n_cols":21,"rows_kept":20,"cut":false,"hidden":false,"merged":[[13,12,13,14],[13,15,13,17],[13,18,13,20],[13,2,14,2],[13,3,13,5],[13,6,13,8],[13,9,13,11]]}
[]
[]
[null,null,null,{"$f":"シート名設定!D41","v":"CV-DataBaseスーパー呼び出し印刷命令リスト32"}]
[null,null,"1．ループ呼び出し設定"]
[]
[null,null,null,"設定項目","設定値"]
[null,null,null,"呼び出しファイル，実行マクロ先頭行番号"]
[null,null,null,"呼び出しファイル，実行マクロ最終行番号"]
[null,null,null,"呼び出しファイル，実行マクロ先頭群番号"]
[null,null,null,"呼び出しファイル，実行マクロ最終群番号"]
[]
[null,null,"２．CV-DataBaseスーパー呼び出し印刷命令リスト設定"]
[]
[null,null,"行番号","実行マクロ群1",null,null,"実行マクロ群２",null,null,"実行マクロ群３",null,null,"実行マクロ群４",null,null,"実行マクロ群５",null,null,"実行マクロ群６"]
[null,null,null,"呼び出しファイルのディレクトリ","ファイル名","実行マクロ名","呼び出しファイルのディレクトリ","ファイル名","実行マクロ名","呼び出しファイルのディレクトリ","ファイル名","実行マクロ名","呼び出しファイルのディレクトリ","ファイル名","実行マクロ名","呼び出しファイルのディレクトリ","ファイル名","実行マクロ名","呼び出しファイルのディレクトリ","ファイル名","実行マクロ名"]
[null,null,1]
[null,null,2]
[null,null,3]
[null,null,4]
[null,null,5]

{"sheet":"CV-DataBaseスーパー呼び出し印刷命令リスト33","index":38,"n_rows":20,"n_cols":21,"rows_kept":20,"cut":false,"hidden":false,"merged":[[13,12,13,14],[13,15,13,17],[13,18,13,20],[13,2,14,2],[13,3,13,5],[13,6,13,8],[13,9,13,11]]}
[]
[]
[null,null,null,{"$f":"シート名設定!D42","v":"CV-DataBaseスーパー呼び出し印刷命令リスト33"}]
[null,null,"1．ループ呼び出し設定"]
[]
[null,null,null,"設定項目","設定値"]
[null,null,null,"呼び出しファイル，実行マクロ先頭行番号"]
[null,null,null,"呼び出しファイル，実行マクロ最終行番号"]
[null,null,null,"呼び出しファイル，実行マクロ先頭群番号"]
[null,null,null,"呼び出しファイル，実行マクロ最終群番号"]
[]
[null,null,"２．CV-DataBaseスーパー呼び出し印刷命令リスト設定"]
[]
[null,null,"行番号","実行マクロ群1",null,null,"実行マクロ群２",null,null,"実行マクロ群３",null,null,"実行マクロ群４",null,null,"実行マクロ群５",null,null,"実行マクロ群６"]
[null,null,null,"呼び出しファイルのディレクトリ","ファイル名","実行マクロ名","呼び出しファイルのディレクトリ","ファイル名","実行マクロ名","呼び出しファイルのディレクトリ","ファイル名","実行マクロ名","呼び出しファイルのディレクトリ","ファイル名","実行マクロ名","呼び出しファイルのディレクトリ","ファイル名","実行マクロ名","呼び出しファイルのディレクトリ","ファイル名","実行マクロ名"]
[null,null,1]
[null,null,2]
[null,null,3]
[null,null,4]
[null,null,5]

{"sheet":"CV-DataBaseスーパー呼び出し印刷命令リスト34","index":39,"n_rows":20,"n_cols":21,"rows_kept":20,"cut":false,"hidden":false,"merged":[[13,12,13,14],[13,15,13,17],[13,18,13,20],[13,2,14,2],[13,3,13,5],[13,6,13,8],[13,9,13,11]]}
[]
[]
[null,null,null,{"$f":"シート名設定!D43","v":"CV-DataBaseスーパー呼び出し印刷命令リスト34"}]
[null,null,"1．ループ呼び出し設定"]
[]
[null,null,null,"設定項目","設定値"]
[null,null,null,"呼び出しファイル，実行マクロ先頭行番号"]
[null,null,null,"呼び出しファイル，実行マクロ最終行番号"]
[null,null,null,"呼び出しファイル，実行マクロ先頭群番号"]
[null,null,null,"呼び出しファイル，実行マクロ最終群番号"]
[]
[null,null,"２．CV-DataBaseスーパー呼び出し印刷命令リスト設定"]
[]
[null,null,"行番号","実行マクロ群1",null,null,"実行マクロ群２",null,null,"実行マクロ群３",null,null,"実行マクロ群４",null,null,"実行マクロ群５",null,null,"実行マクロ群６"]
[null,null,null,"呼び出しファイルのディレクトリ","ファイル名","実行マクロ名","呼び出しファイルのディレクトリ","ファイル名","実行マクロ名","呼び出しファイルのディレクトリ","ファイル名","実行マクロ名","呼び出しファイルのディレクトリ","ファイル名","実行マクロ名","呼び出しファイルのディレクトリ","ファイル名","実行マクロ名","呼び出しファイルのディレクトリ","ファイル名","実行マクロ名"]
[null,null,1]
[null,null,2]
[null,null,3]
[null,null,4]
[null,null,5]

{"sheet":"CV-DataBaseスーパー呼び出し印刷命令リスト35","index":40,"n_rows":20,"n_cols":21,"rows_kept":20,"cut":false,"hidden":false,"merged":[[13,12,13,14],[13,15,13,17],[13,18,13,20],[13,2,14,2],[13,3,13,5],[13,6,13,8],[13,9,13,11]]}
[]
[]
[null,null,null,{"$f":"シート名設定!D44","v":"CV-DataBaseスーパー呼び出し印刷命令リスト35"}]
[null,null,"1．ループ呼び出し設定"]
[]
[null,null,null,"設定項目","設定値"]
[null,null,null,"呼び出しファイル，実行マクロ先頭行番号"]
[null,null,null,"呼び出しファイル，実行マクロ最終行番号"]
[null,null,null,"呼び出しファイル，実行マクロ先頭群番号"]
[null,null,null,"呼び出しファイル，実行マクロ最終群番号"]
[]
[null,null,"２．CV-DataBaseスーパー呼び出し印刷命令リスト設定"]
[]
[null,null,"行番号","実行マクロ群1",null,null,"実行マクロ群２",null,null,"実行マクロ群３",null,null,"実行マクロ群４",null,null,"実行マクロ群５",null,null,"実行マクロ群６"]
[null,null,null,"呼び出しファイルのディレクトリ","ファイル名","実行マクロ名","呼び出しファイルのディレクトリ","ファイル名","実行マクロ名","呼び出しファイルのディレクトリ","ファイル名","実行マクロ名","呼び出しファイルのディレクトリ","ファイル名","実行マクロ名","呼び出しファイルのディレクトリ","ファイル名","実行マクロ名","呼び出しファイルのディレクトリ","ファイル名","実行マクロ名"]
[null,null,1]
[null,null,2]
[null,null,3]
[null,null,4]
[null,null,5]

{"sheet":"CV-DataBaseスーパー呼び出し印刷命令リスト36","index":41,"n_rows":20,"n_cols":21,"rows_kept":20,"cut":false,"hidden":false,"merged":[[13,12,13,14],[13,15,13,17],[13,18,13,20],[13,2,14,2],[13,3,13,5],[13,6,13,8],[13,9,13,11]]}
[]
[]
[null,null,null,{"$f":"シート名設定!D45","v":"CV-DataBaseスーパー呼び出し印刷命令リスト36"}]
[null,null,"1．ループ呼び出し設定"]
[]
[null,null,null,"設定項目","設定値"]
[null,null,null,"呼び出しファイル，実行マクロ先頭行番号"]
[null,null,null,"呼び出しファイル，実行マクロ最終行番号"]
[null,null,null,"呼び出しファイル，実行マクロ先頭群番号"]
[null,null,null,"呼び出しファイル，実行マクロ最終群番号"]
[]
[null,null,"２．CV-DataBaseスーパー呼び出し印刷命令リスト設定"]
[]
[null,null,"行番号","実行マクロ群1",null,null,"実行マクロ群２",null,null,"実行マクロ群３",null,null,"実行マクロ群４",null,null,"実行マクロ群５",null,null,"実行マクロ群６"]
[null,null,null,"呼び出しファイルのディレクトリ","ファイル名","実行マクロ名","呼び出しファイルのディレクトリ","ファイル名","実行マクロ名","呼び出しファイルのディレクトリ","ファイル名","実行マクロ名","呼び出しファイルのディレクトリ","ファイル名","実行マクロ名","呼び出しファイルのディレクトリ","ファイル名","実行マクロ名","呼び出しファイルのディレクトリ","ファイル名","実行マクロ名"]
[null,null,1]
[null,null,2]
[null,null,3]
[null,null,4]
[null,null,5]

{"sheet":"CV-DataBaseスーパー呼び出し印刷命令リスト37","index":42,"n_rows":20,"n_cols":21,"rows_kept":20,"cut":false,"hidden":false,"merged":[[13,12,13,14],[13,15,13,17],[13,18,13,20],[13,2,14,2],[13,3,13,5],[13,6,13,8],[13,9,13,11]]}
[]
[]
[null,null,null,{"$f":"シート名設定!D46","v":"CV-DataBaseスーパー呼び出し印刷命令リスト37"}]
[null,null,"1．ループ呼び出し設定"]
[]
[null,null,null,"設定項目","設定値"]
[null,null,null,"呼び出しファイル，実行マクロ先頭行番号"]
[null,null,null,"呼び出しファイル，実行マクロ最終行番号"]
[null,null,null,"呼び出しファイル，実行マクロ先頭群番号"]
[null,null,null,"呼び出しファイル，実行マクロ最終群番号"]
[]
[null,null,"２．CV-DataBaseスーパー呼び出し印刷命令リスト設定"]
[]
[null,null,"行番号","実行マクロ群1",null,null,"実行マクロ群２",null,null,"実行マクロ群３",null,null,"実行マクロ群４",null,null,"実行マクロ群５",null,null,"実行マクロ群６"]
[null,null,null,"呼び出しファイルのディレクトリ","ファイル名","実行マクロ名","呼び出しファイルのディレクトリ","ファイル名","実行マクロ名","呼び出しファイルのディレクトリ","ファイル名","実行マクロ名","呼び出しファイルのディレクトリ","ファイル名","実行マクロ名","呼び出しファイルのディレクトリ","ファイル名","実行マクロ名","呼び出しファイルのディレクトリ","ファイル名","実行マクロ名"]
[null,null,1]
[null,null,2]
[null,null,3]
[null,null,4]
[null,null,5]

{"sheet":"CV-DataBaseスーパー呼び出し印刷命令リスト38","index":43,"n_rows":20,"n_cols":21,"rows_kept":20,"cut":false,"hidden":false,"merged":[[13,12,13,14],[13,15,13,17],[13,18,13,20],[13,2,14,2],[13,3,13,5],[13,6,13,8],[13,9,13,11]]}
[]
[]
[null,null,null,{"$f":"シート名設定!D47","v":"CV-DataBaseスーパー呼び出し印刷命令リスト38"}]
[null,null,"1．ループ呼び出し設定"]
[]
[null,null,null,"設定項目","設定値"]
[null,null,null,"呼び出しファイル，実行マクロ先頭行番号"]
[null,null,null,"呼び出しファイル，実行マクロ最終行番号"]
[null,null,null,"呼び出しファイル，実行マクロ先頭群番号"]
[null,null,null,"呼び出しファイル，実行マクロ最終群番号"]
[]
[null,null,"２．CV-DataBaseスーパー呼び出し印刷命令リスト設定"]
[]
[null,null,"行番号","実行マクロ群1",null,null,"実行マクロ群２",null,null,"実行マクロ群３",null,null,"実行マクロ群４",null,null,"実行マクロ群５",null,null,"実行マクロ群６"]
[null,null,null,"呼び出しファイルのディレクトリ","ファイル名","実行マクロ名","呼び出しファイルのディレクトリ","ファイル名","実行マクロ名","呼び出しファイルのディレクトリ","ファイル名","実行マクロ名","呼び出しファイルのディレクトリ","ファイル名","実行マクロ名","呼び出しファイルのディレクトリ","ファイル名","実行マクロ名","呼び出しファイルのディレクトリ","ファイル名","実行マクロ名"]
[null,null,1]
[null,null,2]
[null,null,3]
[null,null,4]
[null,null,5]

{"sheet":"CV-DataBaseスーパー呼び出し印刷命令リスト39","index":44,"n_rows":20,"n_cols":21,"rows_kept":20,"cut":false,"hidden":false,"merged":[[13,12,13,14],[13,15,13,17],[13,18,13,20],[13,2,14,2],[13,3,13,5],[13,6,13,8],[13,9,13,11]]}
[]
[]
[null,null,null,{"$f":"シート名設定!D48","v":"CV-DataBaseスーパー呼び出し印刷命令リスト39"}]
[null,null,"1．ループ呼び出し設定"]
[]
[null,null,null,"設定項目","設定値"]
[null,null,null,"呼び出しファイル，実行マクロ先頭行番号"]
[null,null,null,"呼び出しファイル，実行マクロ最終行番号"]
[null,null,null,"呼び出しファイル，実行マクロ先頭群番号"]
[null,null,null,"呼び出しファイル，実行マクロ最終群番号"]
[]
[null,null,"２．CV-DataBaseスーパー呼び出し印刷命令リスト設定"]
[]
[null,null,"行番号","実行マクロ群1",null,null,"実行マクロ群２",null,null,"実行マクロ群３",null,null,"実行マクロ群４",null,null,"実行マクロ群５",null,null,"実行マクロ群６"]
[null,null,null,"呼び出しファイルのディレクトリ","ファイル名","実行マクロ名","呼び出しファイルのディレクトリ","ファイル名","実行マクロ名","呼び出しファイルのディレクトリ","ファイル名","実行マクロ名","呼び出しファイルのディレクトリ","ファイル名","実行マクロ名","呼び出しファイルのディレクトリ","ファイル名","実行マクロ名","呼び出しファイルのディレクトリ","ファイル名","実行マクロ名"]
[null,null,1]
[null,null,2]
[null,null,3]
[null,null,4]
[null,null,5]

{"sheet":"CV-DataBaseスーパー呼び出し印刷命令リスト40","index":45,"n_rows":20,"n_cols":21,"rows_kept":20,"cut":false,"hidden":false,"merged":[[13,12,13,14],[13,15,13,17],[13,18,13,20],[13,2,14,2],[13,3,13,5],[13,6,13,8],[13,9,13,11]]}
[]
[]
[null,null,null,{"$f":"シート名設定!D49","v":"CV-DataBaseスーパー呼び出し印刷命令リスト40"}]
[null,null,"1．ループ呼び出し設定"]
[]
[null,null,null,"設定項目","設定値"]
[null,null,null,"呼び出しファイル，実行マクロ先頭行番号"]
[null,null,null,"呼び出しファイル，実行マクロ最終行番号"]
[null,null,null,"呼び出しファイル，実行マクロ先頭群番号"]
[null,null,null,"呼び出しファイル，実行マクロ最終群番号"]
[]
[null,null,"２．CV-DataBaseスーパー呼び出し印刷命令リスト設定"]
[]
[null,null,"行番号","実行マクロ群1",null,null,"実行マクロ群２",null,null,"実行マクロ群３",null,null,"実行マクロ群４",null,null,"実行マクロ群５",null,null,"実行マクロ群６"]
[null,null,null,"呼び出しファイルのディレクトリ","ファイル名","実行マクロ名","呼び出しファイルのディレクトリ","ファイル名","実行マクロ名","呼び出しファイルのディレクトリ","ファイル名","実行マクロ名","呼び出しファイルのディレクトリ","ファイル名","実行マクロ名","呼び出しファイルのディレクトリ","ファイル名","実行マクロ名","呼び出しファイルのディレクトリ","ファイル名","実行マクロ名"]
[null,null,1]
[null,null,2]
[null,null,3]
[null,null,4]
[null,null,5]

{"sheet":"CV-DataBaseスーパー呼び出し印刷命令リスト41","index":46,"n_rows":20,"n_cols":21,"rows_kept":20,"cut":false,"hidden":false,"merged":[[13,12,13,14],[13,15,13,17],[13,18,13,20],[13,2,14,2],[13,3,13,5],[13,6,13,8],[13,9,13,11]]}
[]
[]
[null,null,null,{"$f":"シート名設定!D50","v":"CV-DataBaseスーパー呼び出し印刷命令リスト41"}]
[null,null,"1．ループ呼び出し設定"]
[]
[null,null,null,"設定項目","設定値"]
[null,null,null,"呼び出しファイル，実行マクロ先頭行番号"]
[null,null,null,"呼び出しファイル，実行マクロ最終行番号"]
[null,null,null,"呼び出しファイル，実行マクロ先頭群番号"]
[null,null,null,"呼び出しファイル，実行マクロ最終群番号"]
[]
[null,null,"２．CV-DataBaseスーパー呼び出し印刷命令リスト設定"]
[]
[null,null,"行番号","実行マクロ群1",null,null,"実行マクロ群２",null,null,"実行マクロ群３",null,null,"実行マクロ群４",null,null,"実行マクロ群５",null,null,"実行マクロ群６"]
[null,null,null,"呼び出しファイルのディレクトリ","ファイル名","実行マクロ名","呼び出しファイルのディレクトリ","ファイル名","実行マクロ名","呼び出しファイルのディレクトリ","ファイル名","実行マクロ名","呼び出しファイルのディレクトリ","ファイル名","実行マクロ名","呼び出しファイルのディレクトリ","ファイル名","実行マクロ名","呼び出しファイルのディレクトリ","ファイル名","実行マクロ名"]
[null,null,1]
[null,null,2]
[null,null,3]
[null,null,4]
[null,null,5]

{"sheet":"CV-DataBaseスーパー呼び出し印刷命令リスト42","index":47,"n_rows":20,"n_cols":21,"rows_kept":20,"cut":false,"hidden":false,"merged":[[13,12,13,14],[13,15,13,17],[13,18,13,20],[13,2,14,2],[13,3,13,5],[13,6,13,8],[13,9,13,11]]}
[]
[]
[null,null,null,{"$f":"シート名設定!D51","v":"CV-DataBaseスーパー呼び出し印刷命令リスト42"}]
[null,null,"1．ループ呼び出し設定"]
[]
[null,null,null,"設定項目","設定値"]
[null,null,null,"呼び出しファイル，実行マクロ先頭行番号"]
[null,null,null,"呼び出しファイル，実行マクロ最終行番号"]
[null,null,null,"呼び出しファイル，実行マクロ先頭群番号"]
[null,null,null,"呼び出しファイル，実行マクロ最終群番号"]
[]
[null,null,"２．CV-DataBaseスーパー呼び出し印刷命令リスト設定"]
[]
[null,null,"行番号","実行マクロ群1",null,null,"実行マクロ群２",null,null,"実行マクロ群３",null,null,"実行マクロ群４",null,null,"実行マクロ群５",null,null,"実行マクロ群６"]
[null,null,null,"呼び出しファイルのディレクトリ","ファイル名","実行マクロ名","呼び出しファイルのディレクトリ","ファイル名","実行マクロ名","呼び出しファイルのディレクトリ","ファイル名","実行マクロ名","呼び出しファイルのディレクトリ","ファイル名","実行マクロ名","呼び出しファイルのディレクトリ","ファイル名","実行マクロ名","呼び出しファイルのディレクトリ","ファイル名","実行マクロ名"]
[null,null,1]
[null,null,2]
[null,null,3]
[null,null,4]
[null,null,5]

{"sheet":"CV-DataBaseスーパー呼び出し印刷命令リスト43","index":48,"n_rows":20,"n_cols":21,"rows_kept":20,"cut":false,"hidden":false,"merged":[[13,12,13,14],[13,15,13,17],[13,18,13,20],[13,2,14,2],[13,3,13,5],[13,6,13,8],[13,9,13,11]]}
[]
[]
[null,null,null,{"$f":"シート名設定!D52","v":"CV-DataBaseスーパー呼び出し印刷命令リスト43"}]
[null,null,"1．ループ呼び出し設定"]
[]
[null,null,null,"設定項目","設定値"]
[null,null,null,"呼び出しファイル，実行マクロ先頭行番号"]
[null,null,null,"呼び出しファイル，実行マクロ最終行番号"]
[null,null,null,"呼び出しファイル，実行マクロ先頭群番号"]
[null,null,null,"呼び出しファイル，実行マクロ最終群番号"]
[]
[null,null,"２．CV-DataBaseスーパー呼び出し印刷命令リスト設定"]
[]
[null,null,"行番号","実行マクロ群1",null,null,"実行マクロ群２",null,null,"実行マクロ群３",null,null,"実行マクロ群４",null,null,"実行マクロ群５",null,null,"実行マクロ群６"]
[null,null,null,"呼び出しファイルのディレクトリ","ファイル名","実行マクロ名","呼び出しファイルのディレクトリ","ファイル名","実行マクロ名","呼び出しファイルのディレクトリ","ファイル名","実行マクロ名","呼び出しファイルのディレクトリ","ファイル名","実行マクロ名","呼び出しファイルのディレクトリ","ファイル名","実行マクロ名","呼び出しファイルのディレクトリ","ファイル名","実行マクロ名"]
[null,null,1]
[null,null,2]
[null,null,3]
[null,null,4]
[null,null,5]

{"sheet":"CV-DataBaseスーパー呼び出し印刷命令リスト44","index":49,"n_rows":20,"n_cols":21,"rows_kept":20,"cut":false,"hidden":false,"merged":[[13,12,13,14],[13,15,13,17],[13,18,13,20],[13,2,14,2],[13,3,13,5],[13,6,13,8],[13,9,13,11]]}
[]
[]
[null,null,null,{"$f":"シート名設定!D53","v":"CV-DataBaseスーパー呼び出し印刷命令リスト44"}]
[null,null,"1．ループ呼び出し設定"]
[]
[null,null,null,"設定項目","設定値"]
[null,null,null,"呼び出しファイル，実行マクロ先頭行番号"]
[null,null,null,"呼び出しファイル，実行マクロ最終行番号"]
[null,null,null,"呼び出しファイル，実行マクロ先頭群番号"]
[null,null,null,"呼び出しファイル，実行マクロ最終群番号"]
[]
[null,null,"２．CV-DataBaseスーパー呼び出し印刷命令リスト設定"]
[]
[null,null,"行番号","実行マクロ群1",null,null,"実行マクロ群２",null,null,"実行マクロ群３",null,null,"実行マクロ群４",null,null,"実行マクロ群５",null,null,"実行マクロ群６"]
[null,null,null,"呼び出しファイルのディレクトリ","ファイル名","実行マクロ名","呼び出しファイルのディレクトリ","ファイル名","実行マクロ名","呼び出しファイルのディレクトリ","ファイル名","実行マクロ名","呼び出しファイルのディレクトリ","ファイル名","実行マクロ名","呼び出しファイルのディレクトリ","ファイル名","実行マクロ名","呼び出しファイルのディレクトリ","ファイル名","実行マクロ名"]
[null,null,1]
[null,null,2]
[null,null,3]
[null,null,4]
[null,null,5]

{"sheet":"CV-DataBaseスーパー呼び出し印刷命令リスト45","index":50,"n_rows":20,"n_cols":21,"rows_kept":20,"cut":false,"hidden":false,"merged":[[13,12,13,14],[13,15,13,17],[13,18,13,20],[13,2,14,2],[13,3,13,5],[13,6,13,8],[13,9,13,11]]}
[]
[]
[null,null,null,{"$f":"シート名設定!D54","v":"CV-DataBaseスーパー呼び出し印刷命令リスト45"}]
[null,null,"1．ループ呼び出し設定"]
[]
[null,null,null,"設定項目","設定値"]
[null,null,null,"呼び出しファイル，実行マクロ先頭行番号"]
[null,null,null,"呼び出しファイル，実行マクロ最終行番号"]
[null,null,null,"呼び出しファイル，実行マクロ先頭群番号"]
[null,null,null,"呼び出しファイル，実行マクロ最終群番号"]
[]
[null,null,"２．CV-DataBaseスーパー呼び出し印刷命令リスト設定"]
[]
[null,null,"行番号","実行マクロ群1",null,null,"実行マクロ群２",null,null,"実行マクロ群３",null,null,"実行マクロ群４",null,null,"実行マクロ群５",null,null,"実行マクロ群６"]
[null,null,null,"呼び出しファイルのディレクトリ","ファイル名","実行マクロ名","呼び出しファイルのディレクトリ","ファイル名","実行マクロ名","呼び出しファイルのディレクトリ","ファイル名","実行マクロ名","呼び出しファイルのディレクトリ","ファイル名","実行マクロ名","呼び出しファイルのディレクトリ","ファイル名","実行マクロ名","呼び出しファイルのディレクトリ","ファイル名","実行マクロ名"]
[null,null,1]
[null,null,2]
[null,null,3]
[null,null,4]
[null,null,5]

{"sheet":"CV-DataBaseスーパー呼び出し印刷命令リスト46","index":51,"n_rows":20,"n_cols":21,"rows_kept":20,"cut":false,"hidden":false,"merged":[[13,12,13,14],[13,15,13,17],[13,18,13,20],[13,2,14,2],[13,3,13,5],[13,6,13,8],[13,9,13,11]]}
[]
[]
[null,null,null,{"$f":"シート名設定!D55","v":"CV-DataBaseスーパー呼び出し印刷命令リスト46"}]
[null,null,"1．ループ呼び出し設定"]
[]
[null,null,null,"設定項目","設定値"]
[null,null,null,"呼び出しファイル，実行マクロ先頭行番号"]
[null,null,null,"呼び出しファイル，実行マクロ最終行番号"]
[null,null,null,"呼び出しファイル，実行マクロ先頭群番号"]
[null,null,null,"呼び出しファイル，実行マクロ最終群番号"]
[]
[null,null,"２．CV-DataBaseスーパー呼び出し印刷命令リスト設定"]
[]
[null,null,"行番号","実行マクロ群1",null,null,"実行マクロ群２",null,null,"実行マクロ群３",null,null,"実行マクロ群４",null,null,"実行マクロ群５",null,null,"実行マクロ群６"]
[null,null,null,"呼び出しファイルのディレクトリ","ファイル名","実行マクロ名","呼び出しファイルのディレクトリ","ファイル名","実行マクロ名","呼び出しファイルのディレクトリ","ファイル名","実行マクロ名","呼び出しファイルのディレクトリ","ファイル名","実行マクロ名","呼び出しファイルのディレクトリ","ファイル名","実行マクロ名","呼び出しファイルのディレクトリ","ファイル名","実行マクロ名"]
[null,null,1]
[null,null,2]
[null,null,3]
[null,null,4]
[null,null,5]

{"sheet":"CV-DataBaseスーパー呼び出し印刷命令リスト47","index":52,"n_rows":20,"n_cols":21,"rows_kept":20,"cut":false,"hidden":false,"merged":[[13,12,13,14],[13,15,13,17],[13,18,13,20],[13,2,14,2],[13,3,13,5],[13,6,13,8],[13,9,13,11]]}
[]
[]
[null,null,null,{"$f":"シート名設定!D56","v":"CV-DataBaseスーパー呼び出し印刷命令リスト47"}]
[null,null,"1．ループ呼び出し設定"]
[]
[null,null,null,"設定項目","設定値"]
[null,null,null,"呼び出しファイル，実行マクロ先頭行番号"]
[null,null,null,"呼び出しファイル，実行マクロ最終行番号"]
[null,null,null,"呼び出しファイル，実行マクロ先頭群番号"]
[null,null,null,"呼び出しファイル，実行マクロ最終群番号"]
[]
[null,null,"２．CV-DataBaseスーパー呼び出し印刷命令リスト設定"]
[]
[null,null,"行番号","実行マクロ群1",null,null,"実行マクロ群２",null,null,"実行マクロ群３",null,null,"実行マクロ群４",null,null,"実行マクロ群５",null,null,"実行マクロ群６"]
[null,null,null,"呼び出しファイルのディレクトリ","ファイル名","実行マクロ名","呼び出しファイルのディレクトリ","ファイル名","実行マクロ名","呼び出しファイルのディレクトリ","ファイル名","実行マクロ名","呼び出しファイルのディレクトリ","ファイル名","実行マクロ名","呼び出しファイルのディレクトリ","ファイル名","実行マクロ名","呼び出しファイルのディレクトリ","ファイル名","実行マクロ名"]
[null,null,1]
[null,null,2]
[null,null,3]
[null,null,4]
[null,null,5]

{"sheet":"CV-DataBaseスーパー呼び出し印刷命令リスト48","index":53,"n_rows":20,"n_cols":21,"rows_kept":20,"cut":false,"hidden":false,"merged":[[13,12,13,14],[13,15,13,17],[13,18,13,20],[13,2,14,2],[13,3,13,5],[13,6,13,8],[13,9,13,11]]}
[]
[]
[null,null,null,{"$f":"シート名設定!D57","v":"CV-DataBaseスーパー呼び出し印刷命令リスト48"}]
[null,null,"1．ループ呼び出し設定"]
[]
[null,null,null,"設定項目","設定値"]
[null,null,null,"呼び出しファイル，実行マクロ先頭行番号"]
[null,null,null,"呼び出しファイル，実行マクロ最終行番号"]
[null,null,null,"呼び出しファイル，実行マクロ先頭群番号"]
[null,null,null,"呼び出しファイル，実行マクロ最終群番号"]
[]
[null,null,"２．CV-DataBaseスーパー呼び出し印刷命令リスト設定"]
[]
[null,null,"行番号","実行マクロ群1",null,null,"実行マクロ群２",null,null,"実行マクロ群３",null,null,"実行マクロ群４",null,null,"実行マクロ群５",null,null,"実行マクロ群６"]
[null,null,null,"呼び出しファイルのディレクトリ","ファイル名","実行マクロ名","呼び出しファイルのディレクトリ","ファイル名","実行マクロ名","呼び出しファイルのディレクトリ","ファイル名","実行マクロ名","呼び出しファイルのディレクトリ","ファイル名","実行マクロ名","呼び出しファイルのディレクトリ","ファイル名","実行マクロ名","呼び出しファイルのディレクトリ","ファイル名","実行マクロ名"]
[null,null,1]
[null,null,2]
[null,null,3]
[null,null,4]
[null,null,5]

{"sheet":"CV-DataBaseスーパー呼び出し印刷命令リスト49","index":54,"n_rows":20,"n_cols":21,"rows_kept":20,"cut":false,"hidden":false,"merged":[[13,12,13,14],[13,15,13,17],[13,18,13,20],[13,2,14,2],[13,3,13,5],[13,6,13,8],[13,9,13,11]]}
[]
[]
[null,null,null,{"$f":"シート名設定!D58","v":"CV-DataBaseスーパー呼び出し印刷命令リスト49"}]
[null,null,"1．ループ呼び出し設定"]
[]
[null,null,null,"設定項目","設定値"]
[null,null,null,"呼び出しファイル，実行マクロ先頭行番号"]
[null,null,null,"呼び出しファイル，実行マクロ最終行番号"]
[null,null,null,"呼び出しファイル，実行マクロ先頭群番号"]
[null,null,null,"呼び出しファイル，実行マクロ最終群番号"]
[]
[null,null,"２．CV-DataBaseスーパー呼び出し印刷命令リスト設定"]
[]
[null,null,"行番号","実行マクロ群1",null,null,"実行マクロ群２",null,null,"実行マクロ群３",null,null,"実行マクロ群４",null,null,"実行マクロ群５",null,null,"実行マクロ群６"]
[null,null,null,"呼び出しファイルのディレクトリ","ファイル名","実行マクロ名","呼び出しファイルのディレクトリ","ファイル名","実行マクロ名","呼び出しファイルのディレクトリ","ファイル名","実行マクロ名","呼び出しファイルのディレクトリ","ファイル名","実行マクロ名","呼び出しファイルのディレクトリ","ファイル名","実行マクロ名","呼び出しファイルのディレクトリ","ファイル名","実行マクロ名"]
[null,null,1]
[null,null,2]
[null,null,3]
[null,null,4]
[null,null,5]

{"sheet":"CV-DataBaseスーパー呼び出し印刷命令リスト50","index":55,"n_rows":20,"n_cols":21,"rows_kept":20,"cut":false,"hidden":false,"merged":[[13,12,13,14],[13,15,13,17],[13,18,13,20],[13,2,14,2],[13,3,13,5],[13,6,13,8],[13,9,13,11]]}
[]
[]
[null,null,null,{"$f":"シート名設定!D59","v":"CV-DataBaseスーパー呼び出し印刷命令リスト50"}]
[null,null,"1．ループ呼び出し設定"]
[]
[null,null,null,"設定項目","設定値"]
[null,null,null,"呼び出しファイル，実行マクロ先頭行番号"]
[null,null,null,"呼び出しファイル，実行マクロ最終行番号"]
[null,null,null,"呼び出しファイル，実行マクロ先頭群番号"]
[null,null,null,"呼び出しファイル，実行マクロ最終群番号"]
[]
[null,null,"２．CV-DataBaseスーパー呼び出し印刷命令リスト設定"]
[]
[null,null,"行番号","実行マクロ群1",null,null,"実行マクロ群２",null,null,"実行マクロ群３",null,null,"実行マクロ群４",null,null,"実行マクロ群５",null,null,"実行マクロ群６"]
[null,null,null,"呼び出しファイルのディレクトリ","ファイル名","実行マクロ名","呼び出しファイルのディレクトリ","ファイル名","実行マクロ名","呼び出しファイルのディレクトリ","ファイル名","実行マクロ名","呼び出しファイルのディレクトリ","ファイル名","実行マクロ名","呼び出しファイルのディレクトリ","ファイル名","実行マクロ名","呼び出しファイルのディレクトリ","ファイル名","実行マクロ名"]
[null,null,1]
[null,null,2]
[null,null,3]
[null,null,4]
[null,null,5]

{"sheet":"CV-DataBaseスーパー呼び出し印刷命令リスト51","index":56,"n_rows":20,"n_cols":21,"rows_kept":20,"cut":false,"hidden":false,"merged":[[13,12,13,14],[13,15,13,17],[13,18,13,20],[13,2,14,2],[13,3,13,5],[13,6,13,8],[13,9,13,11]]}
[]
[]
[null,null,null,{"$f":"シート名設定!D60","v":"CV-DataBaseスーパー呼び出し印刷命令リスト51"}]
[null,null,"1．ループ呼び出し設定"]
[]
[null,null,null,"設定項目","設定値"]
[null,null,null,"呼び出しファイル，実行マクロ先頭行番号"]
[null,null,null,"呼び出しファイル，実行マクロ最終行番号"]
[null,null,null,"呼び出しファイル，実行マクロ先頭群番号"]
[null,null,null,"呼び出しファイル，実行マクロ最終群番号"]
[]
[null,null,"２．CV-DataBaseスーパー呼び出し印刷命令リスト設定"]
[]
[null,null,"行番号","実行マクロ群1",null,null,"実行マクロ群２",null,null,"実行マクロ群３",null,null,"実行マクロ群４",null,null,"実行マクロ群５",null,null,"実行マクロ群６"]
[null,null,null,"呼び出しファイルのディレクトリ","ファイル名","実行マクロ名","呼び出しファイルのディレクトリ","ファイル名","実行マクロ名","呼び出しファイルのディレクトリ","ファイル名","実行マクロ名","呼び出しファイルのディレクトリ","ファイル名","実行マクロ名","呼び出しファイルのディレクトリ","ファイル名","実行マクロ名","呼び出しファイルのディレクトリ","ファイル名","実行マクロ名"]
[null,null,1]
[null,null,2]
[null,null,3]
[null,null,4]
[null,null,5]

{"sheet":"CV-DataBaseスーパー呼び出し印刷命令リスト52","index":57,"n_rows":20,"n_cols":21,"rows_kept":20,"cut":false,"hidden":false,"merged":[[13,12,13,14],[13,15,13,17],[13,18,13,20],[13,2,14,2],[13,3,13,5],[13,6,13,8],[13,9,13,11]]}
[]
[]
[null,null,null,{"$f":"シート名設定!D61","v":"CV-DataBaseスーパー呼び出し印刷命令リスト52"}]
[null,null,"1．ループ呼び出し設定"]
[]
[null,null,null,"設定項目","設定値"]
[null,null,null,"呼び出しファイル，実行マクロ先頭行番号"]
[null,null,null,"呼び出しファイル，実行マクロ最終行番号"]
[null,null,null,"呼び出しファイル，実行マクロ先頭群番号"]
[null,null,null,"呼び出しファイル，実行マクロ最終群番号"]
[]
[null,null,"２．CV-DataBaseスーパー呼び出し印刷命令リスト設定"]
[]
[null,null,"行番号","実行マクロ群1",null,null,"実行マクロ群２",null,null,"実行マクロ群３",null,null,"実行マクロ群４",null,null,"実行マクロ群５",null,null,"実行マクロ群６"]
[null,null,null,"呼び出しファイルのディレクトリ","ファイル名","実行マクロ名","呼び出しファイルのディレクトリ","ファイル名","実行マクロ名","呼び出しファイルのディレクトリ","ファイル名","実行マクロ名","呼び出しファイルのディレクトリ","ファイル名","実行マクロ名","呼び出しファイルのディレクトリ","ファイル名","実行マクロ名","呼び出しファイルのディレクトリ","ファイル名","実行マクロ名"]
[null,null,1]
[null,null,2]
[null,null,3]
[null,null,4]
[null,null,5]

{"sheet":"CV-DataBaseスーパー呼び出し印刷命令リスト53","index":58,"n_rows":20,"n_cols":21,"rows_kept":20,"cut":false,"hidden":false,"merged":[[13,12,13,14],[13,15,13,17],[13,18,13,20],[13,2,14,2],[13,3,13,5],[13,6,13,8],[13,9,13,11]]}
[]
[]
[null,null,null,{"$f":"シート名設定!D62","v":"CV-DataBaseスーパー呼び出し印刷命令リスト53"}]
[null,null,"1．ループ呼び出し設定"]
[]
[null,null,null,"設定項目","設定値"]
[null,null,null,"呼び出しファイル，実行マクロ先頭行番号"]
[null,null,null,"呼び出しファイル，実行マクロ最終行番号"]
[null,null,null,"呼び出しファイル，実行マクロ先頭群番号"]
[null,null,null,"呼び出しファイル，実行マクロ最終群番号"]
[]
[null,null,"２．CV-DataBaseスーパー呼び出し印刷命令リスト設定"]
[]
[null,null,"行番号","実行マクロ群1",null,null,"実行マクロ群２",null,null,"実行マクロ群３",null,null,"実行マクロ群４",null,null,"実行マクロ群５",null,null,"実行マクロ群６"]
[null,null,null,"呼び出しファイルのディレクトリ","ファイル名","実行マクロ名","呼び出しファイルのディレクトリ","ファイル名","実行マクロ名","呼び出しファイルのディレクトリ","ファイル名","実行マクロ名","呼び出しファイルのディレクトリ","ファイル名","実行マクロ名","呼び出しファイルのディレクトリ","ファイル名","実行マクロ名","呼び出しファイルのディレクトリ","ファイル名","実行マクロ名"]
[null,null,1]
[null,null,2]
[null,null,3]
[null,null,4]
[null,null,5]

{"sheet":"CV-DataBaseスーパー呼び出し印刷命令リスト54","index":59,"n_rows":20,"n_cols":21,"rows_kept":20,"cut":false,"hidden":false,"merged":[[13,12,13,14],[13,15,13,17],[13,18,13,20],[13,2,14,2],[13,3,13,5],[13,6,13,8],[13,9,13,11]]}
[]
[]
[null,null,null,{"$f":"シート名設定!D63","v":"CV-DataBaseスーパー呼び出し印刷命令リスト54"}]
[null,null,"1．ループ呼び出し設定"]
[]
[null,null,null,"設定項目","設定値"]
[null,null,null,"呼び出しファイル，実行マクロ先頭行番号"]
[null,null,null,"呼び出しファイル，実行マクロ最終行番号"]
[null,null,null,"呼び出しファイル，実行マクロ先頭群番号"]
[null,null,null,"呼び出しファイル，実行マクロ最終群番号"]
[]
[null,null,"２．CV-DataBaseスーパー呼び出し印刷命令リスト設定"]
[]
[null,null,"行番号","実行マクロ群1",null,null,"実行マクロ群２",null,null,"実行マクロ群３",null,null,"実行マクロ群４",null,null,"実行マクロ群５",null,null,"実行マクロ群６"]
[null,null,null,"呼び出しファイルのディレクトリ","ファイル名","実行マクロ名","呼び出しファイルのディレクトリ","ファイル名","実行マクロ名","呼び出しファイルのディレクトリ","ファイル名","実行マクロ名","呼び出しファイルのディレクトリ","ファイル名","実行マクロ名","呼び出しファイルのディレクトリ","ファイル名","実行マクロ名","呼び出しファイルのディレクトリ","ファイル名","実行マクロ名"]
[null,null,1]
[null,null,2]
[null,null,3]
[null,null,4]
[null,null,5]

{"sheet":"CV-DataBaseスーパー呼び出し印刷命令リスト55","index":60,"n_rows":20,"n_cols":21,"rows_kept":20,"cut":false,"hidden":false,"merged":[[13,12,13,14],[13,15,13,17],[13,18,13,20],[13,2,14,2],[13,3,13,5],[13,6,13,8],[13,9,13,11]]}
[]
[]
[null,null,null,{"$f":"シート名設定!D64","v":"CV-DataBaseスーパー呼び出し印刷命令リスト55"}]
[null,null,"1．ループ呼び出し設定"]
[]
[null,null,null,"設定項目","設定値"]
[null,null,null,"呼び出しファイル，実行マクロ先頭行番号"]
[null,null,null,"呼び出しファイル，実行マクロ最終行番号"]
[null,null,null,"呼び出しファイル，実行マクロ先頭群番号"]
[null,null,null,"呼び出しファイル，実行マクロ最終群番号"]
[]
[null,null,"２．CV-DataBaseスーパー呼び出し印刷命令リスト設定"]
[]
[null,null,"行番号","実行マクロ群1",null,null,"実行マクロ群２",null,null,"実行マクロ群３",null,null,"実行マクロ群４",null,null,"実行マクロ群５",null,null,"実行マクロ群６"]
[null,null,null,"呼び出しファイルのディレクトリ","ファイル名","実行マクロ名","呼び出しファイルのディレクトリ","ファイル名","実行マクロ名","呼び出しファイルのディレクトリ","ファイル名","実行マクロ名","呼び出しファイルのディレクトリ","ファイル名","実行マクロ名","呼び出しファイルのディレクトリ","ファイル名","実行マクロ名","呼び出しファイルのディレクトリ","ファイル名","実行マクロ名"]
[null,null,1]
[null,null,2]
[null,null,3]
[null,null,4]
[null,null,5]

{"sheet":"CV-DataBaseスーパー呼び出し印刷命令リスト56","index":61,"n_rows":20,"n_cols":21,"rows_kept":20,"cut":false,"hidden":false,"merged":[[13,12,13,14],[13,15,13,17],[13,18,13,20],[13,2,14,2],[13,3,13,5],[13,6,13,8],[13,9,13,11]]}
[]
[]
[null,null,null,{"$f":"シート名設定!D65","v":"CV-DataBaseスーパー呼び出し印刷命令リスト56"}]
[null,null,"1．ループ呼び出し設定"]
[]
[null,null,null,"設定項目","設定値"]
[null,null,null,"呼び出しファイル，実行マクロ先頭行番号"]
[null,null,null,"呼び出しファイル，実行マクロ最終行番号"]
[null,null,null,"呼び出しファイル，実行マクロ先頭群番号"]
[null,null,null,"呼び出しファイル，実行マクロ最終群番号"]
[]
[null,null,"２．CV-DataBaseスーパー呼び出し印刷命令リスト設定"]
[]
[null,null,"行番号","実行マクロ群1",null,null,"実行マクロ群２",null,null,"実行マクロ群３",null,null,"実行マクロ群４",null,null,"実行マクロ群５",null,null,"実行マクロ群６"]
[null,null,null,"呼び出しファイルのディレクトリ","ファイル名","実行マクロ名","呼び出しファイルのディレクトリ","ファイル名","実行マクロ名","呼び出しファイルのディレクトリ","ファイル名","実行マクロ名","呼び出しファイルのディレクトリ","ファイル名","実行マクロ名","呼び出しファイルのディレクトリ","ファイル名","実行マクロ名","呼び出しファイルのディレクトリ","ファイル名","実行マクロ名"]
[null,null,1]
[null,null,2]
[null,null,3]
[null,null,4]
[null,null,5]

{"sheet":"CV-DataBaseスーパー呼び出し印刷命令リスト57","index":62,"n_rows":20,"n_cols":21,"rows_kept":20,"cut":false,"hidden":false,"merged":[[13,12,13,14],[13,15,13,17],[13,18,13,20],[13,2,14,2],[13,3,13,5],[13,6,13,8],[13,9,13,11]]}
[]
[]
[null,null,null,{"$f":"シート名設定!D66","v":"CV-DataBaseスーパー呼び出し印刷命令リスト57"}]
[null,null,"1．ループ呼び出し設定"]
[]
[null,null,null,"設定項目","設定値"]
[null,null,null,"呼び出しファイル，実行マクロ先頭行番号"]
[null,null,null,"呼び出しファイル，実行マクロ最終行番号"]
[null,null,null,"呼び出しファイル，実行マクロ先頭群番号"]
[null,null,null,"呼び出しファイル，実行マクロ最終群番号"]
[]
[null,null,"２．CV-DataBaseスーパー呼び出し印刷命令リスト設定"]
[]
[null,null,"行番号","実行マクロ群1",null,null,"実行マクロ群２",null,null,"実行マクロ群３",null,null,"実行マクロ群４",null,null,"実行マクロ群５",null,null,"実行マクロ群６"]
[null,null,null,"呼び出しファイルのディレクトリ","ファイル名","実行マクロ名","呼び出しファイルのディレクトリ","ファイル名","実行マクロ名","呼び出しファイルのディレクトリ","ファイル名","実行マクロ名","呼び出しファイルのディレクトリ","ファイル名","実行マクロ名","呼び出しファイルのディレクトリ","ファイル名","実行マクロ名","呼び出しファイルのディレクトリ","ファイル名","実行マクロ名"]
[null,null,1]
[null,null,2]
[null,null,3]
[null,null,4]
[null,null,5]

{"sheet":"CV-DataBaseスーパー呼び出し印刷命令リスト58","index":63,"n_rows":20,"n_cols":21,"rows_kept":20,"cut":false,"hidden":false,"merged":[[13,12,13,14],[13,15,13,17],[13,18,13,20],[13,2,14,2],[13,3,13,5],[13,6,13,8],[13,9,13,11]]}
[]
[]
[null,null,null,{"$f":"シート名設定!D67","v":"CV-DataBaseスーパー呼び出し印刷命令リスト58"}]
[null,null,"1．ループ呼び出し設定"]
[]
[null,null,null,"設定項目","設定値"]
[null,null,null,"呼び出しファイル，実行マクロ先頭行番号"]
[null,null,null,"呼び出しファイル，実行マクロ最終行番号"]
[null,null,null,"呼び出しファイル，実行マクロ先頭群番号"]
[null,null,null,"呼び出しファイル，実行マクロ最終群番号"]
[]
[null,null,"２．CV-DataBaseスーパー呼び出し印刷命令リスト設定"]
[]
[null,null,"行番号","実行マクロ群1",null,null,"実行マクロ群２",null,null,"実行マクロ群３",null,null,"実行マクロ群４",null,null,"実行マクロ群５",null,null,"実行マクロ群６"]
[null,null,null,"呼び出しファイルのディレクトリ","ファイル名","実行マクロ名","呼び出しファイルのディレクトリ","ファイル名","実行マクロ名","呼び出しファイルのディレクトリ","ファイル名","実行マクロ名","呼び出しファイルのディレクトリ","ファイル名","実行マクロ名","呼び出しファイルのディレクトリ","ファイル名","実行マクロ名","呼び出しファイルのディレクトリ","ファイル名","実行マクロ名"]
[null,null,1]
[null,null,2]
[null,null,3]
[null,null,4]
[null,null,5]

{"sheet":"CV-DataBaseスーパー呼び出し印刷命令リスト59","index":64,"n_rows":20,"n_cols":21,"rows_kept":20,"cut":false,"hidden":false,"merged":[[13,12,13,14],[13,15,13,17],[13,18,13,20],[13,2,14,2],[13,3,13,5],[13,6,13,8],[13,9,13,11]]}
[]
[]
[null,null,null,{"$f":"シート名設定!D68","v":"CV-DataBaseスーパー呼び出し印刷命令リスト59"}]
[null,null,"1．ループ呼び出し設定"]
[]
[null,null,null,"設定項目","設定値"]
[null,null,null,"呼び出しファイル，実行マクロ先頭行番号"]
[null,null,null,"呼び出しファイル，実行マクロ最終行番号"]
[null,null,null,"呼び出しファイル，実行マクロ先頭群番号"]
[null,null,null,"呼び出しファイル，実行マクロ最終群番号"]
[]
[null,null,"２．CV-DataBaseスーパー呼び出し印刷命令リスト設定"]
[]
[null,null,"行番号","実行マクロ群1",null,null,"実行マクロ群２",null,null,"実行マクロ群３",null,null,"実行マクロ群４",null,null,"実行マクロ群５",null,null,"実行マクロ群６"]
[null,null,null,"呼び出しファイルのディレクトリ","ファイル名","実行マクロ名","呼び出しファイルのディレクトリ","ファイル名","実行マクロ名","呼び出しファイルのディレクトリ","ファイル名","実行マクロ名","呼び出しファイルのディレクトリ","ファイル名","実行マクロ名","呼び出しファイルのディレクトリ","ファイル名","実行マクロ名","呼び出しファイルのディレクトリ","ファイル名","実行マクロ名"]
[null,null,1]
[null,null,2]
[null,null,3]
[null,null,4]
[null,null,5]

{"sheet":"CV-DataBaseスーパー呼び出し印刷命令リスト60","index":65,"n_rows":20,"n_cols":21,"rows_kept":20,"cut":false,"hidden":false,"merged":[[13,12,13,14],[13,15,13,17],[13,18,13,20],[13,2,14,2],[13,3,13,5],[13,6,13,8],[13,9,13,11]]}
[]
[]
[null,null,null,{"$f":"シート名設定!D69","v":"CV-DataBaseスーパー呼び出し印刷命令リスト60"}]
[null,null,"1．ループ呼び出し設定"]
[]
[null,null,null,"設定項目","設定値"]
[null,null,null,"呼び出しファイル，実行マクロ先頭行番号"]
[null,null,null,"呼び出しファイル，実行マクロ最終行番号"]
[null,null,null,"呼び出しファイル，実行マクロ先頭群番号"]
[null,null,null,"呼び出しファイル，実行マクロ最終群番号"]
[]
[null,null,"２．CV-DataBaseスーパー呼び出し印刷命令リスト設定"]
[]
[null,null,"行番号","実行マクロ群1",null,null,"実行マクロ群２",null,null,"実行マクロ群３",null,null,"実行マクロ群４",null,null,"実行マクロ群５",null,null,"実行マクロ群６"]
[null,null,null,"呼び出しファイルのディレクトリ","ファイル名","実行マクロ名","呼び出しファイルのディレクトリ","ファイル名","実行マクロ名","呼び出しファイルのディレクトリ","ファイル名","実行マクロ名","呼び出しファイルのディレクトリ","ファイル名","実行マクロ名","呼び出しファイルのディレクトリ","ファイル名","実行マクロ名","呼び出しファイルのディレクトリ","ファイル名","実行マクロ名"]
[null,null,1]
[null,null,2]
[null,null,3]
[null,null,4]
[null,null,5]

{"sheet":"CV-DataBaseスーパー呼び出し印刷命令リスト61","index":66,"n_rows":20,"n_cols":21,"rows_kept":20,"cut":false,"hidden":false,"merged":[[13,12,13,14],[13,15,13,17],[13,18,13,20],[13,2,14,2],[13,3,13,5],[13,6,13,8],[13,9,13,11]]}
[]
[]
[null,null,null,{"$f":"シート名設定!D70","v":"CV-DataBaseスーパー呼び出し印刷命令リスト61"}]
[null,null,"1．ループ呼び出し設定"]
[]
[null,null,null,"設定項目","設定値"]
[null,null,null,"呼び出しファイル，実行マクロ先頭行番号"]
[null,null,null,"呼び出しファイル，実行マクロ最終行番号"]
[null,null,null,"呼び出しファイル，実行マクロ先頭群番号"]
[null,null,null,"呼び出しファイル，実行マクロ最終群番号"]
[]
[null,null,"２．CV-DataBaseスーパー呼び出し印刷命令リスト設定"]
[]
[null,null,"行番号","実行マクロ群1",null,null,"実行マクロ群２",null,null,"実行マクロ群３",null,null,"実行マクロ群４",null,null,"実行マクロ群５",null,null,"実行マクロ群６"]
[null,null,null,"呼び出しファイルのディレクトリ","ファイル名","実行マクロ名","呼び出しファイルのディレクトリ","ファイル名","実行マクロ名","呼び出しファイルのディレクトリ","ファイル名","実行マクロ名","呼び出しファイルのディレクトリ","ファイル名","実行マクロ名","呼び出しファイルのディレクトリ","ファイル名","実行マクロ名","呼び出しファイルのディレクトリ","ファイル名","実行マクロ名"]
[null,null,1]
[null,null,2]
[null,null,3]
[null,null,4]
[null,null,5]

{"sheet":"CV-DataBaseスーパー呼び出し印刷命令リスト62","index":67,"n_rows":20,"n_cols":21,"rows_kept":20,"cut":false,"hidden":false,"merged":[[13,12,13,14],[13,15,13,17],[13,18,13,20],[13,2,14,2],[13,3,13,5],[13,6,13,8],[13,9,13,11]]}
[]
[]
[null,null,null,{"$f":"シート名設定!D71","v":"CV-DataBaseスーパー呼び出し印刷命令リスト62"}]
[null,null,"1．ループ呼び出し設定"]
[]
[null,null,null,"設定項目","設定値"]
[null,null,null,"呼び出しファイル，実行マクロ先頭行番号"]
[null,null,null,"呼び出しファイル，実行マクロ最終行番号"]
[null,null,null,"呼び出しファイル，実行マクロ先頭群番号"]
[null,null,null,"呼び出しファイル，実行マクロ最終群番号"]
[]
[null,null,"２．CV-DataBaseスーパー呼び出し印刷命令リスト設定"]
[]
[null,null,"行番号","実行マクロ群1",null,null,"実行マクロ群２",null,null,"実行マクロ群３",null,null,"実行マクロ群４",null,null,"実行マクロ群５",null,null,"実行マクロ群６"]
[null,null,null,"呼び出しファイルのディレクトリ","ファイル名","実行マクロ名","呼び出しファイルのディレクトリ","ファイル名","実行マクロ名","呼び出しファイルのディレクトリ","ファイル名","実行マクロ名","呼び出しファイルのディレクトリ","ファイル名","実行マクロ名","呼び出しファイルのディレクトリ","ファイル名","実行マクロ名","呼び出しファイルのディレクトリ","ファイル名","実行マクロ名"]
[null,null,1]
[null,null,2]
[null,null,3]
[null,null,4]
[null,null,5]

{"sheet":"CV-DataBaseスーパー呼び出し印刷命令リスト63","index":68,"n_rows":20,"n_cols":21,"rows_kept":20,"cut":false,"hidden":false,"merged":[[13,12,13,14],[13,15,13,17],[13,18,13,20],[13,2,14,2],[13,3,13,5],[13,6,13,8],[13,9,13,11]]}
[]
[]
[null,null,null,{"$f":"シート名設定!D72","v":"CV-DataBaseスーパー呼び出し印刷命令リスト63"}]
[null,null,"1．ループ呼び出し設定"]
[]
[null,null,null,"設定項目","設定値"]
[null,null,null,"呼び出しファイル，実行マクロ先頭行番号"]
[null,null,null,"呼び出しファイル，実行マクロ最終行番号"]
[null,null,null,"呼び出しファイル，実行マクロ先頭群番号"]
[null,null,null,"呼び出しファイル，実行マクロ最終群番号"]
[]
[null,null,"２．CV-DataBaseスーパー呼び出し印刷命令リスト設定"]
[]
[null,null,"行番号","実行マクロ群1",null,null,"実行マクロ群２",null,null,"実行マクロ群３",null,null,"実行マクロ群４",null,null,"実行マクロ群５",null,null,"実行マクロ群６"]
[null,null,null,"呼び出しファイルのディレクトリ","ファイル名","実行マクロ名","呼び出しファイルのディレクトリ","ファイル名","実行マクロ名","呼び出しファイルのディレクトリ","ファイル名","実行マクロ名","呼び出しファイルのディレクトリ","ファイル名","実行マクロ名","呼び出しファイルのディレクトリ","ファイル名","実行マクロ名","呼び出しファイルのディレクトリ","ファイル名","実行マクロ名"]
[null,null,1]
[null,null,2]
[null,null,3]
[null,null,4]
[null,null,5]

{"sheet":"CV-DataBaseスーパー呼び出し印刷命令リスト64","index":69,"n_rows":20,"n_cols":21,"rows_kept":20,"cut":false,"hidden":false,"merged":[[13,12,13,14],[13,15,13,17],[13,18,13,20],[13,2,14,2],[13,3,13,5],[13,6,13,8],[13,9,13,11]]}
[]
[]
[null,null,null,{"$f":"シート名設定!D73","v":"CV-DataBaseスーパー呼び出し印刷命令リスト64"}]
[null,null,"1．ループ呼び出し設定"]
[]
[null,null,null,"設定項目","設定値"]
[null,null,null,"呼び出しファイル，実行マクロ先頭行番号"]
[null,null,null,"呼び出しファイル，実行マクロ最終行番号"]
[null,null,null,"呼び出しファイル，実行マクロ先頭群番号"]
[null,null,null,"呼び出しファイル，実行マクロ最終群番号"]
[]
[null,null,"２．CV-DataBaseスーパー呼び出し印刷命令リスト設定"]
[]
[null,null,"行番号","実行マクロ群1",null,null,"実行マクロ群２",null,null,"実行マクロ群３",null,null,"実行マクロ群４",null,null,"実行マクロ群５",null,null,"実行マクロ群６"]
[null,null,null,"呼び出しファイルのディレクトリ","ファイル名","実行マクロ名","呼び出しファイルのディレクトリ","ファイル名","実行マクロ名","呼び出しファイルのディレクトリ","ファイル名","実行マクロ名","呼び出しファイルのディレクトリ","ファイル名","実行マクロ名","呼び出しファイルのディレクトリ","ファイル名","実行マクロ名","呼び出しファイルのディレクトリ","ファイル名","実行マクロ名"]
[null,null,1]
[null,null,2]
[null,null,3]
[null,null,4]
[null,null,5]

{"sheet":"CV-DataBaseスーパー呼び出し印刷命令リスト65","index":70,"n_rows":20,"n_cols":21,"rows_kept":20,"cut":false,"hidden":false,"merged":[[13,12,13,14],[13,15,13,17],[13,18,13,20],[13,2,14,2],[13,3,13,5],[13,6,13,8],[13,9,13,11]]}
[]
[]
[null,null,null,{"$f":"シート名設定!D74","v":"CV-DataBaseスーパー呼び出し印刷命令リスト65"}]
[null,null,"1．ループ呼び出し設定"]
[]
[null,null,null,"設定項目","設定値"]
[null,null,null,"呼び出しファイル，実行マクロ先頭行番号"]
[null,null,null,"呼び出しファイル，実行マクロ最終行番号"]
[null,null,null,"呼び出しファイル，実行マクロ先頭群番号"]
[null,null,null,"呼び出しファイル，実行マクロ最終群番号"]
[]
[null,null,"２．CV-DataBaseスーパー呼び出し印刷命令リスト設定"]
[]
[null,null,"行番号","実行マクロ群1",null,null,"実行マクロ群２",null,null,"実行マクロ群３",null,null,"実行マクロ群４",null,null,"実行マクロ群５",null,null,"実行マクロ群６"]
[null,null,null,"呼び出しファイルのディレクトリ","ファイル名","実行マクロ名","呼び出しファイルのディレクトリ","ファイル名","実行マクロ名","呼び出しファイルのディレクトリ","ファイル名","実行マクロ名","呼び出しファイルのディレクトリ","ファイル名","実行マクロ名","呼び出しファイルのディレクトリ","ファイル名","実行マクロ名","呼び出しファイルのディレクトリ","ファイル名","実行マクロ名"]
[null,null,1]
[null,null,2]
[null,null,3]
[null,null,4]
[null,null,5]

{"sheet":"CV-DataBaseスーパー呼び出し印刷命令リスト66","index":71,"n_rows":20,"n_cols":21,"rows_kept":20,"cut":false,"hidden":false,"merged":[[13,12,13,14],[13,15,13,17],[13,18,13,20],[13,2,14,2],[13,3,13,5],[13,6,13,8],[13,9,13,11]]}
[]
[]
[null,null,null,{"$f":"シート名設定!D75","v":"CV-DataBaseスーパー呼び出し印刷命令リスト66"}]
[null,null,"1．ループ呼び出し設定"]
[]
[null,null,null,"設定項目","設定値"]
[null,null,null,"呼び出しファイル，実行マクロ先頭行番号"]
[null,null,null,"呼び出しファイル，実行マクロ最終行番号"]
[null,null,null,"呼び出しファイル，実行マクロ先頭群番号"]
[null,null,null,"呼び出しファイル，実行マクロ最終群番号"]
[]
[null,null,"２．CV-DataBaseスーパー呼び出し印刷命令リスト設定"]
[]
[null,null,"行番号","実行マクロ群1",null,null,"実行マクロ群２",null,null,"実行マクロ群３",null,null,"実行マクロ群４",null,null,"実行マクロ群５",null,null,"実行マクロ群６"]
[null,null,null,"呼び出しファイルのディレクトリ","ファイル名","実行マクロ名","呼び出しファイルのディレクトリ","ファイル名","実行マクロ名","呼び出しファイルのディレクトリ","ファイル名","実行マクロ名","呼び出しファイルのディレクトリ","ファイル名","実行マクロ名","呼び出しファイルのディレクトリ","ファイル名","実行マクロ名","呼び出しファイルのディレクトリ","ファイル名","実行マクロ名"]
[null,null,1]
[null,null,2]
[null,null,3]
[null,null,4]
[null,null,5]

{"sheet":"CV-DataBaseスーパー呼び出し印刷命令リスト67","index":72,"n_rows":20,"n_cols":21,"rows_kept":20,"cut":false,"hidden":false,"merged":[[13,12,13,14],[13,15,13,17],[13,18,13,20],[13,2,14,2],[13,3,13,5],[13,6,13,8],[13,9,13,11]]}
[]
[]
[null,null,null,{"$f":"シート名設定!D76","v":"CV-DataBaseスーパー呼び出し印刷命令リスト67"}]
[null,null,"1．ループ呼び出し設定"]
[]
[null,null,null,"設定項目","設定値"]
[null,null,null,"呼び出しファイル，実行マクロ先頭行番号"]
[null,null,null,"呼び出しファイル，実行マクロ最終行番号"]
[null,null,null,"呼び出しファイル，実行マクロ先頭群番号"]
[null,null,null,"呼び出しファイル，実行マクロ最終群番号"]
[]
[null,null,"２．CV-DataBaseスーパー呼び出し印刷命令リスト設定"]
[]
[null,null,"行番号","実行マクロ群1",null,null,"実行マクロ群２",null,null,"実行マクロ群３",null,null,"実行マクロ群４",null,null,"実行マクロ群５",null,null,"実行マクロ群６"]
[null,null,null,"呼び出しファイルのディレクトリ","ファイル名","実行マクロ名","呼び出しファイルのディレクトリ","ファイル名","実行マクロ名","呼び出しファイルのディレクトリ","ファイル名","実行マクロ名","呼び出しファイルのディレクトリ","ファイル名","実行マクロ名","呼び出しファイルのディレクトリ","ファイル名","実行マクロ名","呼び出しファイルのディレクトリ","ファイル名","実行マクロ名"]
[null,null,1]
[null,null,2]
[null,null,3]
[null,null,4]
[null,null,5]

{"sheet":"CV-DataBaseスーパー呼び出し印刷命令リスト68","index":73,"n_rows":20,"n_cols":21,"rows_kept":20,"cut":false,"hidden":false,"merged":[[13,12,13,14],[13,15,13,17],[13,18,13,20],[13,2,14,2],[13,3,13,5],[13,6,13,8],[13,9,13,11]]}
[]
[]
[null,null,null,{"$f":"シート名設定!D77","v":"CV-DataBaseスーパー呼び出し印刷命令リスト68"}]
[null,null,"1．ループ呼び出し設定"]
[]
[null,null,null,"設定項目","設定値"]
[null,null,null,"呼び出しファイル，実行マクロ先頭行番号"]
[null,null,null,"呼び出しファイル，実行マクロ最終行番号"]
[null,null,null,"呼び出しファイル，実行マクロ先頭群番号"]
[null,null,null,"呼び出しファイル，実行マクロ最終群番号"]
[]
[null,null,"２．CV-DataBaseスーパー呼び出し印刷命令リスト設定"]
[]
[null,null,"行番号","実行マクロ群1",null,null,"実行マクロ群２",null,null,"実行マクロ群３",null,null,"実行マクロ群４",null,null,"実行マクロ群５",null,null,"実行マクロ群６"]
[null,null,null,"呼び出しファイルのディレクトリ","ファイル名","実行マクロ名","呼び出しファイルのディレクトリ","ファイル名","実行マクロ名","呼び出しファイルのディレクトリ","ファイル名","実行マクロ名","呼び出しファイルのディレクトリ","ファイル名","実行マクロ名","呼び出しファイルのディレクトリ","ファイル名","実行マクロ名","呼び出しファイルのディレクトリ","ファイル名","実行マクロ名"]
[null,null,1]
[null,null,2]
[null,null,3]
[null,null,4]
[null,null,5]

{"sheet":"CV-DataBaseスーパー呼び出し印刷命令リスト69","index":74,"n_rows":20,"n_cols":21,"rows_kept":20,"cut":false,"hidden":false,"merged":[[13,12,13,14],[13,15,13,17],[13,18,13,20],[13,2,14,2],[13,3,13,5],[13,6,13,8],[13,9,13,11]]}
[]
[]
[null,null,null,{"$f":"シート名設定!D78","v":"CV-DataBaseスーパー呼び出し印刷命令リスト69"}]
[null,null,"1．ループ呼び出し設定"]
[]
[null,null,null,"設定項目","設定値"]
[null,null,null,"呼び出しファイル，実行マクロ先頭行番号"]
[null,null,null,"呼び出しファイル，実行マクロ最終行番号"]
[null,null,null,"呼び出しファイル，実行マクロ先頭群番号"]
[null,null,null,"呼び出しファイル，実行マクロ最終群番号"]
[]
[null,null,"２．CV-DataBaseスーパー呼び出し印刷命令リスト設定"]
[]
[null,null,"行番号","実行マクロ群1",null,null,"実行マクロ群２",null,null,"実行マクロ群３",null,null,"実行マクロ群４",null,null,"実行マクロ群５",null,null,"実行マクロ群６"]
[null,null,null,"呼び出しファイルのディレクトリ","ファイル名","実行マクロ名","呼び出しファイルのディレクトリ","ファイル名","実行マクロ名","呼び出しファイルのディレクトリ","ファイル名","実行マクロ名","呼び出しファイルのディレクトリ","ファイル名","実行マクロ名","呼び出しファイルのディレクトリ","ファイル名","実行マクロ名","呼び出しファイルのディレクトリ","ファイル名","実行マクロ名"]
[null,null,1]
[null,null,2]
[null,null,3]
[null,null,4]
[null,null,5]

{"sheet":"CV-DataBaseスーパー呼び出し印刷命令リスト70","index":75,"n_rows":20,"n_cols":21,"rows_kept":20,"cut":false,"hidden":false,"merged":[[13,12,13,14],[13,15,13,17],[13,18,13,20],[13,2,14,2],[13,3,13,5],[13,6,13,8],[13,9,13,11]]}
[]
[]
[null,null,null,{"$f":"シート名設定!D79","v":"CV-DataBaseスーパー呼び出し印刷命令リスト70"}]
[null,null,"1．ループ呼び出し設定"]
[]
[null,null,null,"設定項目","設定値"]
[null,null,null,"呼び出しファイル，実行マクロ先頭行番号"]
[null,null,null,"呼び出しファイル，実行マクロ最終行番号"]
[null,null,null,"呼び出しファイル，実行マクロ先頭群番号"]
[null,null,null,"呼び出しファイル，実行マクロ最終群番号"]
[]
[null,null,"２．CV-DataBaseスーパー呼び出し印刷命令リスト設定"]
[]
[null,null,"行番号","実行マクロ群1",null,null,"実行マクロ群２",null,null,"実行マクロ群３",null,null,"実行マクロ群４",null,null,"実行マクロ群５",null,null,"実行マクロ群６"]
[null,null,null,"呼び出しファイルのディレクトリ","ファイル名","実行マクロ名","呼び出しファイルのディレクトリ","ファイル名","実行マクロ名","呼び出しファイルのディレクトリ","ファイル名","実行マクロ名","呼び出しファイルのディレクトリ","ファイル名","実行マクロ名","呼び出しファイルのディレクトリ","ファイル名","実行マクロ名","呼び出しファイルのディレクトリ","ファイル名","実行マクロ名"]
[null,null,1]
[null,null,2]
[null,null,3]
[null,null,4]
[null,null,5]

{"sheet":"CV-DataBaseスーパー呼び出し印刷命令リスト71","index":76,"n_rows":20,"n_cols":21,"rows_kept":20,"cut":false,"hidden":false,"merged":[[13,12,13,14],[13,15,13,17],[13,18,13,20],[13,2,14,2],[13,3,13,5],[13,6,13,8],[13,9,13,11]]}
[]
[]
[null,null,null,{"$f":"シート名設定!D80","v":"CV-DataBaseスーパー呼び出し印刷命令リスト71"}]
[null,null,"1．ループ呼び出し設定"]
[]
[null,null,null,"設定項目","設定値"]
[null,null,null,"呼び出しファイル，実行マクロ先頭行番号"]
[null,null,null,"呼び出しファイル，実行マクロ最終行番号"]
[null,null,null,"呼び出しファイル，実行マクロ先頭群番号"]
[null,null,null,"呼び出しファイル，実行マクロ最終群番号"]
[]
[null,null,"２．CV-DataBaseスーパー呼び出し印刷命令リスト設定"]
[]
[null,null,"行番号","実行マクロ群1",null,null,"実行マクロ群２",null,null,"実行マクロ群３",null,null,"実行マクロ群４",null,null,"実行マクロ群５",null,null,"実行マクロ群６"]
[null,null,null,"呼び出しファイルのディレクトリ","ファイル名","実行マクロ名","呼び出しファイルのディレクトリ","ファイル名","実行マクロ名","呼び出しファイルのディレクトリ","ファイル名","実行マクロ名","呼び出しファイルのディレクトリ","ファイル名","実行マクロ名","呼び出しファイルのディレクトリ","ファイル名","実行マクロ名","呼び出しファイルのディレクトリ","ファイル名","実行マクロ名"]
[null,null,1]
[null,null,2]
[null,null,3]
[null,null,4]
[null,null,5]

{"sheet":"CV-DataBaseスーパー呼び出し印刷命令リスト72","index":77,"n_rows":20,"n_cols":21,"rows_kept":20,"cut":false,"hidden":false,"merged":[[13,12,13,14],[13,15,13,17],[13,18,13,20],[13,2,14,2],[13,3,13,5],[13,6,13,8],[13,9,13,11]]}
[]
[]
[null,null,null,{"$f":"シート名設定!D81","v":"CV-DataBaseスーパー呼び出し印刷命令リスト72"}]
[null,null,"1．ループ呼び出し設定"]
[]
[null,null,null,"設定項目","設定値"]
[null,null,null,"呼び出しファイル，実行マクロ先頭行番号"]
[null,null,null,"呼び出しファイル，実行マクロ最終行番号"]
[null,null,null,"呼び出しファイル，実行マクロ先頭群番号"]
[null,null,null,"呼び出しファイル，実行マクロ最終群番号"]
[]
[null,null,"２．CV-DataBaseスーパー呼び出し印刷命令リスト設定"]
[]
[null,null,"行番号","実行マクロ群1",null,null,"実行マクロ群２",null,null,"実行マクロ群３",null,null,"実行マクロ群４",null,null,"実行マクロ群５",null,null,"実行マクロ群６"]
[null,null,null,"呼び出しファイルのディレクトリ","ファイル名","実行マクロ名","呼び出しファイルのディレクトリ","ファイル名","実行マクロ名","呼び出しファイルのディレクトリ","ファイル名","実行マクロ名","呼び出しファイルのディレクトリ","ファイル名","実行マクロ名","呼び出しファイルのディレクトリ","ファイル名","実行マクロ名","呼び出しファイルのディレクトリ","ファイル名","実行マクロ名"]
[null,null,1]
[null,null,2]
[null,null,3]
[null,null,4]
[null,null,5]

{"sheet":"CV-DataBaseスーパー呼び出し印刷命令リスト73","index":78,"n_rows":20,"n_cols":21,"rows_kept":20,"cut":false,"hidden":false,"merged":[[13,12,13,14],[13,15,13,17],[13,18,13,20],[13,2,14,2],[13,3,13,5],[13,6,13,8],[13,9,13,11]]}
[]
[]
[null,null,null,{"$f":"シート名設定!D82","v":"CV-DataBaseスーパー呼び出し印刷命令リスト73"}]
[null,null,"1．ループ呼び出し設定"]
[]
[null,null,null,"設定項目","設定値"]
[null,null,null,"呼び出しファイル，実行マクロ先頭行番号"]
[null,null,null,"呼び出しファイル，実行マクロ最終行番号"]
[null,null,null,"呼び出しファイル，実行マクロ先頭群番号"]
[null,null,null,"呼び出しファイル，実行マクロ最終群番号"]
[]
[null,null,"２．CV-DataBaseスーパー呼び出し印刷命令リスト設定"]
[]
[null,null,"行番号","実行マクロ群1",null,null,"実行マクロ群２",null,null,"実行マクロ群３",null,null,"実行マクロ群４",null,null,"実行マクロ群５",null,null,"実行マクロ群６"]
[null,null,null,"呼び出しファイルのディレクトリ","ファイル名","実行マクロ名","呼び出しファイルのディレクトリ","ファイル名","実行マクロ名","呼び出しファイルのディレクトリ","ファイル名","実行マクロ名","呼び出しファイルのディレクトリ","ファイル名","実行マクロ名","呼び出しファイルのディレクトリ","ファイル名","実行マクロ名","呼び出しファイルのディレクトリ","ファイル名","実行マクロ名"]
[null,null,1]
[null,null,2]
[null,null,3]
[null,null,4]
[null,null,5]

{"sheet":"CV-DataBaseスーパー呼び出し印刷命令リスト74","index":79,"n_rows":20,"n_cols":21,"rows_kept":20,"cut":false,"hidden":false,"merged":[[13,12,13,14],[13,15,13,17],[13,18,13,20],[13,2,14,2],[13,3,13,5],[13,6,13,8],[13,9,13,11]]}
[]
[]
[null,null,null,{"$f":"シート名設定!D83","v":"CV-DataBaseスーパー呼び出し印刷命令リスト74"}]
[null,null,"1．ループ呼び出し設定"]
[]
[null,null,null,"設定項目","設定値"]
[null,null,null,"呼び出しファイル，実行マクロ先頭行番号"]
[null,null,null,"呼び出しファイル，実行マクロ最終行番号"]
[null,null,null,"呼び出しファイル，実行マクロ先頭群番号"]
[null,null,null,"呼び出しファイル，実行マクロ最終群番号"]
[]
[null,null,"２．CV-DataBaseスーパー呼び出し印刷命令リスト設定"]
[]
[null,null,"行番号","実行マクロ群1",null,null,"実行マクロ群２",null,null,"実行マクロ群３",null,null,"実行マクロ群４",null,null,"実行マクロ群５",null,null,"実行マクロ群６"]
[null,null,null,"呼び出しファイルのディレクトリ","ファイル名","実行マクロ名","呼び出しファイルのディレクトリ","ファイル名","実行マクロ名","呼び出しファイルのディレクトリ","ファイル名","実行マクロ名","呼び出しファイルのディレクトリ","ファイル名","実行マクロ名","呼び出しファイルのディレクトリ","ファイル名","実行マクロ名","呼び出しファイルのディレクトリ","ファイル名","実行マクロ名"]
[null,null,1]
[null,null,2]
[null,null,3]
[null,null,4]
[null,null,5]

{"sheet":"CV-DataBaseスーパー呼び出し印刷命令リスト75","index":80,"n_rows":20,"n_cols":21,"rows_kept":20,"cut":false,"hidden":false,"merged":[[13,12,13,14],[13,15,13,17],[13,18,13,20],[13,2,14,2],[13,3,13,5],[13,6,13,8],[13,9,13,11]]}
[]
[]
[null,null,null,{"$f":"シート名設定!D84","v":"CV-DataBaseスーパー呼び出し印刷命令リスト75"}]
[null,null,"1．ループ呼び出し設定"]
[]
[null,null,null,"設定項目","設定値"]
[null,null,null,"呼び出しファイル，実行マクロ先頭行番号"]
[null,null,null,"呼び出しファイル，実行マクロ最終行番号"]
[null,null,null,"呼び出しファイル，実行マクロ先頭群番号"]
[null,null,null,"呼び出しファイル，実行マクロ最終群番号"]
[]
[null,null,"２．CV-DataBaseスーパー呼び出し印刷命令リスト設定"]
[]
[null,null,"行番号","実行マクロ群1",null,null,"実行マクロ群２",null,null,"実行マクロ群３",null,null,"実行マクロ群４",null,null,"実行マクロ群５",null,null,"実行マクロ群６"]
[null,null,null,"呼び出しファイルのディレクトリ","ファイル名","実行マクロ名","呼び出しファイルのディレクトリ","ファイル名","実行マクロ名","呼び出しファイルのディレクトリ","ファイル名","実行マクロ名","呼び出しファイルのディレクトリ","ファイル名","実行マクロ名","呼び出しファイルのディレクトリ","ファイル名","実行マクロ名","呼び出しファイルのディレクトリ","ファイル名","実行マクロ名"]
[null,null,1]
[null,null,2]
[null,null,3]
[null,null,4]
[null,null,5]

{"sheet":"CV-DataBaseスーパー呼び出し印刷命令リスト76","index":81,"n_rows":20,"n_cols":21,"rows_kept":20,"cut":false,"hidden":false,"merged":[[13,12,13,14],[13,15,13,17],[13,18,13,20],[13,2,14,2],[13,3,13,5],[13,6,13,8],[13,9,13,11]]}
[]
[]
[null,null,null,{"$f":"シート名設定!D85","v":"CV-DataBaseスーパー呼び出し印刷命令リスト76"}]
[null,null,"1．ループ呼び出し設定"]
[]
[null,null,null,"設定項目","設定値"]
[null,null,null,"呼び出しファイル，実行マクロ先頭行番号"]
[null,null,null,"呼び出しファイル，実行マクロ最終行番号"]
[null,null,null,"呼び出しファイル，実行マクロ先頭群番号"]
[null,null,null,"呼び出しファイル，実行マクロ最終群番号"]
[]
[null,null,"２．CV-DataBaseスーパー呼び出し印刷命令リスト設定"]
[]
[null,null,"行番号","実行マクロ群1",null,null,"実行マクロ群２",null,null,"実行マクロ群３",null,null,"実行マクロ群４",null,null,"実行マクロ群５",null,null,"実行マクロ群６"]
[null,null,null,"呼び出しファイルのディレクトリ","ファイル名","実行マクロ名","呼び出しファイルのディレクトリ","ファイル名","実行マクロ名","呼び出しファイルのディレクトリ","ファイル名","実行マクロ名","呼び出しファイルのディレクトリ","ファイル名","実行マクロ名","呼び出しファイルのディレクトリ","ファイル名","実行マクロ名","呼び出しファイルのディレクトリ","ファイル名","実行マクロ名"]
[null,null,1]
[null,null,2]
[null,null,3]
[null,null,4]
[null,null,5]

{"sheet":"CV-DataBaseスーパー呼び出し印刷命令リスト77","index":82,"n_rows":20,"n_cols":21,"rows_kept":20,"cut":false,"hidden":false,"merged":[[13,12,13,14],[13,15,13,17],[13,18,13,20],[13,2,14,2],[13,3,13,5],[13,6,13,8],[13,9,13,11]]}
[]
[]
[null,null,null,{"$f":"シート名設定!D86","v":"CV-DataBaseスーパー呼び出し印刷命令リスト77"}]
[null,null,"1．ループ呼び出し設定"]
[]
[null,null,null,"設定項目","設定値"]
[null,null,null,"呼び出しファイル，実行マクロ先頭行番号"]
[null,null,null,"呼び出しファイル，実行マクロ最終行番号"]
[null,null,null,"呼び出しファイル，実行マクロ先頭群番号"]
[null,null,null,"呼び出しファイル，実行マクロ最終群番号"]
[]
[null,null,"２．CV-DataBaseスーパー呼び出し印刷命令リスト設定"]
[]
[null,null,"行番号","実行マクロ群1",null,null,"実行マクロ群２",null,null,"実行マクロ群３",null,null,"実行マクロ群４",null,null,"実行マクロ群５",null,null,"実行マクロ群６"]
[null,null,null,"呼び出しファイルのディレクトリ","ファイル名","実行マクロ名","呼び出しファイルのディレクトリ","ファイル名","実行マクロ名","呼び出しファイルのディレクトリ","ファイル名","実行マクロ名","呼び出しファイルのディレクトリ","ファイル名","実行マクロ名","呼び出しファイルのディレクトリ","ファイル名","実行マクロ名","呼び出しファイルのディレクトリ","ファイル名","実行マクロ名"]
[null,null,1]
[null,null,2]
[null,null,3]
[null,null,4]
[null,null,5]

{"sheet":"CV-DataBaseスーパー呼び出し印刷命令リスト78","index":83,"n_rows":20,"n_cols":21,"rows_kept":20,"cut":false,"hidden":false,"merged":[[13,12,13,14],[13,15,13,17],[13,18,13,20],[13,2,14,2],[13,3,13,5],[13,6,13,8],[13,9,13,11]]}
[]
[]
[null,null,null,{"$f":"シート名設定!D87","v":"CV-DataBaseスーパー呼び出し印刷命令リスト78"}]
[null,null,"1．ループ呼び出し設定"]
[]
[null,null,null,"設定項目","設定値"]
[null,null,null,"呼び出しファイル，実行マクロ先頭行番号"]
[null,null,null,"呼び出しファイル，実行マクロ最終行番号"]
[null,null,null,"呼び出しファイル，実行マクロ先頭群番号"]
[null,null,null,"呼び出しファイル，実行マクロ最終群番号"]
[]
[null,null,"２．CV-DataBaseスーパー呼び出し印刷命令リスト設定"]
[]
[null,null,"行番号","実行マクロ群1",null,null,"実行マクロ群２",null,null,"実行マクロ群３",null,null,"実行マクロ群４",null,null,"実行マクロ群５",null,null,"実行マクロ群６"]
[null,null,null,"呼び出しファイルのディレクトリ","ファイル名","実行マクロ名","呼び出しファイルのディレクトリ","ファイル名","実行マクロ名","呼び出しファイルのディレクトリ","ファイル名","実行マクロ名","呼び出しファイルのディレクトリ","ファイル名","実行マクロ名","呼び出しファイルのディレクトリ","ファイル名","実行マクロ名","呼び出しファイルのディレクトリ","ファイル名","実行マクロ名"]
[null,null,1]
[null,null,2]
[null,null,3]
[null,null,4]
[null,null,5]

{"sheet":"CV-DataBaseスーパー呼び出し印刷命令リスト79","index":84,"n_rows":20,"n_cols":21,"rows_kept":20,"cut":false,"hidden":false,"merged":[[13,12,13,14],[13,15,13,17],[13,18,13,20],[13,2,14,2],[13,3,13,5],[13,6,13,8],[13,9,13,11]]}
[]
[]
[null,null,null,{"$f":"シート名設定!D88","v":"CV-DataBaseスーパー呼び出し印刷命令リスト79"}]
[null,null,"1．ループ呼び出し設定"]
[]
[null,null,null,"設定項目","設定値"]
[null,null,null,"呼び出しファイル，実行マクロ先頭行番号"]
[null,null,null,"呼び出しファイル，実行マクロ最終行番号"]
[null,null,null,"呼び出しファイル，実行マクロ先頭群番号"]
[null,null,null,"呼び出しファイル，実行マクロ最終群番号"]
[]
[null,null,"２．CV-DataBaseスーパー呼び出し印刷命令リスト設定"]
[]
[null,null,"行番号","実行マクロ群1",null,null,"実行マクロ群２",null,null,"実行マクロ群３",null,null,"実行マクロ群４",null,null,"実行マクロ群５",null,null,"実行マクロ群６"]
[null,null,null,"呼び出しファイルのディレクトリ","ファイル名","実行マクロ名","呼び出しファイルのディレクトリ","ファイル名","実行マクロ名","呼び出しファイルのディレクトリ","ファイル名","実行マクロ名","呼び出しファイルのディレクトリ","ファイル名","実行マクロ名","呼び出しファイルのディレクトリ","ファイル名","実行マクロ名","呼び出しファイルのディレクトリ","ファイル名","実行マクロ名"]
[null,null,1]
[null,null,2]
[null,null,3]
[null,null,4]
[null,null,5]

{"sheet":"CV-DataBaseスーパー呼び出し印刷命令リスト80","index":85,"n_rows":20,"n_cols":21,"rows_kept":20,"cut":false,"hidden":false,"merged":[[13,12,13,14],[13,15,13,17],[13,18,13,20],[13,2,14,2],[13,3,13,5],[13,6,13,8],[13,9,13,11]]}
[]
[]
[null,null,null,{"$f":"シート名設定!D89","v":"CV-DataBaseスーパー呼び出し印刷命令リスト80"}]
[null,null,"1．ループ呼び出し設定"]
[]
[null,null,null,"設定項目","設定値"]
[null,null,null,"呼び出しファイル，実行マクロ先頭行番号"]
[null,null,null,"呼び出しファイル，実行マクロ最終行番号"]
[null,null,null,"呼び出しファイル，実行マクロ先頭群番号"]
[null,null,null,"呼び出しファイル，実行マクロ最終群番号"]
[]
[null,null,"２．CV-DataBaseスーパー呼び出し印刷命令リスト設定"]
[]
[null,null,"行番号","実行マクロ群1",null,null,"実行マクロ群２",null,null,"実行マクロ群３",null,null,"実行マクロ群４",null,null,"実行マクロ群５",null,null,"実行マクロ群６"]
[null,null,null,"呼び出しファイルのディレクトリ","ファイル名","実行マクロ名","呼び出しファイルのディレクトリ","ファイル名","実行マクロ名","呼び出しファイルのディレクトリ","ファイル名","実行マクロ名","呼び出しファイルのディレクトリ","ファイル名","実行マクロ名","呼び出しファイルのディレクトリ","ファイル名","実行マクロ名","呼び出しファイルのディレクトリ","ファイル名","実行マクロ名"]
[null,null,1]
[null,null,2]
[null,null,3]
[null,null,4]
[null,null,5]

{"sheet":"CV-DataBaseスーパー呼び出し印刷命令リスト81","index":86,"n_rows":20,"n_cols":21,"rows_kept":20,"cut":false,"hidden":false,"merged":[[13,12,13,14],[13,15,13,17],[13,18,13,20],[13,2,14,2],[13,3,13,5],[13,6,13,8],[13,9,13,11]]}
[]
[]
[null,null,null,{"$f":"シート名設定!D90","v":"CV-DataBaseスーパー呼び出し印刷命令リスト81"}]
[null,null,"1．ループ呼び出し設定"]
[]
[null,null,null,"設定項目","設定値"]
[null,null,null,"呼び出しファイル，実行マクロ先頭行番号"]
[null,null,null,"呼び出しファイル，実行マクロ最終行番号"]
[null,null,null,"呼び出しファイル，実行マクロ先頭群番号"]
[null,null,null,"呼び出しファイル，実行マクロ最終群番号"]
[]
[null,null,"２．CV-DataBaseスーパー呼び出し印刷命令リスト設定"]
[]
[null,null,"行番号","実行マクロ群1",null,null,"実行マクロ群２",null,null,"実行マクロ群３",null,null,"実行マクロ群４",null,null,"実行マクロ群５",null,null,"実行マクロ群６"]
[null,null,null,"呼び出しファイルのディレクトリ","ファイル名","実行マクロ名","呼び出しファイルのディレクトリ","ファイル名","実行マクロ名","呼び出しファイルのディレクトリ","ファイル名","実行マクロ名","呼び出しファイルのディレクトリ","ファイル名","実行マクロ名","呼び出しファイルのディレクトリ","ファイル名","実行マクロ名","呼び出しファイルのディレクトリ","ファイル名","実行マクロ名"]
[null,null,1]
[null,null,2]
[null,null,3]
[null,null,4]
[null,null,5]

{"sheet":"CV-DataBaseスーパー呼び出し印刷命令リスト82","index":87,"n_rows":20,"n_cols":21,"rows_kept":20,"cut":false,"hidden":false,"merged":[[13,12,13,14],[13,15,13,17],[13,18,13,20],[13,2,14,2],[13,3,13,5],[13,6,13,8],[13,9,13,11]]}
[]
[]
[null,null,null,{"$f":"シート名設定!D91","v":"CV-DataBaseスーパー呼び出し印刷命令リスト82"}]
[null,null,"1．ループ呼び出し設定"]
[]
[null,null,null,"設定項目","設定値"]
[null,null,null,"呼び出しファイル，実行マクロ先頭行番号"]
[null,null,null,"呼び出しファイル，実行マクロ最終行番号"]
[null,null,null,"呼び出しファイル，実行マクロ先頭群番号"]
[null,null,null,"呼び出しファイル，実行マクロ最終群番号"]
[]
[null,null,"２．CV-DataBaseスーパー呼び出し印刷命令リスト設定"]
[]
[null,null,"行番号","実行マクロ群1",null,null,"実行マクロ群２",null,null,"実行マクロ群３",null,null,"実行マクロ群４",null,null,"実行マクロ群５",null,null,"実行マクロ群６"]
[null,null,null,"呼び出しファイルのディレクトリ","ファイル名","実行マクロ名","呼び出しファイルのディレクトリ","ファイル名","実行マクロ名","呼び出しファイルのディレクトリ","ファイル名","実行マクロ名","呼び出しファイルのディレクトリ","ファイル名","実行マクロ名","呼び出しファイルのディレクトリ","ファイル名","実行マクロ名","呼び出しファイルのディレクトリ","ファイル名","実行マクロ名"]
[null,null,1]
[null,null,2]
[null,null,3]
[null,null,4]
[null,null,5]

{"sheet":"CV-DataBaseスーパー呼び出し印刷命令リスト83","index":88,"n_rows":20,"n_cols":21,"rows_kept":20,"cut":false,"hidden":false,"merged":[[13,12,13,14],[13,15,13,17],[13,18,13,20],[13,2,14,2],[13,3,13,5],[13,6,13,8],[13,9,13,11]]}
[]
[]
[null,null,null,{"$f":"シート名設定!D92","v":"CV-DataBaseスーパー呼び出し印刷命令リスト83"}]
[null,null,"1．ループ呼び出し設定"]
[]
[null,null,null,"設定項目","設定値"]
[null,null,null,"呼び出しファイル，実行マクロ先頭行番号"]
[null,null,null,"呼び出しファイル，実行マクロ最終行番号"]
[null,null,null,"呼び出しファイル，実行マクロ先頭群番号"]
[null,null,null,"呼び出しファイル，実行マクロ最終群番号"]
[]
[null,null,"２．CV-DataBaseスーパー呼び出し印刷命令リスト設定"]
[]
[null,null,"行番号","実行マクロ群1",null,null,"実行マクロ群２",null,null,"実行マクロ群３",null,null,"実行マクロ群４",null,null,"実行マクロ群５",null,null,"実行マクロ群６"]
[null,null,null,"呼び出しファイルのディレクトリ","ファイル名","実行マクロ名","呼び出しファイルのディレクトリ","ファイル名","実行マクロ名","呼び出しファイルのディレクトリ","ファイル名","実行マクロ名","呼び出しファイルのディレクトリ","ファイル名","実行マクロ名","呼び出しファイルのディレクトリ","ファイル名","実行マクロ名","呼び出しファイルのディレクトリ","ファイル名","実行マクロ名"]
[null,null,1]
[null,null,2]
[null,null,3]
[null,null,4]
[null,null,5]

{"sheet":"CV-DataBaseスーパー呼び出し印刷命令リスト84","index":89,"n_rows":20,"n_cols":21,"rows_kept":20,"cut":false,"hidden":false,"merged":[[13,12,13,14],[13,15,13,17],[13,18,13,20],[13,2,14,2],[13,3,13,5],[13,6,13,8],[13,9,13,11]]}
[]
[]
[null,null,null,{"$f":"シート名設定!D93","v":"CV-DataBaseスーパー呼び出し印刷命令リスト84"}]
[null,null,"1．ループ呼び出し設定"]
[]
[null,null,null,"設定項目","設定値"]
[null,null,null,"呼び出しファイル，実行マクロ先頭行番号"]
[null,null,null,"呼び出しファイル，実行マクロ最終行番号"]
[null,null,null,"呼び出しファイル，実行マクロ先頭群番号"]
[null,null,null,"呼び出しファイル，実行マクロ最終群番号"]
[]
[null,null,"２．CV-DataBaseスーパー呼び出し印刷命令リスト設定"]
[]
[null,null,"行番号","実行マクロ群1",null,null,"実行マクロ群２",null,null,"実行マクロ群３",null,null,"実行マクロ群４",null,null,"実行マクロ群５",null,null,"実行マクロ群６"]
[null,null,null,"呼び出しファイルのディレクトリ","ファイル名","実行マクロ名","呼び出しファイルのディレクトリ","ファイル名","実行マクロ名","呼び出しファイルのディレクトリ","ファイル名","実行マクロ名","呼び出しファイルのディレクトリ","ファイル名","実行マクロ名","呼び出しファイルのディレクトリ","ファイル名","実行マクロ名","呼び出しファイルのディレクトリ","ファイル名","実行マクロ名"]
[null,null,1]
[null,null,2]
[null,null,3]
[null,null,4]
[null,null,5]

{"sheet":"CV-DataBaseスーパー呼び出し印刷命令リスト85","index":90,"n_rows":20,"n_cols":21,"rows_kept":20,"cut":false,"hidden":false,"merged":[[13,12,13,14],[13,15,13,17],[13,18,13,20],[13,2,14,2],[13,3,13,5],[13,6,13,8],[13,9,13,11]]}
[]
[]
[null,null,null,{"$f":"シート名設定!D94","v":"CV-DataBaseスーパー呼び出し印刷命令リスト85"}]
[null,null,"1．ループ呼び出し設定"]
[]
[null,null,null,"設定項目","設定値"]
[null,null,null,"呼び出しファイル，実行マクロ先頭行番号"]
[null,null,null,"呼び出しファイル，実行マクロ最終行番号"]
[null,null,null,"呼び出しファイル，実行マクロ先頭群番号"]
[null,null,null,"呼び出しファイル，実行マクロ最終群番号"]
[]
[null,null,"２．CV-DataBaseスーパー呼び出し印刷命令リスト設定"]
[]
[null,null,"行番号","実行マクロ群1",null,null,"実行マクロ群２",null,null,"実行マクロ群３",null,null,"実行マクロ群４",null,null,"実行マクロ群５",null,null,"実行マクロ群６"]
[null,null,null,"呼び出しファイルのディレクトリ","ファイル名","実行マクロ名","呼び出しファイルのディレクトリ","ファイル名","実行マクロ名","呼び出しファイルのディレクトリ","ファイル名","実行マクロ名","呼び出しファイルのディレクトリ","ファイル名","実行マクロ名","呼び出しファイルのディレクトリ","ファイル名","実行マクロ名","呼び出しファイルのディレクトリ","ファイル名","実行マクロ名"]
[null,null,1]
[null,null,2]
[null,null,3]
[null,null,4]
[null,null,5]

{"sheet":"CV-DataBaseスーパー呼び出し印刷命令リスト86","index":91,"n_rows":20,"n_cols":21,"rows_kept":20,"cut":false,"hidden":false,"merged":[[13,12,13,14],[13,15,13,17],[13,18,13,20],[13,2,14,2],[13,3,13,5],[13,6,13,8],[13,9,13,11]]}
[]
[]
[null,null,null,{"$f":"シート名設定!D95","v":"CV-DataBaseスーパー呼び出し印刷命令リスト86"}]
[null,null,"1．ループ呼び出し設定"]
[]
[null,null,null,"設定項目","設定値"]
[null,null,null,"呼び出しファイル，実行マクロ先頭行番号"]
[null,null,null,"呼び出しファイル，実行マクロ最終行番号"]
[null,null,null,"呼び出しファイル，実行マクロ先頭群番号"]
[null,null,null,"呼び出しファイル，実行マクロ最終群番号"]
[]
[null,null,"２．CV-DataBaseスーパー呼び出し印刷命令リスト設定"]
[]
[null,null,"行番号","実行マクロ群1",null,null,"実行マクロ群２",null,null,"実行マクロ群３",null,null,"実行マクロ群４",null,null,"実行マクロ群５",null,null,"実行マクロ群６"]
[null,null,null,"呼び出しファイルのディレクトリ","ファイル名","実行マクロ名","呼び出しファイルのディレクトリ","ファイル名","実行マクロ名","呼び出しファイルのディレクトリ","ファイル名","実行マクロ名","呼び出しファイルのディレクトリ","ファイル名","実行マクロ名","呼び出しファイルのディレクトリ","ファイル名","実行マクロ名","呼び出しファイルのディレクトリ","ファイル名","実行マクロ名"]
[null,null,1]
[null,null,2]
[null,null,3]
[null,null,4]
[null,null,5]

{"sheet":"CV-DataBaseスーパー呼び出し印刷命令リスト87","index":92,"n_rows":20,"n_cols":21,"rows_kept":20,"cut":false,"hidden":false,"merged":[[13,12,13,14],[13,15,13,17],[13,18,13,20],[13,2,14,2],[13,3,13,5],[13,6,13,8],[13,9,13,11]]}
[]
[]
[null,null,null,{"$f":"シート名設定!D96","v":"CV-DataBaseスーパー呼び出し印刷命令リスト87"}]
[null,null,"1．ループ呼び出し設定"]
[]
[null,null,null,"設定項目","設定値"]
[null,null,null,"呼び出しファイル，実行マクロ先頭行番号"]
[null,null,null,"呼び出しファイル，実行マクロ最終行番号"]
[null,null,null,"呼び出しファイル，実行マクロ先頭群番号"]
[null,null,null,"呼び出しファイル，実行マクロ最終群番号"]
[]
[null,null,"２．CV-DataBaseスーパー呼び出し印刷命令リスト設定"]
[]
[null,null,"行番号","実行マクロ群1",null,null,"実行マクロ群２",null,null,"実行マクロ群３",null,null,"実行マクロ群４",null,null,"実行マクロ群５",null,null,"実行マクロ群６"]
[null,null,null,"呼び出しファイルのディレクトリ","ファイル名","実行マクロ名","呼び出しファイルのディレクトリ","ファイル名","実行マクロ名","呼び出しファイルのディレクトリ","ファイル名","実行マクロ名","呼び出しファイルのディレクトリ","ファイル名","実行マクロ名","呼び出しファイルのディレクトリ","ファイル名","実行マクロ名","呼び出しファイルのディレクトリ","ファイル名","実行マクロ名"]
[null,null,1]
[null,null,2]
[null,null,3]
[null,null,4]
[null,null,5]

{"sheet":"CV-DataBaseスーパー呼び出し印刷命令リスト88","index":93,"n_rows":20,"n_cols":21,"rows_kept":20,"cut":false,"hidden":false,"merged":[[13,12,13,14],[13,15,13,17],[13,18,13,20],[13,2,14,2],[13,3,13,5],[13,6,13,8],[13,9,13,11]]}
[]
[]
[null,null,null,{"$f":"シート名設定!D97","v":"CV-DataBaseスーパー呼び出し印刷命令リスト88"}]
[null,null,"1．ループ呼び出し設定"]
[]
[null,null,null,"設定項目","設定値"]
[null,null,null,"呼び出しファイル，実行マクロ先頭行番号"]
[null,null,null,"呼び出しファイル，実行マクロ最終行番号"]
[null,null,null,"呼び出しファイル，実行マクロ先頭群番号"]
[null,null,null,"呼び出しファイル，実行マクロ最終群番号"]
[]
[null,null,"２．CV-DataBaseスーパー呼び出し印刷命令リスト設定"]
[]
[null,null,"行番号","実行マクロ群1",null,null,"実行マクロ群２",null,null,"実行マクロ群３",null,null,"実行マクロ群４",null,null,"実行マクロ群５",null,null,"実行マクロ群６"]
[null,null,null,"呼び出しファイルのディレクトリ","ファイル名","実行マクロ名","呼び出しファイルのディレクトリ","ファイル名","実行マクロ名","呼び出しファイルのディレクトリ","ファイル名","実行マクロ名","呼び出しファイルのディレクトリ","ファイル名","実行マクロ名","呼び出しファイルのディレクトリ","ファイル名","実行マクロ名","呼び出しファイルのディレクトリ","ファイル名","実行マクロ名"]
[null,null,1]
[null,null,2]
[null,null,3]
[null,null,4]
[null,null,5]

{"sheet":"CV-DataBaseスーパー呼び出し印刷命令リスト89","index":94,"n_rows":20,"n_cols":21,"rows_kept":20,"cut":false,"hidden":false,"merged":[[13,12,13,14],[13,15,13,17],[13,18,13,20],[13,2,14,2],[13,3,13,5],[13,6,13,8],[13,9,13,11]]}
[]
[]
[null,null,null,{"$f":"シート名設定!D98","v":"CV-DataBaseスーパー呼び出し印刷命令リスト89"}]
[null,null,"1．ループ呼び出し設定"]
[]
[null,null,null,"設定項目","設定値"]
[null,null,null,"呼び出しファイル，実行マクロ先頭行番号"]
[null,null,null,"呼び出しファイル，実行マクロ最終行番号"]
[null,null,null,"呼び出しファイル，実行マクロ先頭群番号"]
[null,null,null,"呼び出しファイル，実行マクロ最終群番号"]
[]
[null,null,"２．CV-DataBaseスーパー呼び出し印刷命令リスト設定"]
[]
[null,null,"行番号","実行マクロ群1",null,null,"実行マクロ群２",null,null,"実行マクロ群３",null,null,"実行マクロ群４",null,null,"実行マクロ群５",null,null,"実行マクロ群６"]
[null,null,null,"呼び出しファイルのディレクトリ","ファイル名","実行マクロ名","呼び出しファイルのディレクトリ","ファイル名","実行マクロ名","呼び出しファイルのディレクトリ","ファイル名","実行マクロ名","呼び出しファイルのディレクトリ","ファイル名","実行マクロ名","呼び出しファイルのディレクトリ","ファイル名","実行マクロ名","呼び出しファイルのディレクトリ","ファイル名","実行マクロ名"]
[null,null,1]
[null,null,2]
[null,null,3]
[null,null,4]
[null,null,5]

{"sheet":"CV-DataBaseスーパー呼び出し印刷命令リスト90","index":95,"n_rows":20,"n_cols":21,"rows_kept":20,"cut":false,"hidden":false,"merged":[[13,12,13,14],[13,15,13,17],[13,18,13,20],[13,2,14,2],[13,3,13,5],[13,6,13,8],[13,9,13,11]]}
[]
[]
[null,null,null,{"$f":"シート名設定!D99","v":"CV-DataBaseスーパー呼び出し印刷命令リスト90"}]
[null,null,"1．ループ呼び出し設定"]
[]
[null,null,null,"設定項目","設定値"]
[null,null,null,"呼び出しファイル，実行マクロ先頭行番号"]
[null,null,null,"呼び出しファイル，実行マクロ最終行番号"]
[null,null,null,"呼び出しファイル，実行マクロ先頭群番号"]
[null,null,null,"呼び出しファイル，実行マクロ最終群番号"]
[]
[null,null,"２．CV-DataBaseスーパー呼び出し印刷命令リスト設定"]
[]
[null,null,"行番号","実行マクロ群1",null,null,"実行マクロ群２",null,null,"実行マクロ群３",null,null,"実行マクロ群４",null,null,"実行マクロ群５",null,null,"実行マクロ群６"]
[null,null,null,"呼び出しファイルのディレクトリ","ファイル名","実行マクロ名","呼び出しファイルのディレクトリ","ファイル名","実行マクロ名","呼び出しファイルのディレクトリ","ファイル名","実行マクロ名","呼び出しファイルのディレクトリ","ファイル名","実行マクロ名","呼び出しファイルのディレクトリ","ファイル名","実行マクロ名","呼び出しファイルのディレクトリ","ファイル名","実行マクロ名"]
[null,null,1]
[null,null,2]
[null,null,3]
[null,null,4]
[null,null,5]

{"sheet":"CV-DataBaseスーパー呼び出し印刷命令リスト91","index":96,"n_rows":20,"n_cols":21,"rows_kept":20,"cut":false,"hidden":false,"merged":[[13,12,13,14],[13,15,13,17],[13,18,13,20],[13,2,14,2],[13,3,13,5],[13,6,13,8],[13,9,13,11]]}
[]
[]
[null,null,null,{"$f":"シート名設定!D100","v":"CV-DataBaseスーパー呼び出し印刷命令リスト91"}]
[null,null,"1．ループ呼び出し設定"]
[]
[null,null,null,"設定項目","設定値"]
[null,null,null,"呼び出しファイル，実行マクロ先頭行番号"]
[null,null,null,"呼び出しファイル，実行マクロ最終行番号"]
[null,null,null,"呼び出しファイル，実行マクロ先頭群番号"]
[null,null,null,"呼び出しファイル，実行マクロ最終群番号"]
[]
[null,null,"２．CV-DataBaseスーパー呼び出し印刷命令リスト設定"]
[]
[null,null,"行番号","実行マクロ群1",null,null,"実行マクロ群２",null,null,"実行マクロ群３",null,null,"実行マクロ群４",null,null,"実行マクロ群５",null,null,"実行マクロ群６"]
[null,null,null,"呼び出しファイルのディレクトリ","ファイル名","実行マクロ名","呼び出しファイルのディレクトリ","ファイル名","実行マクロ名","呼び出しファイルのディレクトリ","ファイル名","実行マクロ名","呼び出しファイルのディレクトリ","ファイル名","実行マクロ名","呼び出しファイルのディレクトリ","ファイル名","実行マクロ名","呼び出しファイルのディレクトリ","ファイル名","実行マクロ名"]
[null,null,1]
[null,null,2]
[null,null,3]
[null,null,4]
[null,null,5]

{"sheet":"CV-DataBaseスーパー呼び出し印刷命令リスト92","index":97,"n_rows":20,"n_cols":21,"rows_kept":20,"cut":false,"hidden":false,"merged":[[13,12,13,14],[13,15,13,17],[13,18,13,20],[13,2,14,2],[13,3,13,5],[13,6,13,8],[13,9,13,11]]}
[]
[]
[null,null,null,{"$f":"シート名設定!D101","v":"CV-DataBaseスーパー呼び出し印刷命令リスト92"}]
[null,null,"1．ループ呼び出し設定"]
[]
[null,null,null,"設定項目","設定値"]
[null,null,null,"呼び出しファイル，実行マクロ先頭行番号"]
[null,null,null,"呼び出しファイル，実行マクロ最終行番号"]
[null,null,null,"呼び出しファイル，実行マクロ先頭群番号"]
[null,null,null,"呼び出しファイル，実行マクロ最終群番号"]
[]
[null,null,"２．CV-DataBaseスーパー呼び出し印刷命令リスト設定"]
[]
[null,null,"行番号","実行マクロ群1",null,null,"実行マクロ群２",null,null,"実行マクロ群３",null,null,"実行マクロ群４",null,null,"実行マクロ群５",null,null,"実行マクロ群６"]
[null,null,null,"呼び出しファイルのディレクトリ","ファイル名","実行マクロ名","呼び出しファイルのディレクトリ","ファイル名","実行マクロ名","呼び出しファイルのディレクトリ","ファイル名","実行マクロ名","呼び出しファイルのディレクトリ","ファイル名","実行マクロ名","呼び出しファイルのディレクトリ","ファイル名","実行マクロ名","呼び出しファイルのディレクトリ","ファイル名","実行マクロ名"]
[null,null,1]
[null,null,2]
[null,null,3]
[null,null,4]
[null,null,5]

{"sheet":"CV-DataBaseスーパー呼び出し印刷命令リスト93","index":98,"n_rows":20,"n_cols":21,"rows_kept":20,"cut":false,"hidden":false,"merged":[[13,12,13,14],[13,15,13,17],[13,18,13,20],[13,2,14,2],[13,3,13,5],[13,6,13,8],[13,9,13,11]]}
[]
[]
[null,null,null,{"$f":"シート名設定!D102","v":"CV-DataBaseスーパー呼び出し印刷命令リスト93"}]
[null,null,"1．ループ呼び出し設定"]
[]
[null,null,null,"設定項目","設定値"]
[null,null,null,"呼び出しファイル，実行マクロ先頭行番号"]
[null,null,null,"呼び出しファイル，実行マクロ最終行番号"]
[null,null,null,"呼び出しファイル，実行マクロ先頭群番号"]
[null,null,null,"呼び出しファイル，実行マクロ最終群番号"]
[]
[null,null,"２．CV-DataBaseスーパー呼び出し印刷命令リスト設定"]
[]
[null,null,"行番号","実行マクロ群1",null,null,"実行マクロ群２",null,null,"実行マクロ群３",null,null,"実行マクロ群４",null,null,"実行マクロ群５",null,null,"実行マクロ群６"]
[null,null,null,"呼び出しファイルのディレクトリ","ファイル名","実行マクロ名","呼び出しファイルのディレクトリ","ファイル名","実行マクロ名","呼び出しファイルのディレクトリ","ファイル名","実行マクロ名","呼び出しファイルのディレクトリ","ファイル名","実行マクロ名","呼び出しファイルのディレクトリ","ファイル名","実行マクロ名","呼び出しファイルのディレクトリ","ファイル名","実行マクロ名"]
[null,null,1]
[null,null,2]
[null,null,3]
[null,null,4]
[null,null,5]

{"sheet":"CV-DataBaseスーパー呼び出し印刷命令リスト94","index":99,"n_rows":20,"n_cols":21,"rows_kept":20,"cut":false,"hidden":false,"merged":[[13,12,13,14],[13,15,13,17],[13,18,13,20],[13,2,14,2],[13,3,13,5],[13,6,13,8],[13,9,13,11]]}
[]
[]
[null,null,null,{"$f":"シート名設定!D103","v":"CV-DataBaseスーパー呼び出し印刷命令リスト94"}]
[null,null,"1．ループ呼び出し設定"]
[]
[null,null,null,"設定項目","設定値"]
[null,null,null,"呼び出しファイル，実行マクロ先頭行番号"]
[null,null,null,"呼び出しファイル，実行マクロ最終行番号"]
[null,null,null,"呼び出しファイル，実行マクロ先頭群番号"]
[null,null,null,"呼び出しファイル，実行マクロ最終群番号"]
[]
[null,null,"２．CV-DataBaseスーパー呼び出し印刷命令リスト設定"]
[]
[null,null,"行番号","実行マクロ群1",null,null,"実行マクロ群２",null,null,"実行マクロ群３",null,null,"実行マクロ群４",null,null,"実行マクロ群５",null,null,"実行マクロ群６"]
[null,null,null,"呼び出しファイルのディレクトリ","ファイル名","実行マクロ名","呼び出しファイルのディレクトリ","ファイル名","実行マクロ名","呼び出しファイルのディレクトリ","ファイル名","実行マクロ名","呼び出しファイルのディレクトリ","ファイル名","実行マクロ名","呼び出しファイルのディレクトリ","ファイル名","実行マクロ名","呼び出しファイルのディレクトリ","ファイル名","実行マクロ名"]
[null,null,1]
[null,null,2]
[null,null,3]
[null,null,4]
[null,null,5]

{"sheet":"CV-DataBaseスーパー呼び出し印刷命令リスト95","index":100,"n_rows":20,"n_cols":21,"rows_kept":20,"cut":false,"hidden":false,"merged":[[13,12,13,14],[13,15,13,17],[13,18,13,20],[13,2,14,2],[13,3,13,5],[13,6,13,8],[13,9,13,11]]}
[]
[]
[null,null,null,{"$f":"シート名設定!D104","v":"CV-DataBaseスーパー呼び出し印刷命令リスト95"}]
[null,null,"1．ループ呼び出し設定"]
[]
[null,null,null,"設定項目","設定値"]
[null,null,null,"呼び出しファイル，実行マクロ先頭行番号"]
[null,null,null,"呼び出しファイル，実行マクロ最終行番号"]
[null,null,null,"呼び出しファイル，実行マクロ先頭群番号"]
[null,null,null,"呼び出しファイル，実行マクロ最終群番号"]
[]
[null,null,"２．CV-DataBaseスーパー呼び出し印刷命令リスト設定"]
[]
[null,null,"行番号","実行マクロ群1",null,null,"実行マクロ群２",null,null,"実行マクロ群３",null,null,"実行マクロ群４",null,null,"実行マクロ群５",null,null,"実行マクロ群６"]
[null,null,null,"呼び出しファイルのディレクトリ","ファイル名","実行マクロ名","呼び出しファイルのディレクトリ","ファイル名","実行マクロ名","呼び出しファイルのディレクトリ","ファイル名","実行マクロ名","呼び出しファイルのディレクトリ","ファイル名","実行マクロ名","呼び出しファイルのディレクトリ","ファイル名","実行マクロ名","呼び出しファイルのディレクトリ","ファイル名","実行マクロ名"]
[null,null,1]
[null,null,2]
[null,null,3]
[null,null,4]
[null,null,5]

{"sheet":"CV-DataBaseスーパー呼び出し印刷命令リスト96","index":101,"n_rows":20,"n_cols":21,"rows_kept":20,"cut":false,"hidden":false,"merged":[[13,12,13,14],[13,15,13,17],[13,18,13,20],[13,2,14,2],[13,3,13,5],[13,6,13,8],[13,9,13,11]]}
[]
[]
[null,null,null,{"$f":"シート名設定!D105","v":"CV-DataBaseスーパー呼び出し印刷命令リスト96"}]
[null,null,"1．ループ呼び出し設定"]
[]
[null,null,null,"設定項目","設定値"]
[null,null,null,"呼び出しファイル，実行マクロ先頭行番号"]
[null,null,null,"呼び出しファイル，実行マクロ最終行番号"]
[null,null,null,"呼び出しファイル，実行マクロ先頭群番号"]
[null,null,null,"呼び出しファイル，実行マクロ最終群番号"]
[]
[null,null,"２．CV-DataBaseスーパー呼び出し印刷命令リスト設定"]
[]
[null,null,"行番号","実行マクロ群1",null,null,"実行マクロ群２",null,null,"実行マクロ群３",null,null,"実行マクロ群４",null,null,"実行マクロ群５",null,null,"実行マクロ群６"]
[null,null,null,"呼び出しファイルのディレクトリ","ファイル名","実行マクロ名","呼び出しファイルのディレクトリ","ファイル名","実行マクロ名","呼び出しファイルのディレクトリ","ファイル名","実行マクロ名","呼び出しファイルのディレクトリ","ファイル名","実行マクロ名","呼び出しファイルのディレクトリ","ファイル名","実行マクロ名","呼び出しファイルのディレクトリ","ファイル名","実行マクロ名"]
[null,null,1]
[null,null,2]
[null,null,3]
[null,null,4]
[null,null,5]

{"sheet":"CV-DataBaseスーパー呼び出し印刷命令リスト97","index":102,"n_rows":20,"n_cols":21,"rows_kept":20,"cut":false,"hidden":false,"merged":[[13,12,13,14],[13,15,13,17],[13,18,13,20],[13,2,14,2],[13,3,13,5],[13,6,13,8],[13,9,13,11]]}
[]
[]
[null,null,null,{"$f":"シート名設定!D106","v":"CV-DataBaseスーパー呼び出し印刷命令リスト97"}]
[null,null,"1．ループ呼び出し設定"]
[]
[null,null,null,"設定項目","設定値"]
[null,null,null,"呼び出しファイル，実行マクロ先頭行番号"]
[null,null,null,"呼び出しファイル，実行マクロ最終行番号"]
[null,null,null,"呼び出しファイル，実行マクロ先頭群番号"]
[null,null,null,"呼び出しファイル，実行マクロ最終群番号"]
[]
[null,null,"２．CV-DataBaseスーパー呼び出し印刷命令リスト設定"]
[]
[null,null,"行番号","実行マクロ群1",null,null,"実行マクロ群２",null,null,"実行マクロ群３",null,null,"実行マクロ群４",null,null,"実行マクロ群５",null,null,"実行マクロ群６"]
[null,null,null,"呼び出しファイルのディレクトリ","ファイル名","実行マクロ名","呼び出しファイルのディレクトリ","ファイル名","実行マクロ名","呼び出しファイルのディレクトリ","ファイル名","実行マクロ名","呼び出しファイルのディレクトリ","ファイル名","実行マクロ名","呼び出しファイルのディレクトリ","ファイル名","実行マクロ名","呼び出しファイルのディレクトリ","ファイル名","実行マクロ名"]
[null,null,1]
[null,null,2]
[null,null,3]
[null,null,4]
[null,null,5]

{"sheet":"CV-DataBaseスーパー呼び出し印刷命令リスト98","index":103,"n_rows":20,"n_cols":21,"rows_kept":20,"cut":false,"hidden":false,"merged":[[13,12,13,14],[13,15,13,17],[13,18,13,20],[13,2,14,2],[13,3,13,5],[13,6,13,8],[13,9,13,11]]}
[]
[]
[null,null,null,{"$f":"シート名設定!D107","v":"CV-DataBaseスーパー呼び出し印刷命令リスト98"}]
[null,null,"1．ループ呼び出し設定"]
[]
[null,null,null,"設定項目","設定値"]
[null,null,null,"呼び出しファイル，実行マクロ先頭行番号"]
[null,null,null,"呼び出しファイル，実行マクロ最終行番号"]
[null,null,null,"呼び出しファイル，実行マクロ先頭群番号"]
[null,null,null,"呼び出しファイル，実行マクロ最終群番号"]
[]
[null,null,"２．CV-DataBaseスーパー呼び出し印刷命令リスト設定"]
[]
[null,null,"行番号","実行マクロ群1",null,null,"実行マクロ群２",null,null,"実行マクロ群３",null,null,"実行マクロ群４",null,null,"実行マクロ群５",null,null,"実行マクロ群６"]
[null,null,null,"呼び出しファイルのディレクトリ","ファイル名","実行マクロ名","呼び出しファイルのディレクトリ","ファイル名","実行マクロ名","呼び出しファイルのディレクトリ","ファイル名","実行マクロ名","呼び出しファイルのディレクトリ","ファイル名","実行マクロ名","呼び出しファイルのディレクトリ","ファイル名","実行マクロ名","呼び出しファイルのディレクトリ","ファイル名","実行マクロ名"]
[null,null,1]
[null,null,2]
[null,null,3]
[null,null,4]
[null,null,5]

{"sheet":"CV-DataBaseスーパー呼び出し印刷命令リスト99","index":104,"n_rows":20,"n_cols":21,"rows_kept":20,"cut":false,"hidden":false,"merged":[[13,12,13,14],[13,15,13,17],[13,18,13,20],[13,2,14,2],[13,3,13,5],[13,6,13,8],[13,9,13,11]]}
[]
[]
[null,null,null,{"$f":"シート名設定!D108","v":"CV-DataBaseスーパー呼び出し印刷命令リスト99"}]
[null,null,"1．ループ呼び出し設定"]
[]
[null,null,null,"設定項目","設定値"]
[null,null,null,"呼び出しファイル，実行マクロ先頭行番号"]
[null,null,null,"呼び出しファイル，実行マクロ最終行番号"]
[null,null,null,"呼び出しファイル，実行マクロ先頭群番号"]
[null,null,null,"呼び出しファイル，実行マクロ最終群番号"]
[]
[null,null,"２．CV-DataBaseスーパー呼び出し印刷命令リスト設定"]
[]
[null,null,"行番号","実行マクロ群1",null,null,"実行マクロ群２",null,null,"実行マクロ群３",null,null,"実行マクロ群４",null,null,"実行マクロ群５",null,null,"実行マクロ群６"]
[null,null,null,"呼び出しファイルのディレクトリ","ファイル名","実行マクロ名","呼び出しファイルのディレクトリ","ファイル名","実行マクロ名","呼び出しファイルのディレクトリ","ファイル名","実行マクロ名","呼び出しファイルのディレクトリ","ファイル名","実行マクロ名","呼び出しファイルのディレクトリ","ファイル名","実行マクロ名","呼び出しファイルのディレクトリ","ファイル名","実行マクロ名"]
[null,null,1]
[null,null,2]
[null,null,3]
[null,null,4]
[null,null,5]

{"sheet":"CV-DataBaseスーパー呼び出し印刷命令リスト100","index":105,"n_rows":20,"n_cols":21,"rows_kept":20,"cut":false,"hidden":false,"merged":[[13,12,13,14],[13,15,13,17],[13,18,13,20],[13,2,14,2],[13,3,13,5],[13,6,13,8],[13,9,13,11]]}
[]
[]
[null,null,null,{"$f":"シート名設定!D109","v":"CV-DataBaseスーパー呼び出し印刷命令リスト100"}]
[null,null,"1．ループ呼び出し設定"]
[]
[null,null,null,"設定項目","設定値"]
[null,null,null,"呼び出しファイル，実行マクロ先頭行番号"]
[null,null,null,"呼び出しファイル，実行マクロ最終行番号"]
[null,null,null,"呼び出しファイル，実行マクロ先頭群番号"]
[null,null,null,"呼び出しファイル，実行マクロ最終群番号"]
[]
[null,null,"２．CV-DataBaseスーパー呼び出し印刷命令リスト設定"]
[]
[null,null,"行番号","実行マクロ群1",null,null,"実行マクロ群２",null,null,"実行マクロ群３",null,null,"実行マクロ群４",null,null,"実行マクロ群５",null,null,"実行マクロ群６"]
[null,null,null,"呼び出しファイルのディレクトリ","ファイル名","実行マクロ名","呼び出しファイルのディレクトリ","ファイル名","実行マクロ名","呼び出しファイルのディレクトリ","ファイル名","実行マクロ名","呼び出しファイルのディレクトリ","ファイル名","実行マクロ名","呼び出しファイルのディレクトリ","ファイル名","実行マクロ名","呼び出しファイルのディレクトリ","ファイル名","実行マクロ名"]
[null,null,1]
[null,null,2]
[null,null,3]
[null,null,4]
[null,null,5]